Workbook

Sheet {PH List} (hidden)
A1: =RIGHT(CELL("filename", A1), LEN(CELL("filename", A1)) - SEARCH("]", CELL("filename", A1))) -> {PH List}
D4: Date | E4: Description | F4: Link | G4: Reference
A6: Input_Output
D7: 2012-10-30 | E7: Temporary Placeholder | F7: =Input_Output!#REF! ->  | G7: Input_Output!$E$12
D8: 2012-10-30 | E8: Temporary Placeholder | F8: =Input_Output!$E$43 -> Levensduur te vervangen onderdeel | G8: Input_Output!$E$54
A10: Calc
D11: 2012-10-30 | E11: Temporary Placeholder | F11: =Calc!$E$22 -> 0 | G11: Calc!$E$22
D12: 2012-10-30 | E12: Temporary Placeholder | F12: =Calc!$E$40 -> 0 | G12: Calc!$E$40
D13: 2012-10-30 | E13: Temporary Placeholder | F13: =Calc!$E$98 -> 0 | G13: Calc!$E$98
D14: 2012-10-30 | E14: Temporary Placeholder | F14: =Calc!$E$149 -> Opbrengst OT (GS) | G14: Calc!$E$154
D15: 2012-10-30 | E15: Temporary Placeholder | F15: =Calc!$E$153 -> 0 | G15: Calc!$E$158
D16: 2012-10-30 | E16: Temporary Placeholder | F16: =Calc!$E$169 -> Opbrengst OT (WKK) | G16: Calc!$E$172
D17: 2012-10-30 | E17: Temporary Placeholder | F17: =Calc!$E$173 -> 0 | G17: Calc!$E$176
D18: 2012-10-30 | E18: Temporary Placeholder | F18: =Calc!$E$264 -> Afschrijvingen POS | G18: Calc!$E$270
D19: 2012-10-30 | E19: Temporary Placeholder | F19: =Calc!$E$339 -> 0 | G19: Calc!$E$345
D20: 2012-10-30 | E20: Temporary Placeholder | F20: =Calc!$E$347 -> 0 | G20: Calc!$E$353
A22: FinResBedr

Sheet Input_Output
A1: Onrendabele Topberekening
A2: =F3 -> Fictieve voorbeeldberekening
E3: Actieve inputkolom | F3: Fictieve voorbeeldberekening | H3: =MATCH($F3, I3:Y3, FALSE) -> 2 | J3: Fictieve voorbeeldberekening | K3: Installatie categorie 2 | L3: Installatie categorie 3 | M3: Installatie categorie 4 | N3: ,,,
F4: Constante | G4: Eenheid
A5: Outputs
C6: Onrendabele Top (basis productie groene stroom)
E7: =Calc!E509 -> Onrendabele Top Projectfinanciering | F7: =IF(F17="WKB","n.v.t.",Calc!F509) -> 234.8122529 | G7: =Calc!G509 -> Euro/MWh
E8: =Calc!E$515 -> Check rendement Project na belastingen Projectfinanciering | F8: =Calc!F$515 -> 1 | G8: =Calc!G$515 -> Check
C9: Onrendabele Top (basis warmtekrachtbesparing)
E10: =Calc!E510 -> Onrendabele Top Projectfinanciering | F10: =IF(F17="GS productie","n.v.t.",Calc!F510) -> n.v.t. | G10: =Calc!G510 -> Euro/MWh
E11: =Calc!E$516 -> Check rendement Project na belastingen Projectfinanciering | F11: =Calc!F$516 -> 1 | G11: =Calc!G$516 -> Check
E12: Run macro "goalseek" om OT obv Projectfinanciering te berekenen
A14: Inputs
C16: Algemeen
E17: OT obv GS productie of WKB? | F17: =INDEX(I17:Y17, $H$3) -> GS productie | G17: GS productie/WKB | J17: GS productie
E18: Particulier of bedrijf? | F18: bedr | G18: part/bedr
C20: Productie groene stroom
E21: Eenheid van unit grootte | F21: =INDEX(I21:Y21, $H$3) -> kWe | G21: kWe of kWth | J21: kWe
E22: Unit grootte | F22: 5 | G22: =F21 -> kWe | J22: 5
E23: Unit grootte elektriciteitsdeel | F23: 5 | G23: kWe | J23: 5
E24: Bedrijfstijd/vollasturen | F24: 850 | G24: Uren/jaar | J24: 850
E25: Economische levensduur | F25: 15 | G25: Jaar | J25: 15
E26: Elektrisch rendement | F26: 0.4 | G26: [%] | J26: 0.4
C28: WKK
E29: Thermisch rendement WKK | F29: =INDEX(I29:Y29, $H$3) -> 0 | G29: [%] | J29: 0
E30: Referentierendement WKK Vla (thermisch) | F30: 0 | G30: [%] | J30: 0
E31: Referentierendement WKK Vla (elektrisch) | F31: 0 | G31: [%] | J31: 0
E32: Referentierendement WKK Eu (thermisch) | F32: 0 | G32: [%] | J32: 0
E33: Referentierendement WKK Eu (elektrisch) | F33: 0 | G33: [%] | J33: 0
E34: Referentierendement ketel | F34: 0 | G34: [%] | J34: 0
C36: Kosten
E37: Investeringskosten | F37: =INDEX(I37:Y37, $H$3) -> 1800 | G37: ="Euro/" & F21 -> Euro/kWe | J37: 1800
E38: Onderhoudskosten vast | F38: =INDEX(I38:Y38, $H$3) -> 58.2615 | G38: ="Euro/" & F21 -> Euro/kWe | J38: =53.5*0.9*1.21 -> 58.2615
E39: Onderhoudskosten variabel | F39: =INDEX(I39:Y39, $H$3) -> 0.02 | G39: Euro/kWhe | J39: 0.02
E40: Overige operationele kosten | F40: =INDEX(I40:Y40, $H$3) -> 0.02 | G40: Euro/kWhe | J40: 0.02
E42: Vervangingsinvestering | F42: =INDEX(I42:Y42, $H$3) -> 250 | G42: Euro/kWe | J42: 250
E43: Levensduur te vervangen onderdeel | F43: =INDEX(I43:Y43, $H$3) -> 12 | G43: Jaar | J43: 12
E45: Kosten brandstof | F45: =INDEX(I45:Y45, $H$3) -> 0.0473 | G45: Euro/kWh | J45: 0.0473
E46: Brandstofkosten te vervangen brandstof | F46: =INDEX(I46:Y46, $H$3) -> 0 | G46: Euro/kWh
E47: Effectiviteit brandstofsubstitutie | F47: =INDEX(I47:Y47, $H$3) -> 0 | G47: [%]
E49: Hoeveelheid ingaande stoffen (GFT,…) | F49: =INDEX(I49:Y49, $H$3) -> 0 | G49: ton
E50: Kosten (+) / opbrengsten (-) ingaande stoffen | F50: =INDEX(I50:Y50, $H$3) -> 0 | G50: Euro/ton
E52: Hoeveelheid uitgaande stoffen (digestaat, slib) | F52: =INDEX(I52:Y52, $H$3) -> 0 | G52: ton
E53: Kosten (+) / opbrengsten (-) uitgaande stoffen | F53: =INDEX(I53:Y53, $H$3) -> 0 | G53: Euro/ton
C55: Inkomsten
E56: Aandeel zelfafname stroom | F56: =INDEX(I56:Y56, $H$3) -> 1 | G56: [%] | J56: 1
E57: Marktprijs stroom zelfafname | F57: =INDEX(I57:Y57, $H$3) -> 0.217 | G57: Euro/kWh | J57: 0.217
E58: Marktprijs stroom verkoop | F58: =INDEX(I58:Y58, $H$3) -> 0.0506 | G58: Euro/kWh | J58: 0.0506
E59: Injectietarief/Kosten onbalans | F59: =INDEX(I59:Y59, $H$3) -> 0.0023 | G59: Euro/kWh | J59: 0.0023
E60: Eigenverbruik installatie voor berekening elektriciteitsproductie | F60: =INDEX(I60:Y60, $H$3) -> 0.02 | G60: [%] | J60: 0.02
E62: GSC van toepassing? | F62: =INDEX(I62:Y62, $H$3) -> nee | G62: ja/nee | J62: nee
E63: Prijs GSC | F63: =INDEX(I63:Y63, $H$3) -> 0 | G63: Euro/MWh
E64: Eigenverbruik installatie voor berekening GSC | F64: =INDEX(I64:Y64, $H$3) -> 0.02 | G64: [%] | J64: 0.02
E66: WKK certificaten van toepassing? | F66: =INDEX(I66:Y66, $H$3) -> nee | G66: ja/nee | J66: nee
E67: Prijs WKK certificaat | F67: =INDEX(I67:Y67, $H$3) -> 0 | G67: Euro/MWh
C69: Fiscale en steunmaatregelen bedrijven
E70: Vennootschapsbelasting | F70: =INDEX(I70:Y70, $H$3) -> 0.3399 | G70: [%] | J70: 0.3399
E72: Investeringsaftrek van toepassing? | F72: =INDEX(I72:Y72, $H$3) -> ja | G72: ja/nee | J72: ja
E73: Investeringsaftrek | F73: =INDEX(I73:Y73, $H$3) -> 0.155 | G73: [%] | J73: 0.155
E74: Gedeelte van de investering in aanmerking IA | F74: =INDEX(I74:Y74, $H$3) -> 1 | G74: [%] | J74: 1
E76: Investeringssteun van toepassing? | F76: =INDEX(I76:Y76, $H$3) -> nee | G76: ja/nee | J76: nee
E77: Investeringssteun opdat OT = 0 bij PF? | F77: =INDEX(I77:Y77, $H$3) -> 0 | G77: ja/nee
E78: Steunpercentage investeringssteun | F78: =INDEX(I78:Y78, $H$3) -> 0 | G78: [%]
E79: Maximum investeringssteun | F79: =INDEX(I79:Y79, $H$3) -> 0 | G79: Euro
E80: Totale meerkost | F80: =INDEX(I80:Y80, $H$3) -> 0 | G80: [%]
C82: Financiering
E83: Groene lening? | F83: nee | G83: ja/nee
E84: Rente lening voor interestbonificatie | G84: [%]
E85: Interestbonificatie groene lening | G85: [%]
E87: Rente lening | F87: =INDEX(I87:Y87, $H$3) -> 0.05 | G87: [%] | J87: 0.05
E88: Equity share in investering | F88: =INDEX(I88:Y88, $H$3) -> 0.8 | G88: [%] | J88: 0.8
E89: Debt share in investering | F89: =INDEX(I89:Y89, $H$3) -> 0.2 | G89: [%] | J89: =1-J88 -> 0.2 | K89: =1-K88 -> 1 | L89: 1 | M89: 1 | N89: 1 | O89: 1 | P89: 1 | Q89: 1 | R89: 1 | S89: 1 | T89: 1 | U89: 1 | V89: 1 | W89: 1 | X89: 1
E91: Project IRR na belastingen | F91: =INDEX(I91:Y91, $H$3) -> 0.12 | G91: [%] | J91: 0.12
C93: Perioden
E94: Termijn lening | F94: =INDEX(I94:Y94, $H$3) -> 15 | G94: Jaar | J94: 15
E95: Constructieperiode | F95: =INDEX(I95:Y95, $H$3) -> 1 | G95: Jaar | J95: 1
E96: Afschrijvingstermijn | F96: =INDEX(I96:Y96, $H$3) -> 15 | G96: Jaar | J96: 15
E97: Beleidsperiode | F97: =INDEX(I97:Y97, $H$3) -> 15 | G97: Jaar | J97: 15
C99: Prijsparameters
E100: Prijsparameter elektriciteit zelfafname | F100: =INDEX(I100:Y100, $H$3) -> Elektriciteit eindverbruiker | J100: Elektriciteit eindverbruiker
E101: Prijsparameter elektriciteit verkoop | F101: Elektriciteit productiekost | J101: Elektriciteit productiekost
E102: Prijsparameter GSC | F102: 0
E103: Prijsparameter WKC | F103: 0
E104: Prijsparameter brandstof | F104: Aardgas | J104: Aardgas
E105: Prijsparameter te vervangen brandstof | F105: Aardgas | J105: Aardgas
E106: Prijsparameter operationele kosten | F106: O&M kosten | J106: O&M kosten
E107: Prijsparameter kosten/opbrengsten ingaande stoffen | F107: O&M kosten | J107: O&M kosten
E108: Prijsparameter kosten/opbrengsten uitgaande stoffen | F108: O&M kosten | J108: O&M kosten
C110: Prijsevolutie geïntegreerd in de OT berekening
E111: Prijsevolutie IN de OT berekening? | F111: =INDEX(I111:Y111, $H$3) -> ja | G111: ja/nee | J111: ja
D113: Prijsevolutie bij simulatie van een OT-pad
E114: Prijsevolutie bij simulatie OT-pad? | F114: =INDEX(I114:Y114, $H$3) -> 0 | G114: ja/nee | X114: ja
E115: Jaarlijkse prijsevolutie investeringskost | F115: =INDEX(I115:Y115, $H$3) -> 0 | G115: [%]

Sheet Input_Prijsindex
A1: =Input_Output!A1 -> Onrendabele Topberekening
J3: Jaar
F4: Constante | G4: Eenheid | H4: Totaal | J4: =J9 -> 0 | K4: =K9 -> 1 | L4: 2 | M4: 3 | N4: 4 | O4: 5 | P4: 6 | Q4: 7 | R4: 8 | S4: 9 | T4: 10 | U4: 11 | V4: 12 | W4: 13 | X4: 14 | Y4: 15 | Z4: 16 | AA4: 17 | AB4: 18 | AC4: 19 | AD4: 20 | AE4: 21 | AF4: 22 | AG4: 23 | AH4: 24 | AI4: 25 | AJ4: 26 | AK4: 27 | AL4: 28 | AM4: 29 | AN4: 30
A6: Prijsindex
B8: Jaartallen
E9: Jaar | G9: Volgnr | J9: 0 | K9: =J9 +1 -> 1 | L9: 2 | M9: 3 | N9: 4 | O9: 5 | P9: 6 | Q9: 7 | R9: 8 | S9: 9 | T9: 10 | U9: 11 | V9: 12 | W9: 13 | X9: 14 | Y9: 15 | Z9: 16 | AA9: 17 | AB9: 18 | AC9: 19 | AD9: 20 | AE9: 21 | AF9: 22 | AG9: 23 | AH9: 24 | AI9: 25 | AJ9: 26 | AK9: 27 | AL9: 28 | AM9: 29 | AN9: 30
B11: Jaarlijkse prijsevolutie geïntegreerd in de OT berekening
E13: =E$9 -> Jaar | F13: =F$9 -> 0 | G13: Volgnr | H13: 0 | I13: 0 | J13: 0 | K13: 1 | L13: 2 | M13: 3 | N13: 4 | O13: 5 | P13: 6 | Q13: 7 | R13: 8 | S13: 9 | T13: 10 | U13: 11 | V13: 12 | W13: 13 | X13: 14 | Y13: 15 | Z13: 16 | AA13: 17 | AB13: 18 | AC13: 19 | AD13: 20 | AE13: 21 | AF13: 22 | AG13: 23 | AH13: 24 | AI13: 25 | AJ13: 26 | AK13: 27 | AL13: 28 | AM13: 29 | AN13: 30
E14: Elektriciteit productiekost | G14: [%] | I14: 0.05 | J14: 0 | K14: 0.02 | L14: =$K14 -> 0.02 | M14: =$K14 -> 0.02 | N14: 0.02 | O14: 0.02 | P14: 0.02 | Q14: 0.02 | R14: 0.02 | S14: 0.02 | T14: 0.02 | U14: 0.02 | V14: 0.02 | W14: 0.02 | X14: 0.02 | Y14: 0.02 | Z14: 0.02 | AA14: 0.02 | AB14: 0.02 | AC14: 0.02 | AD14: 0.02 | AE14: 0.02 | AF14: 0.02 | AG14: 0.02 | AH14: 0.02 | AI14: 0.02 | AJ14: 0.02 | AK14: 0.02 | AL14: 0.02 | AM14: 0.02 | AN14: 0.02
E15: Elektriciteit eindverbruiker | G15: [%] | I15: 0.035 | J15: 0 | K15: 0.035 | L15: 0.035 | M15: =$K15 -> 0.035 | N15: 0.035 | O15: 0.035 | P15: 0.035 | Q15: 0.035 | R15: 0.035 | S15: 0.035 | T15: 0.035 | U15: 0.035 | V15: 0.035 | W15: 0.035 | X15: 0.035 | Y15: 0.035 | Z15: 0.035 | AA15: 0.035 | AB15: 0.035 | AC15: 0.035 | AD15: 0.035 | AE15: 0.035 | AF15: 0.035 | AG15: 0.035 | AH15: 0.035 | AI15: 0.035 | AJ15: 0.035 | AK15: 0.035 | AL15: 0.035 | AM15: 0.035 | AN15: 0.035
E16: Aardgas | G16: [%] | I16: 0.057 | J16: 0 | K16: 0.035 | L16: 0.035 | M16: 0.035 | N16: 0.035 | O16: 0.035 | P16: 0.035 | Q16: 0.035 | R16: 0.035 | S16: 0.035 | T16: 0.035 | U16: 0.035 | V16: 0.035 | W16: 0.035 | X16: 0.035 | Y16: 0.035 | Z16: 0.035 | AA16: 0.035 | AB16: 0.035 | AC16: 0.035 | AD16: 0.035 | AE16: 0.035 | AF16: 0.035 | AG16: 0.035 | AH16: 0.035 | AI16: 0.035 | AJ16: 0.035 | AK16: 0.035 | AL16: 0.035 | AM16: 0.035 | AN16: 0.035
E17: Steenkool | G17: [%] | I17: 0.06 | J17: 0 | K17: 0 | L17: 0 | M17: 0 | N17: 0 | O17: 0 | P17: 0 | Q17: 0 | R17: 0 | S17: 0 | T17: 0 | U17: 0 | V17: 0 | W17: 0 | X17: 0 | Y17: 0 | Z17: 0 | AA17: 0 | AB17: 0 | AC17: 0 | AD17: 0 | AE17: 0 | AF17: 0 | AG17: 0 | AH17: 0 | AI17: 0 | AJ17: 0 | AK17: 0 | AL17: 0 | AM17: 0 | AN17: 0
E18: Dierlijk vet | G18: [%] | I18: 0.05 | J18: 0 | K18: 0 | L18: 0 | M18: 0 | N18: 0 | O18: 0 | P18: 0 | Q18: 0 | R18: 0 | S18: 0 | T18: 0 | U18: 0 | V18: 0 | W18: 0 | X18: 0 | Y18: 0 | Z18: 0 | AA18: 0 | AB18: 0 | AC18: 0 | AD18: 0 | AE18: 0 | AF18: 0 | AG18: 0 | AH18: 0 | AI18: 0 | AJ18: 0 | AK18: 0 | AL18: 0 | AM18: 0 | AN18: 0
E19: Pellets | G19: [%] | I19: 0.05 | J19: 0 | K19: 0 | L19: 0 | M19: 0 | N19: 0 | O19: 0 | P19: 0 | Q19: 0 | R19: 0 | S19: 0 | T19: 0 | U19: 0 | V19: 0 | W19: 0 | X19: 0 | Y19: 0 | Z19: 0 | AA19: 0 | AB19: 0 | AC19: 0 | AD19: 0 | AE19: 0 | AF19: 0 | AG19: 0 | AH19: 0 | AI19: 0 | AJ19: 0 | AK19: 0 | AL19: 0 | AM19: 0 | AN19: 0
E20: Houtchips | G20: [%] | I20: 0.077 | J20: 0 | K20: 0.011 | L20: 0.011 | M20: 0.011 | N20: 0.011 | O20: 0.011 | P20: 0.011 | Q20: 0.011 | R20: 0.011 | S20: 0.011 | T20: 0.011 | U20: 0.011 | V20: 0.011 | W20: 0.011 | X20: 0.011 | Y20: 0.011 | Z20: 0.011 | AA20: 0.011 | AB20: 0.011 | AC20: 0.011 | AD20: 0.011 | AE20: 0.011 | AF20: 0.011 | AG20: 0.011 | AH20: 0.011 | AI20: 0.011 | AJ20: 0.011 | AK20: 0.011 | AL20: 0.011 | AM20: 0.011 | AN20: 0.011
E21: Kost OBA | G21: [%] | I21: 0.02 | J21: 0 | K21: 0 | L21: 0 | M21: 0 | N21: 0 | O21: 0 | P21: 0 | Q21: 0 | R21: 0 | S21: 0 | T21: 0 | U21: 0 | V21: 0 | W21: 0 | X21: 0 | Y21: 0 | Z21: 0 | AA21: 0 | AB21: 0 | AC21: 0 | AD21: 0 | AE21: 0 | AF21: 0 | AG21: 0 | AH21: 0 | AI21: 0 | AJ21: 0 | AK21: 0 | AL21: 0 | AM21: 0 | AN21: 0
E22: Mest-energieteelt | G22: [%] | I22: 0.02 | J22: 0 | K22: 0 | L22: 0 | M22: 0 | N22: 0 | O22: 0 | P22: 0 | Q22: 0 | R22: 0 | S22: 0 | T22: 0 | U22: 0 | V22: 0 | W22: 0 | X22: 0 | Y22: 0 | Z22: 0 | AA22: 0 | AB22: 0 | AC22: 0 | AD22: 0 | AE22: 0 | AF22: 0 | AG22: 0 | AH22: 0 | AI22: 0 | AJ22: 0 | AK22: 0 | AL22: 0 | AM22: 0 | AN22: 0
E23: Opbrengst GFT | G23: [%] | I23: -0.02 | J23: 0 | K23: 0 | L23: 0 | M23: 0 | N23: 0 | O23: 0 | P23: 0 | Q23: 0 | R23: 0 | S23: 0 | T23: 0 | U23: 0 | V23: 0 | W23: 0 | X23: 0 | Y23: 0 | Z23: 0 | AA23: 0 | AB23: 0 | AC23: 0 | AD23: 0 | AE23: =$K23 -> 0 | AF23: 0 | AG23: 0 | AH23: 0 | AI23: 0 | AJ23: 0 | AK23: 0 | AL23: 0 | AM23: 0 | AN23: 0
E24: Kost afzet digestaat mest-energieteelt | G24: [%] | I24: 0.02 | J24: 0 | K24: 0 | L24: 0 | M24: 0 | N24: 0 | O24: 0 | P24: 0 | Q24: 0 | R24: 0 | S24: 0 | T24: 0 | U24: 0 | V24: 0 | W24: 0 | X24: 0 | Y24: 0 | Z24: 0 | AA24: 0 | AB24: 0 | AC24: 0 | AD24: 0 | AE24: 0 | AF24: 0 | AG24: 0 | AH24: 0 | AI24: 0 | AJ24: 0 | AK24: 0 | AL24: 0 | AM24: 0 | AN24: 0
E25: Kost afzet digestaat OBA | G25: [%] | I25: 0.02 | J25: 0 | K25: 0 | L25: 0 | M25: 0 | N25: 0 | O25: 0 | P25: 0 | Q25: 0 | R25: 0 | S25: 0 | T25: 0 | U25: 0 | V25: 0 | W25: 0 | X25: 0 | Y25: 0 | Z25: 0 | AA25: 0 | AB25: 0 | AC25: 0 | AD25: 0 | AE25: 0 | AF25: 0 | AG25: 0 | AH25: 0 | AI25: 0 | AJ25: 0 | AK25: 0 | AL25: 0 | AM25: 0 | AN25: 0
E26: O&M kosten | G26: [%] | I26: 0.02 | J26: 0 | K26: 0.02 | L26: 0.02 | M26: 0.02 | N26: 0.02 | O26: 0.02 | P26: 0.02 | Q26: 0.02 | R26: 0.02 | S26: 0.02 | T26: 0.02 | U26: 0.02 | V26: 0.02 | W26: 0.02 | X26: 0.02 | Y26: 0.02 | Z26: 0.02 | AA26: 0.02 | AB26: 0.02 | AC26: 0.02 | AD26: 0.02 | AE26: 0.02 | AF26: 0.02 | AG26: 0.02 | AH26: 0.02 | AI26: 0.02 | AJ26: 0.02 | AK26: 0.02 | AL26: 0.02 | AM26: 0.02 | AN26: 0.02
E27: 0 | G27: [%] | J27: 0 | L27: 0 | M27: 0 | N27: 0 | O27: 0 | P27: 0 | Q27: 0 | R27: 0 | S27: 0 | T27: 0 | U27: 0 | V27: 0 | W27: 0 | X27: 0 | Y27: 0 | Z27: 0 | AA27: 0 | AB27: 0 | AC27: 0 | AD27: 0 | AE27: 0 | AF27: 0 | AG27: 0 | AH27: 0 | AI27: 0 | AJ27: 0 | AK27: 0 | AL27: 0 | AM27: 0 | AN27: 0
B29: Jaarlijkse prijsindex geïntegreerd in de OT berekening
E31: =E$9 -> Jaar | F31: =F$9 -> 0 | G31: Volgnr | H31: 0 | I31: 0 | J31: 0 | K31: 1 | L31: 2 | M31: 3 | N31: 4 | O31: 5 | P31: 6 | Q31: 7 | R31: 8 | S31: 9 | T31: 10 | U31: 11 | V31: 12 | W31: 13 | X31: 14 | Y31: 15 | Z31: 16 | AA31: 17 | AB31: 18 | AC31: 19 | AD31: 20 | AE31: 21 | AF31: 22 | AG31: 23 | AH31: 24 | AI31: 25 | AJ31: 26 | AK31: 27 | AL31: 28 | AM31: 29 | AN31: 30
E32: Elektriciteit productiekost | G32: Factor | J32: =(1+J14) -> 1 | K32: 1.02 | L32: 1.02 | M32: 1.02 | N32: 1.02 | O32: 1.02 | P32: 1.02 | Q32: 1.02 | R32: 1.02 | S32: 1.02 | T32: 1.02 | U32: 1.02 | V32: 1.02 | W32: 1.02 | X32: 1.02 | Y32: 1.02 | Z32: 1.02 | AA32: 1.02 | AB32: 1.02 | AC32: 1.02 | AD32: 1.02 | AE32: 1.02 | AF32: 1.02 | AG32: 1.02 | AH32: 1.02 | AI32: 1.02 | AJ32: 1.02 | AK32: 1.02 | AL32: 1.02 | AM32: 1.02 | AN32: 1.02
E33: Elektriciteit eindverbruiker | G33: Factor | J33: 1 | K33: 1.035 | L33: 1.035 | M33: 1.035 | N33: 1.035 | O33: 1.035 | P33: 1.035 | Q33: 1.035 | R33: 1.035 | S33: 1.035 | T33: 1.035 | U33: 1.035 | V33: 1.035 | W33: 1.035 | X33: 1.035 | Y33: 1.035 | Z33: 1.035 | AA33: 1.035 | AB33: 1.035 | AC33: 1.035 | AD33: 1.035 | AE33: 1.035 | AF33: 1.035 | AG33: 1.035 | AH33: 1.035 | AI33: 1.035 | AJ33: 1.035 | AK33: 1.035 | AL33: 1.035 | AM33: 1.035 | AN33: 1.035
E34: Aardgas | G34: Factor | J34: 1 | K34: 1.035 | L34: 1.035 | M34: 1.035 | N34: 1.035 | O34: 1.035 | P34: 1.035 | Q34: 1.035 | R34: 1.035 | S34: 1.035 | T34: 1.035 | U34: 1.035 | V34: 1.035 | W34: 1.035 | X34: 1.035 | Y34: 1.035 | Z34: 1.035 | AA34: 1.035 | AB34: 1.035 | AC34: 1.035 | AD34: 1.035 | AE34: 1.035 | AF34: 1.035 | AG34: 1.035 | AH34: 1.035 | AI34: 1.035 | AJ34: 1.035 | AK34: 1.035 | AL34: 1.035 | AM34: 1.035 | AN34: 1.035
E35: Steenkool | G35: Factor | J35: 1 | K35: 1 | L35: 1 | M35: 1 | N35: 1 | O35: 1 | P35: 1 | Q35: 1 | R35: 1 | S35: 1 | T35: 1 | U35: 1 | V35: 1 | W35: 1 | X35: 1 | Y35: 1 | Z35: 1 | AA35: 1 | AB35: 1 | AC35: 1 | AD35: 1 | AE35: 1 | AF35: 1 | AG35: 1 | AH35: 1 | AI35: 1 | AJ35: 1 | AK35: 1 | AL35: 1 | AM35: 1 | AN35: 1
E36: Dierlijk vet | G36: Factor | J36: 1 | K36: 1 | L36: 1 | M36: 1 | N36: 1 | O36: 1 | P36: 1 | Q36: 1 | R36: 1 | S36: 1 | T36: 1 | U36: 1 | V36: 1 | W36: 1 | X36: 1 | Y36: 1 | Z36: 1 | AA36: 1 | AB36: 1 | AC36: 1 | AD36: 1 | AE36: 1 | AF36: 1 | AG36: 1 | AH36: 1 | AI36: 1 | AJ36: 1 | AK36: 1 | AL36: 1 | AM36: 1 | AN36: 1
E37: Pellets | G37: Factor | J37: 1 | K37: 1 | L37: 1 | M37: 1 | N37: 1 | O37: 1 | P37: 1 | Q37: 1 | R37: 1 | S37: 1 | T37: 1 | U37: 1 | V37: 1 | W37: 1 | X37: 1 | Y37: 1 | Z37: 1 | AA37: 1 | AB37: 1 | AC37: 1 | AD37: 1 | AE37: 1 | AF37: 1 | AG37: 1 | AH37: 1 | AI37: 1 | AJ37: 1 | AK37: 1 | AL37: 1 | AM37: 1 | AN37: 1
E38: Houtchips | G38: Factor | J38: 1 | K38: 1.011 | L38: 1.011 | M38: 1.011 | N38: 1.011 | O38: 1.011 | P38: 1.011 | Q38: 1.011 | R38: 1.011 | S38: 1.011 | T38: 1.011 | U38: 1.011 | V38: 1.011 | W38: 1.011 | X38: 1.011 | Y38: 1.011 | Z38: 1.011 | AA38: 1.011 | AB38: 1.011 | AC38: 1.011 | AD38: 1.011 | AE38: 1.011 | AF38: 1.011 | AG38: 1.011 | AH38: 1.011 | AI38: 1.011 | AJ38: 1.011 | AK38: 1.011 | AL38: 1.011 | AM38: 1.011 | AN38: 1.011
E39: Kost OBA | G39: Factor | J39: 1 | K39: 1 | L39: 1 | M39: 1 | N39: 1 | O39: 1 | P39: 1 | Q39: 1 | R39: 1 | S39: 1 | T39: 1 | U39: 1 | V39: 1 | W39: 1 | X39: 1 | Y39: 1 | Z39: 1 | AA39: 1 | AB39: 1 | AC39: 1 | AD39: 1 | AE39: 1 | AF39: 1 | AG39: 1 | AH39: 1 | AI39: 1 | AJ39: 1 | AK39: 1 | AL39: 1 | AM39: 1 | AN39: 1
E40: Mest-energieteelt | G40: Factor | J40: 1 | K40: 1 | L40: 1 | M40: 1 | N40: 1 | O40: 1 | P40: 1 | Q40: =(1+Q22) -> 1 | R40: 1 | S40: 1 | T40: 1 | U40: 1 | V40: 1 | W40: 1 | X40: 1 | Y40: 1 | Z40: 1 | AA40: 1 | AB40: 1 | AC40: 1 | AD40: 1 | AE40: 1 | AF40: 1 | AG40: 1 | AH40: 1 | AI40: 1 | AJ40: 1 | AK40: 1 | AL40: 1 | AM40: 1 | AN40: 1
E41: Opbrengst GFT | G41: Factor | J41: =(1+J23) -> 1 | K41: 1 | L41: 1 | M41: 1 | N41: 1 | O41: 1 | P41: 1 | Q41: 1 | R41: 1 | S41: 1 | T41: 1 | U41: 1 | V41: 1 | W41: 1 | X41: 1 | Y41: 1 | Z41: 1 | AA41: 1 | AB41: 1 | AC41: 1 | AD41: 1 | AE41: 1 | AF41: 1 | AG41: 1 | AH41: 1 | AI41: 1 | AJ41: 1 | AK41: 1 | AL41: 1 | AM41: 1 | AN41: 1
E42: Kost afzet digestaat mest-energieteelt | G42: Factor | J42: 1 | K42: 1 | L42: 1 | M42: 1 | N42: 1 | O42: 1 | P42: 1 | Q42: 1 | R42: 1 | S42: 1 | T42: 1 | U42: 1 | V42: 1 | W42: 1 | X42: 1 | Y42: 1 | Z42: 1 | AA42: 1 | AB42: 1 | AC42: 1 | AD42: 1 | AE42: 1 | AF42: 1 | AG42: 1 | AH42: 1 | AI42: 1 | AJ42: 1 | AK42: 1 | AL42: 1 | AM42: 1 | AN42: 1
E43: Kost afzet digestaat OBA | G43: Factor | J43: 1 | K43: 1 | L43: 1 | M43: 1 | N43: 1 | O43: 1 | P43: 1 | Q43: 1 | R43: 1 | S43: 1 | T43: 1 | U43: 1 | V43: 1 | W43: 1 | X43: 1 | Y43: 1 | Z43: 1 | AA43: 1 | AB43: 1 | AC43: 1 | AD43: 1 | AE43: 1 | AF43: 1 | AG43: 1 | AH43: 1 | AI43: 1 | AJ43: 1 | AK43: 1 | AL43: 1 | AM43: 1 | AN43: 1
E44: O&M kosten | G44: Factor | J44: 1 | K44: 1.02 | L44: 1.02 | M44: 1.02 | N44: 1.02 | O44: 1.02 | P44: 1.02 | Q44: 1.02 | R44: 1.02 | S44: 1.02 | T44: 1.02 | U44: 1.02 | V44: 1.02 | W44: 1.02 | X44: 1.02 | Y44: 1.02 | Z44: 1.02 | AA44: 1.02 | AB44: 1.02 | AC44: 1.02 | AD44: 1.02 | AE44: 1.02 | AF44: 1.02 | AG44: 1.02 | AH44: 1.02 | AI44: 1.02 | AJ44: 1.02 | AK44: 1.02 | AL44: 1.02 | AM44: 1.02 | AN44: 1.02
E45: 0 | G45: Factor | J45: 1 | K45: 1 | L45: 1 | M45: 1 | N45: 1 | O45: 1 | P45: 1 | Q45: 1 | R45: 1 | S45: 1 | T45: 1 | U45: 1 | V45: 1 | W45: 1 | X45: 1 | Y45: 1 | Z45: 1 | AA45: 1 | AB45: 1 | AC45: 1 | AD45: 1 | AE45: 1 | AF45: 1 | AG45: 1 | AH45: 1 | AI45: =(1+AI27) -> 1 | AJ45: 1 | AK45: 1 | AL45: 1 | AM45: 1 | AN45: 1
B47: Gecumuleerde prijsindex geïntegreerd in de OT berekening
E49: =E$9 -> Jaar | F49: =F$9 -> 0 | G49: Volgnr | H49: 0 | I49: 0 | J49: 0 | K49: 1 | L49: 2 | M49: 3 | N49: 4 | O49: 5 | P49: 6 | Q49: 7 | R49: 8 | S49: 9 | T49: 10 | U49: 11 | V49: 12 | W49: 13 | X49: 14 | Y49: 15 | Z49: 16 | AA49: 17 | AB49: 18 | AC49: 19 | AD49: 20 | AE49: 21 | AF49: 22 | AG49: 23 | AH49: 24 | AI49: 25 | AJ49: 26 | AK49: 27 | AL49: 28 | AM49: 29 | AN49: 30
E50: Elektriciteit productiekost | G50: Factor | J50: =PRODUCT($J32:J32) -> 1 | K50: =PRODUCT($J32:K32) -> 1.02 | L50: =PRODUCT($J32:L32) -> 1.0404 | M50: =PRODUCT($J32:M32) -> 1.061208 | N50: =PRODUCT($J32:N32) -> 1.08243216 | O50: =PRODUCT($J32:O32) -> 1.104080803 | P50: =PRODUCT($J32:P32) -> 1.126162419 | Q50: =PRODUCT($J32:Q32) -> 1.148685668 | R50: =PRODUCT($J32:R32) -> 1.171659381 | S50: =PRODUCT($J32:S32) -> 1.195092569 | T50: =PRODUCT($J32:T32) -> 1.21899442 | U50: =PRODUCT($J32:U32) -> 1.243374308 | V50: =PRODUCT($J32:V32) -> 1.268241795 | W50: =PRODUCT($J32:W32) -> 1.29360663 | X50: =PRODUCT($J32:X32) -> 1.319478763 | Y50: =PRODUCT($J32:Y32) -> 1.345868338 | Z50: =PRODUCT($J32:Z32) -> 1.372785705 | AA50: =PRODUCT($J32:AA32) -> 1.400241419 | AB50: =PRODUCT($J32:AB32) -> 1.428246248 | AC50: =PRODUCT($J32:AC32) -> 1.456811173 | AD50: =PRODUCT($J32:AD32) -> 1.485947396 | AE50: =PRODUCT($J32:AE32) -> 1.515666344 | AF50: =PRODUCT($J32:AF32) -> 1.545979671 | AG50: =PRODUCT($J32:AG32) -> 1.576899264 | AH50: =PRODUCT($J32:AH32) -> 1.608437249 | AI50: =PRODUCT($J32:AI32) -> 1.640605994 | AJ50: =PRODUCT($J32:AJ32) -> 1.673418114 | AK50: =PRODUCT($J32:AK32) -> 1.706886477 | AL50: =PRODUCT($J32:AL32) -> 1.741024206 | AM50: =PRODUCT($J32:AM32) -> 1.77584469 | AN50: =PRODUCT($J32:AN32) -> 1.811361584
E51: Elektriciteit eindverbruiker | G51: Factor | J51: =PRODUCT($J33:J33) -> 1 | K51: =PRODUCT($J33:K33) -> 1.035 | L51: =PRODUCT($J33:L33) -> 1.071225 | M51: =PRODUCT($J33:M33) -> 1.108717875 | N51: =PRODUCT($J33:N33) -> 1.147523001 | O51: =PRODUCT($J33:O33) -> 1.187686306 | P51: =PRODUCT($J33:P33) -> 1.229255326 | Q51: =PRODUCT($J33:Q33) -> 1.272279263 | R51: =PRODUCT($J33:R33) -> 1.316809037 | S51: =PRODUCT($J33:S33) -> 1.362897353 | T51: =PRODUCT($J33:T33) -> 1.410598761 | U51: =PRODUCT($J33:U33) -> 1.459969717 | V51: =PRODUCT($J33:V33) -> 1.511068657 | W51: =PRODUCT($J33:W33) -> 1.56395606 | X51: =PRODUCT($J33:X33) -> 1.618694522 | Y51: =PRODUCT($J33:Y33) -> 1.675348831 | Z51: =PRODUCT($J33:Z33) -> 1.73398604 | AA51: =PRODUCT($J33:AA33) -> 1.794675551 | AB51: =PRODUCT($J33:AB33) -> 1.857489196 | AC51: =PRODUCT($J33:AC33) -> 1.922501317 | AD51: =PRODUCT($J33:AD33) -> 1.989788863 | AE51: =PRODUCT($J33:AE33) -> 2.059431474 | AF51: =PRODUCT($J33:AF33) -> 2.131511575 | AG51: =PRODUCT($J33:AG33) -> 2.20611448 | AH51: =PRODUCT($J33:AH33) -> 2.283328487 | AI51: =PRODUCT($J33:AI33) -> 2.363244984 | AJ51: =PRODUCT($J33:AJ33) -> 2.445958559 | AK51: =PRODUCT($J33:AK33) -> 2.531567108 | AL51: =PRODUCT($J33:AL33) -> 2.620171957 | AM51: =PRODUCT($J33:AM33) -> 2.711877976 | AN51: =PRODUCT($J33:AN33) -> 2.806793705
E52: Aardgas | G52: Factor | J52: =PRODUCT($J34:J34) -> 1 | K52: =PRODUCT($J34:K34) -> 1.035 | L52: =PRODUCT($J34:L34) -> 1.071225 | M52: =PRODUCT($J34:M34) -> 1.108717875 | N52: =PRODUCT($J34:N34) -> 1.147523001 | O52: =PRODUCT($J34:O34) -> 1.187686306 | P52: =PRODUCT($J34:P34) -> 1.229255326 | Q52: =PRODUCT($J34:Q34) -> 1.272279263 | R52: =PRODUCT($J34:R34) -> 1.316809037 | S52: =PRODUCT($J34:S34) -> 1.362897353 | T52: =PRODUCT($J34:T34) -> 1.410598761 | U52: =PRODUCT($J34:U34) -> 1.459969717 | V52: =PRODUCT($J34:V34) -> 1.511068657 | W52: =PRODUCT($J34:W34) -> 1.56395606 | X52: =PRODUCT($J34:X34) -> 1.618694522 | Y52: =PRODUCT($J34:Y34) -> 1.675348831 | Z52: =PRODUCT($J34:Z34) -> 1.73398604 | AA52: =PRODUCT($J34:AA34) -> 1.794675551 | AB52: =PRODUCT($J34:AB34) -> 1.857489196 | AC52: =PRODUCT($J34:AC34) -> 1.922501317 | AD52: =PRODUCT($J34:AD34) -> 1.989788863 | AE52: =PRODUCT($J34:AE34) -> 2.059431474 | AF52: =PRODUCT($J34:AF34) -> 2.131511575 | AG52: =PRODUCT($J34:AG34) -> 2.20611448 | AH52: =PRODUCT($J34:AH34) -> 2.283328487 | AI52: =PRODUCT($J34:AI34) -> 2.363244984 | AJ52: =PRODUCT($J34:AJ34) -> 2.445958559 | AK52: =PRODUCT($J34:AK34) -> 2.531567108 | AL52: =PRODUCT($J34:AL34) -> 2.620171957 | AM52: =PRODUCT($J34:AM34) -> 2.711877976 | AN52: =PRODUCT($J34:AN34) -> 2.806793705
E53: Steenkool | G53: Factor | J53: =PRODUCT($J35:J35) -> 1 | K53: =PRODUCT($J35:K35) -> 1 | L53: =PRODUCT($J35:L35) -> 1 | M53: =PRODUCT($J35:M35) -> 1 | N53: =PRODUCT($J35:N35) -> 1 | O53: =PRODUCT($J35:O35) -> 1 | P53: =PRODUCT($J35:P35) -> 1 | Q53: =PRODUCT($J35:Q35) -> 1 | R53: =PRODUCT($J35:R35) -> 1 | S53: =PRODUCT($J35:S35) -> 1 | T53: =PRODUCT($J35:T35) -> 1 | U53: =PRODUCT($J35:U35) -> 1 | V53: =PRODUCT($J35:V35) -> 1 | W53: =PRODUCT($J35:W35) -> 1 | X53: =PRODUCT($J35:X35) -> 1 | Y53: =PRODUCT($J35:Y35) -> 1 | Z53: =PRODUCT($J35:Z35) -> 1 | AA53: =PRODUCT($J35:AA35) -> 1 | AB53: =PRODUCT($J35:AB35) -> 1 | AC53: =PRODUCT($J35:AC35) -> 1 | AD53: =PRODUCT($J35:AD35) -> 1 | AE53: =PRODUCT($J35:AE35) -> 1 | AF53: =PRODUCT($J35:AF35) -> 1 | AG53: =PRODUCT($J35:AG35) -> 1 | AH53: =PRODUCT($J35:AH35) -> 1 | AI53: =PRODUCT($J35:AI35) -> 1 | AJ53: =PRODUCT($J35:AJ35) -> 1 | AK53: =PRODUCT($J35:AK35) -> 1 | AL53: =PRODUCT($J35:AL35) -> 1 | AM53: =PRODUCT($J35:AM35) -> 1 | AN53: =PRODUCT($J35:AN35) -> 1
E54: Dierlijk vet | G54: Factor | J54: =PRODUCT($J36:J36) -> 1 | K54: =PRODUCT($J36:K36) -> 1 | L54: =PRODUCT($J36:L36) -> 1 | M54: =PRODUCT($J36:M36) -> 1 | N54: =PRODUCT($J36:N36) -> 1 | O54: =PRODUCT($J36:O36) -> 1 | P54: =PRODUCT($J36:P36) -> 1 | Q54: =PRODUCT($J36:Q36) -> 1 | R54: =PRODUCT($J36:R36) -> 1 | S54: =PRODUCT($J36:S36) -> 1 | T54: =PRODUCT($J36:T36) -> 1 | U54: =PRODUCT($J36:U36) -> 1 | V54: =PRODUCT($J36:V36) -> 1 | W54: =PRODUCT($J36:W36) -> 1 | X54: =PRODUCT($J36:X36) -> 1 | Y54: =PRODUCT($J36:Y36) -> 1 | Z54: =PRODUCT($J36:Z36) -> 1 | AA54: =PRODUCT($J36:AA36) -> 1 | AB54: =PRODUCT($J36:AB36) -> 1 | AC54: =PRODUCT($J36:AC36) -> 1 | AD54: =PRODUCT($J36:AD36) -> 1 | AE54: =PRODUCT($J36:AE36) -> 1 | AF54: =PRODUCT($J36:AF36) -> 1 | AG54: =PRODUCT($J36:AG36) -> 1 | AH54: =PRODUCT($J36:AH36) -> 1 | AI54: =PRODUCT($J36:AI36) -> 1 | AJ54: =PRODUCT($J36:AJ36) -> 1 | AK54: =PRODUCT($J36:AK36) -> 1 | AL54: =PRODUCT($J36:AL36) -> 1 | AM54: =PRODUCT($J36:AM36) -> 1 | AN54: =PRODUCT($J36:AN36) -> 1
E55: Pellets | G55: Factor | J55: =PRODUCT($J37:J37) -> 1 | K55: =PRODUCT($J37:K37) -> 1 | L55: =PRODUCT($J37:L37) -> 1 | M55: =PRODUCT($J37:M37) -> 1 | N55: =PRODUCT($J37:N37) -> 1 | O55: =PRODUCT($J37:O37) -> 1 | P55: =PRODUCT($J37:P37) -> 1 | Q55: =PRODUCT($J37:Q37) -> 1 | R55: =PRODUCT($J37:R37) -> 1 | S55: =PRODUCT($J37:S37) -> 1 | T55: =PRODUCT($J37:T37) -> 1 | U55: =PRODUCT($J37:U37) -> 1 | V55: =PRODUCT($J37:V37) -> 1 | W55: =PRODUCT($J37:W37) -> 1 | X55: =PRODUCT($J37:X37) -> 1 | Y55: =PRODUCT($J37:Y37) -> 1 | Z55: =PRODUCT($J37:Z37) -> 1 | AA55: =PRODUCT($J37:AA37) -> 1 | AB55: =PRODUCT($J37:AB37) -> 1 | AC55: =PRODUCT($J37:AC37) -> 1 | AD55: =PRODUCT($J37:AD37) -> 1 | AE55: =PRODUCT($J37:AE37) -> 1 | AF55: =PRODUCT($J37:AF37) -> 1 | AG55: =PRODUCT($J37:AG37) -> 1 | AH55: =PRODUCT($J37:AH37) -> 1 | AI55: =PRODUCT($J37:AI37) -> 1 | AJ55: =PRODUCT($J37:AJ37) -> 1 | AK55: =PRODUCT($J37:AK37) -> 1 | AL55: =PRODUCT($J37:AL37) -> 1 | AM55: =PRODUCT($J37:AM37) -> 1 | AN55: =PRODUCT($J37:AN37) -> 1
E56: Houtchips | G56: Factor | J56: =PRODUCT($J38:J38) -> 1 | K56: =PRODUCT($J38:K38) -> 1.011 | L56: =PRODUCT($J38:L38) -> 1.022121 | M56: =PRODUCT($J38:M38) -> 1.033364331 | N56: =PRODUCT($J38:N38) -> 1.044731339 | O56: =PRODUCT($J38:O38) -> 1.056223383 | P56: =PRODUCT($J38:P38) -> 1.067841841 | Q56: =PRODUCT($J38:Q38) -> 1.079588101 | R56: =PRODUCT($J38:R38) -> 1.09146357 | S56: =PRODUCT($J38:S38) -> 1.103469669 | T56: =PRODUCT($J38:T38) -> 1.115607836 | U56: =PRODUCT($J38:U38) -> 1.127879522 | V56: =PRODUCT($J38:V38) -> 1.140286196 | W56: =PRODUCT($J38:W38) -> 1.152829345 | X56: =PRODUCT($J38:X38) -> 1.165510467 | Y56: =PRODUCT($J38:Y38) -> 1.178331083 | Z56: =PRODUCT($J38:Z38) -> 1.191292725 | AA56: =PRODUCT($J38:AA38) -> 1.204396944 | AB56: =PRODUCT($J38:AB38) -> 1.217645311 | AC56: =PRODUCT($J38:AC38) -> 1.231039409 | AD56: =PRODUCT($J38:AD38) -> 1.244580843 | AE56: =PRODUCT($J38:AE38) -> 1.258271232 | AF56: =PRODUCT($J38:AF38) -> 1.272112216 | AG56: =PRODUCT($J38:AG38) -> 1.28610545 | AH56: =PRODUCT($J38:AH38) -> 1.30025261 | AI56: =PRODUCT($J38:AI38) -> 1.314555389 | AJ56: =PRODUCT($J38:AJ38) -> 1.329015498 | AK56: =PRODUCT($J38:AK38) -> 1.343634668 | AL56: =PRODUCT($J38:AL38) -> 1.35841465 | AM56: =PRODUCT($J38:AM38) -> 1.373357211 | AN56: =PRODUCT($J38:AN38) -> 1.38846414
E57: Kost OBA | G57: Factor | J57: =PRODUCT($J39:J39) -> 1 | K57: =PRODUCT($J39:K39) -> 1 | L57: =PRODUCT($J39:L39) -> 1 | M57: =PRODUCT($J39:M39) -> 1 | N57: =PRODUCT($J39:N39) -> 1 | O57: =PRODUCT($J39:O39) -> 1 | P57: =PRODUCT($J39:P39) -> 1 | Q57: =PRODUCT($J39:Q39) -> 1 | R57: =PRODUCT($J39:R39) -> 1 | S57: =PRODUCT($J39:S39) -> 1 | T57: =PRODUCT($J39:T39) -> 1 | U57: =PRODUCT($J39:U39) -> 1 | V57: =PRODUCT($J39:V39) -> 1 | W57: =PRODUCT($J39:W39) -> 1 | X57: =PRODUCT($J39:X39) -> 1 | Y57: =PRODUCT($J39:Y39) -> 1 | Z57: =PRODUCT($J39:Z39) -> 1 | AA57: =PRODUCT($J39:AA39) -> 1 | AB57: =PRODUCT($J39:AB39) -> 1 | AC57: =PRODUCT($J39:AC39) -> 1 | AD57: =PRODUCT($J39:AD39) -> 1 | AE57: =PRODUCT($J39:AE39) -> 1 | AF57: =PRODUCT($J39:AF39) -> 1 | AG57: =PRODUCT($J39:AG39) -> 1 | AH57: =PRODUCT($J39:AH39) -> 1 | AI57: =PRODUCT($J39:AI39) -> 1 | AJ57: =PRODUCT($J39:AJ39) -> 1 | AK57: =PRODUCT($J39:AK39) -> 1 | AL57: =PRODUCT($J39:AL39) -> 1 | AM57: =PRODUCT($J39:AM39) -> 1 | AN57: =PRODUCT($J39:AN39) -> 1
E58: Mest-energieteelt | G58: Factor | J58: =PRODUCT($J40:J40) -> 1 | K58: =PRODUCT($J40:K40) -> 1 | L58: =PRODUCT($J40:L40) -> 1 | M58: =PRODUCT($J40:M40) -> 1 | N58: =PRODUCT($J40:N40) -> 1 | O58: =PRODUCT($J40:O40) -> 1 | P58: =PRODUCT($J40:P40) -> 1 | Q58: =PRODUCT($J40:Q40) -> 1 | R58: =PRODUCT($J40:R40) -> 1 | S58: =PRODUCT($J40:S40) -> 1 | T58: =PRODUCT($J40:T40) -> 1 | U58: =PRODUCT($J40:U40) -> 1 | V58: =PRODUCT($J40:V40) -> 1 | W58: =PRODUCT($J40:W40) -> 1 | X58: =PRODUCT($J40:X40) -> 1 | Y58: =PRODUCT($J40:Y40) -> 1 | Z58: =PRODUCT($J40:Z40) -> 1 | AA58: =PRODUCT($J40:AA40) -> 1 | AB58: =PRODUCT($J40:AB40) -> 1 | AC58: =PRODUCT($J40:AC40) -> 1 | AD58: =PRODUCT($J40:AD40) -> 1 | AE58: =PRODUCT($J40:AE40) -> 1 | AF58: =PRODUCT($J40:AF40) -> 1 | AG58: =PRODUCT($J40:AG40) -> 1 | AH58: =PRODUCT($J40:AH40) -> 1 | AI58: =PRODUCT($J40:AI40) -> 1 | AJ58: =PRODUCT($J40:AJ40) -> 1 | AK58: =PRODUCT($J40:AK40) -> 1 | AL58: =PRODUCT($J40:AL40) -> 1 | AM58: =PRODUCT($J40:AM40) -> 1 | AN58: =PRODUCT($J40:AN40) -> 1
E59: Opbrengst GFT | G59: Factor | J59: =PRODUCT($J41:J41) -> 1 | K59: =PRODUCT($J41:K41) -> 1 | L59: =PRODUCT($J41:L41) -> 1 | M59: =PRODUCT($J41:M41) -> 1 | N59: =PRODUCT($J41:N41) -> 1 | O59: =PRODUCT($J41:O41) -> 1 | P59: =PRODUCT($J41:P41) -> 1 | Q59: =PRODUCT($J41:Q41) -> 1 | R59: =PRODUCT($J41:R41) -> 1 | S59: =PRODUCT($J41:S41) -> 1 | T59: =PRODUCT($J41:T41) -> 1 | U59: =PRODUCT($J41:U41) -> 1 | V59: =PRODUCT($J41:V41) -> 1 | W59: =PRODUCT($J41:W41) -> 1 | X59: =PRODUCT($J41:X41) -> 1 | Y59: =PRODUCT($J41:Y41) -> 1 | Z59: =PRODUCT($J41:Z41) -> 1 | AA59: =PRODUCT($J41:AA41) -> 1 | AB59: =PRODUCT($J41:AB41) -> 1 | AC59: =PRODUCT($J41:AC41) -> 1 | AD59: =PRODUCT($J41:AD41) -> 1 | AE59: =PRODUCT($J41:AE41) -> 1 | AF59: =PRODUCT($J41:AF41) -> 1 | AG59: =PRODUCT($J41:AG41) -> 1 | AH59: =PRODUCT($J41:AH41) -> 1 | AI59: =PRODUCT($J41:AI41) -> 1 | AJ59: =PRODUCT($J41:AJ41) -> 1 | AK59: =PRODUCT($J41:AK41) -> 1 | AL59: =PRODUCT($J41:AL41) -> 1 | AM59: =PRODUCT($J41:AM41) -> 1 | AN59: =PRODUCT($J41:AN41) -> 1
E60: Kost afzet digestaat mest-energieteelt | G60: Factor | J60: =PRODUCT($J42:J42) -> 1 | K60: =PRODUCT($J42:K42) -> 1 | L60: =PRODUCT($J42:L42) -> 1 | M60: =PRODUCT($J42:M42) -> 1 | N60: =PRODUCT($J42:N42) -> 1 | O60: =PRODUCT($J42:O42) -> 1 | P60: =PRODUCT($J42:P42) -> 1 | Q60: =PRODUCT($J42:Q42) -> 1 | R60: =PRODUCT($J42:R42) -> 1 | S60: =PRODUCT($J42:S42) -> 1 | T60: =PRODUCT($J42:T42) -> 1 | U60: =PRODUCT($J42:U42) -> 1 | V60: =PRODUCT($J42:V42) -> 1 | W60: =PRODUCT($J42:W42) -> 1 | X60: =PRODUCT($J42:X42) -> 1 | Y60: =PRODUCT($J42:Y42) -> 1 | Z60: =PRODUCT($J42:Z42) -> 1 | AA60: =PRODUCT($J42:AA42) -> 1 | AB60: =PRODUCT($J42:AB42) -> 1 | AC60: =PRODUCT($J42:AC42) -> 1 | AD60: =PRODUCT($J42:AD42) -> 1 | AE60: =PRODUCT($J42:AE42) -> 1 | AF60: =PRODUCT($J42:AF42) -> 1 | AG60: =PRODUCT($J42:AG42) -> 1 | AH60: =PRODUCT($J42:AH42) -> 1 | AI60: =PRODUCT($J42:AI42) -> 1 | AJ60: =PRODUCT($J42:AJ42) -> 1 | AK60: =PRODUCT($J42:AK42) -> 1 | AL60: =PRODUCT($J42:AL42) -> 1 | AM60: =PRODUCT($J42:AM42) -> 1 | AN60: =PRODUCT($J42:AN42) -> 1
E61: Kost afzet digestaat OBA | G61: Factor | J61: =PRODUCT($J43:J43) -> 1 | K61: =PRODUCT($J43:K43) -> 1 | L61: =PRODUCT($J43:L43) -> 1 | M61: =PRODUCT($J43:M43) -> 1 | N61: =PRODUCT($J43:N43) -> 1 | O61: =PRODUCT($J43:O43) -> 1 | P61: =PRODUCT($J43:P43) -> 1 | Q61: =PRODUCT($J43:Q43) -> 1 | R61: =PRODUCT($J43:R43) -> 1 | S61: =PRODUCT($J43:S43) -> 1 | T61: =PRODUCT($J43:T43) -> 1 | U61: =PRODUCT($J43:U43) -> 1 | V61: =PRODUCT($J43:V43) -> 1 | W61: =PRODUCT($J43:W43) -> 1 | X61: =PRODUCT($J43:X43) -> 1 | Y61: =PRODUCT($J43:Y43) -> 1 | Z61: =PRODUCT($J43:Z43) -> 1 | AA61: =PRODUCT($J43:AA43) -> 1 | AB61: =PRODUCT($J43:AB43) -> 1 | AC61: =PRODUCT($J43:AC43) -> 1 | AD61: =PRODUCT($J43:AD43) -> 1 | AE61: =PRODUCT($J43:AE43) -> 1 | AF61: =PRODUCT($J43:AF43) -> 1 | AG61: =PRODUCT($J43:AG43) -> 1 | AH61: =PRODUCT($J43:AH43) -> 1 | AI61: =PRODUCT($J43:AI43) -> 1 | AJ61: =PRODUCT($J43:AJ43) -> 1 | AK61: =PRODUCT($J43:AK43) -> 1 | AL61: =PRODUCT($J43:AL43) -> 1 | AM61: =PRODUCT($J43:AM43) -> 1 | AN61: =PRODUCT($J43:AN43) -> 1
E62: O&M kosten | G62: Factor | J62: =PRODUCT($J44:J44) -> 1 | K62: =PRODUCT($J44:K44) -> 1.02 | L62: =PRODUCT($J44:L44) -> 1.0404 | M62: =PRODUCT($J44:M44) -> 1.061208 | N62: =PRODUCT($J44:N44) -> 1.08243216 | O62: =PRODUCT($J44:O44) -> 1.104080803 | P62: =PRODUCT($J44:P44) -> 1.126162419 | Q62: =PRODUCT($J44:Q44) -> 1.148685668 | R62: =PRODUCT($J44:R44) -> 1.171659381 | S62: =PRODUCT($J44:S44) -> 1.195092569 | T62: =PRODUCT($J44:T44) -> 1.21899442 | U62: =PRODUCT($J44:U44) -> 1.243374308 | V62: =PRODUCT($J44:V44) -> 1.268241795 | W62: =PRODUCT($J44:W44) -> 1.29360663 | X62: =PRODUCT($J44:X44) -> 1.319478763 | Y62: =PRODUCT($J44:Y44) -> 1.345868338 | Z62: =PRODUCT($J44:Z44) -> 1.372785705 | AA62: =PRODUCT($J44:AA44) -> 1.400241419 | AB62: =PRODUCT($J44:AB44) -> 1.428246248 | AC62: =PRODUCT($J44:AC44) -> 1.456811173 | AD62: =PRODUCT($J44:AD44) -> 1.485947396 | AE62: =PRODUCT($J44:AE44) -> 1.515666344 | AF62: =PRODUCT($J44:AF44) -> 1.545979671 | AG62: =PRODUCT($J44:AG44) -> 1.576899264 | AH62: =PRODUCT($J44:AH44) -> 1.608437249 | AI62: =PRODUCT($J44:AI44) -> 1.640605994 | AJ62: =PRODUCT($J44:AJ44) -> 1.673418114 | AK62: =PRODUCT($J44:AK44) -> 1.706886477 | AL62: =PRODUCT($J44:AL44) -> 1.741024206 | AM62: =PRODUCT($J44:AM44) -> 1.77584469 | AN62: =PRODUCT($J44:AN44) -> 1.811361584
E63: 0 | G63: Factor | J63: =PRODUCT($J45:J45) -> 1 | K63: =PRODUCT($J45:K45) -> 1 | L63: =PRODUCT($J45:L45) -> 1 | M63: =PRODUCT($J45:M45) -> 1 | N63: =PRODUCT($J45:N45) -> 1 | O63: =PRODUCT($J45:O45) -> 1 | P63: =PRODUCT($J45:P45) -> 1 | Q63: =PRODUCT($J45:Q45) -> 1 | R63: =PRODUCT($J45:R45) -> 1 | S63: =PRODUCT($J45:S45) -> 1 | T63: =PRODUCT($J45:T45) -> 1 | U63: =PRODUCT($J45:U45) -> 1 | V63: =PRODUCT($J45:V45) -> 1 | W63: =PRODUCT($J45:W45) -> 1 | X63: =PRODUCT($J45:X45) -> 1 | Y63: =PRODUCT($J45:Y45) -> 1 | Z63: =PRODUCT($J45:Z45) -> 1 | AA63: =PRODUCT($J45:AA45) -> 1 | AB63: =PRODUCT($J45:AB45) -> 1 | AC63: =PRODUCT($J45:AC45) -> 1 | AD63: =PRODUCT($J45:AD45) -> 1 | AE63: =PRODUCT($J45:AE45) -> 1 | AF63: =PRODUCT($J45:AF45) -> 1 | AG63: =PRODUCT($J45:AG45) -> 1 | AH63: =PRODUCT($J45:AH45) -> 1 | AI63: =PRODUCT($J45:AI45) -> 1 | AJ63: =PRODUCT($J45:AJ45) -> 1 | AK63: =PRODUCT($J45:AK45) -> 1 | AL63: =PRODUCT($J45:AL45) -> 1 | AM63: =PRODUCT($J45:AM45) -> 1 | AN63: =PRODUCT($J45:AN45) -> 1
B65: Jaarlijkse prijsevolutie bij simulatie van een OT-pad
E67: =E$9 -> Jaar | F67: =F$9 -> 0 | G67: Volgnr | H67: 0 | I67: 0 | J67: 0 | K67: 1 | L67: 2 | M67: 3 | N67: 4 | O67: 5 | P67: 6 | Q67: 7 | R67: 8 | S67: 9 | T67: 10 | U67: 11 | V67: 12 | W67: 13 | X67: 14 | Y67: 15 | Z67: 16 | AA67: 17 | AB67: 18 | AC67: 19 | AD67: 20 | AE67: 21 | AF67: 22 | AG67: 23 | AH67: 24 | AI67: 25 | AJ67: 26 | AK67: 27 | AL67: 28 | AM67: 29 | AN67: 30
E68: Elektriciteit productiekost | G68: [%] | I68: 0.05 | J68: 0 | K68: 0.05 | L68: 0.05 | M68: 0.05 | N68: 0.05 | O68: 0.05 | P68: 0.05 | Q68: 0.05 | R68: 0.05 | S68: 0.05 | T68: 0.05 | U68: 0.05 | V68: 0.05 | W68: 0.05 | X68: 0.05 | Y68: 0.05 | Z68: 0.05 | AA68: 0.05 | AB68: 0.05 | AC68: 0.05 | AD68: 0.05 | AE68: 0.05 | AF68: 0.05 | AG68: 0.05 | AH68: 0.05 | AI68: 0.05 | AJ68: 0.05 | AK68: 0.05 | AL68: 0.05 | AM68: 0.05 | AN68: 0.05
E69: Elektriciteit eindverbruiker | G69: [%] | I69: 0.035 | J69: 0 | K69: 0.035 | L69: 0.035 | M69: 0.035 | N69: 0.035 | O69: 0.035 | P69: 0.035 | Q69: 0.035 | R69: 0.035 | S69: 0.035 | T69: 0.035 | U69: 0.035 | V69: 0.035 | W69: 0.035 | X69: 0.035 | Y69: 0.035 | Z69: 0.035 | AA69: 0.035 | AB69: 0.035 | AC69: 0.035 | AD69: 0.035 | AE69: 0.035 | AF69: 0.035 | AG69: 0.035 | AH69: 0.035 | AI69: 0.035 | AJ69: 0.035 | AK69: 0.035 | AL69: 0.035 | AM69: 0.035 | AN69: 0.035
E70: Aardgas | G70: [%] | I70: 0.057 | J70: 0 | K70: 0.057 | L70: 0.057 | M70: 0.057 | N70: 0.057 | O70: 0.057 | P70: 0.057 | Q70: 0.057 | R70: 0.057 | S70: 0.057 | T70: 0.057 | U70: 0.057 | V70: 0.057 | W70: 0.057 | X70: 0.057 | Y70: 0.057 | Z70: 0.057 | AA70: 0.057 | AB70: 0.057 | AC70: 0.057 | AD70: 0.057 | AE70: 0.057 | AF70: 0.057 | AG70: 0.057 | AH70: 0.057 | AI70: 0.057 | AJ70: 0.057 | AK70: 0.057 | AL70: 0.057 | AM70: 0.057 | AN70: 0.057
E71: Steenkool | G71: [%] | I71: 0.06 | J71: 0 | K71: 0.06 | L71: 0.06 | M71: 0.06 | N71: 0.06 | O71: 0.06 | P71: 0.06 | Q71: 0.06 | R71: 0.06 | S71: 0.06 | T71: 0.06 | U71: 0.06 | V71: 0.06 | W71: 0.06 | X71: 0.06 | Y71: 0.06 | Z71: 0.06 | AA71: 0.06 | AB71: 0.06 | AC71: 0.06 | AD71: 0.06 | AE71: 0.06 | AF71: 0.06 | AG71: 0.06 | AH71: 0.06 | AI71: 0.06 | AJ71: 0.06 | AK71: 0.06 | AL71: 0.06 | AM71: 0.06 | AN71: 0.06
E72: Dierlijk vet | G72: [%] | I72: 0.05 | J72: 0 | K72: 0.05 | L72: 0.05 | M72: 0.05 | N72: 0.05 | O72: 0.05 | P72: 0.05 | Q72: 0.05 | R72: 0.05 | S72: 0.05 | T72: 0.05 | U72: 0.05 | V72: 0.05 | W72: 0.05 | X72: 0.05 | Y72: 0.05 | Z72: 0.05 | AA72: 0.05 | AB72: 0.05 | AC72: 0.05 | AD72: 0.05 | AE72: 0.05 | AF72: 0.05 | AG72: 0.05 | AH72: 0.05 | AI72: 0.05 | AJ72: 0.05 | AK72: 0.05 | AL72: 0.05 | AM72: 0.05 | AN72: 0.05
E73: Pellets | G73: [%] | I73: 0.05 | J73: 0 | K73: 0.05 | L73: 0.05 | M73: 0.05 | N73: 0.05 | O73: 0.05 | P73: 0.05 | Q73: 0.05 | R73: 0.05 | S73: 0.05 | T73: 0.05 | U73: 0.05 | V73: 0.05 | W73: 0.05 | X73: 0.05 | Y73: 0.05 | Z73: 0.05 | AA73: 0.05 | AB73: 0.05 | AC73: 0.05 | AD73: 0.05 | AE73: 0.05 | AF73: 0.05 | AG73: 0.05 | AH73: 0.05 | AI73: 0.05 | AJ73: 0.05 | AK73: 0.05 | AL73: 0.05 | AM73: 0.05 | AN73: 0.05
E74: Houtchips | G74: [%] | I74: 0.077 | J74: 0 | K74: 0.077 | L74: 0.077 | M74: 0.077 | N74: 0.077 | O74: 0.077 | P74: 0.077 | Q74: 0.077 | R74: 0.077 | S74: 0.077 | T74: 0.077 | U74: 0.077 | V74: 0.077 | W74: 0.077 | X74: 0.077 | Y74: 0.077 | Z74: 0.077 | AA74: 0.077 | AB74: 0.077 | AC74: 0.077 | AD74: 0.077 | AE74: 0.077 | AF74: 0.077 | AG74: 0.077 | AH74: 0.077 | AI74: 0.077 | AJ74: 0.077 | AK74: 0.077 | AL74: 0.077 | AM74: 0.077 | AN74: 0.077
E75: Kost OBA | G75: [%] | I75: 0.02 | J75: 0 | K75: 0.02 | L75: 0.02 | M75: 0.02 | N75: 0.02 | O75: 0.02 | P75: 0.02 | Q75: 0.02 | R75: 0.02 | S75: 0.02 | T75: 0.02 | U75: 0.02 | V75: 0.02 | W75: 0.02 | X75: 0.02 | Y75: 0.02 | Z75: 0.02 | AA75: 0.02 | AB75: 0.02 | AC75: 0.02 | AD75: 0.02 | AE75: 0.02 | AF75: 0.02 | AG75: 0.02 | AH75: 0.02 | AI75: 0.02 | AJ75: 0.02 | AK75: 0.02 | AL75: 0.02 | AM75: 0.02 | AN75: 0.02
E76: Mest-energieteelt | G76: [%] | I76: 0.02 | J76: 0 | K76: 0.02 | L76: 0.02 | M76: 0.02 | N76: 0.02 | O76: 0.02 | P76: 0.02 | Q76: 0.02 | R76: 0.02 | S76: 0.02 | T76: 0.02 | U76: 0.02 | V76: 0.02 | W76: 0.02 | X76: 0.02 | Y76: 0.02 | Z76: 0.02 | AA76: 0.02 | AB76: 0.02 | AC76: 0.02 | AD76: 0.02 | AE76: 0.02 | AF76: 0.02 | AG76: 0.02 | AH76: 0.02 | AI76: 0.02 | AJ76: 0.02 | AK76: 0.02 | AL76: 0.02 | AM76: 0.02 | AN76: 0.02
E77: Opbrengst GFT | G77: [%] | I77: -0.02 | J77: 0 | K77: -0.02 | L77: -0.02 | M77: -0.02 | N77: -0.02 | O77: -0.02 | P77: -0.02 | Q77: -0.02 | R77: -0.02 | S77: -0.02 | T77: -0.02 | U77: -0.02 | V77: -0.02 | W77: -0.02 | X77: -0.02 | Y77: -0.02 | Z77: -0.02 | AA77: -0.02 | AB77: -0.02 | AC77: -0.02 | AD77: -0.02 | AE77: -0.02 | AF77: -0.02 | AG77: -0.02 | AH77: -0.02 | AI77: -0.02 | AJ77: -0.02 | AK77: -0.02 | AL77: -0.02 | AM77: -0.02 | AN77: -0.02
E78: Kost afzet digestaat mest-energieteelt | G78: [%] | I78: 0.02 | J78: 0 | K78: 0.02 | L78: 0.02 | M78: 0.02 | N78: 0.02 | O78: 0.02 | P78: 0.02 | Q78: 0.02 | R78: 0.02 | S78: 0.02 | T78: 0.02 | U78: 0.02 | V78: 0.02 | W78: 0.02 | X78: 0.02 | Y78: 0.02 | Z78: 0.02 | AA78: 0.02 | AB78: 0.02 | AC78: 0.02 | AD78: 0.02 | AE78: 0.02 | AF78: 0.02 | AG78: 0.02 | AH78: 0.02 | AI78: 0.02 | AJ78: 0.02 | AK78: 0.02 | AL78: 0.02 | AM78: 0.02 | AN78: 0.02
E79: Kost afzet digestaat OBA | G79: [%] | I79: 0.02 | J79: 0 | K79: 0.02 | L79: 0.02 | M79: 0.02 | N79: 0.02 | O79: 0.02 | P79: 0.02 | Q79: 0.02 | R79: 0.02 | S79: 0.02 | T79: 0.02 | U79: 0.02 | V79: 0.02 | W79: 0.02 | X79: 0.02 | Y79: 0.02 | Z79: 0.02 | AA79: 0.02 | AB79: 0.02 | AC79: 0.02 | AD79: 0.02 | AE79: 0.02 | AF79: 0.02 | AG79: 0.02 | AH79: 0.02 | AI79: 0.02 | AJ79: 0.02 | AK79: 0.02 | AL79: 0.02 | AM79: 0.02 | AN79: 0.02
E80: O&M kosten | G80: [%] | I80: 0.02 | J80: 0 | K80: 0.02 | L80: 0.02 | M80: 0.02 | N80: 0.02 | O80: 0.02 | P80: 0.02 | Q80: 0.02 | R80: 0.02 | S80: 0.02 | T80: 0.02 | U80: 0.02 | V80: 0.02 | W80: 0.02 | X80: 0.02 | Y80: 0.02 | Z80: 0.02 | AA80: 0.02 | AB80: 0.02 | AC80: 0.02 | AD80: 0.02 | AE80: 0.02 | AF80: 0.02 | AG80: 0.02 | AH80: 0.02 | AI80: 0.02 | AJ80: 0.02 | AK80: 0.02 | AL80: 0.02 | AM80: 0.02 | AN80: 0.02
E81: 0 | G81: [%] | J81: 0 | K81: 0 | L81: 0 | M81: 0 | N81: 0 | O81: 0 | P81: 0 | Q81: 0 | R81: 0 | S81: 0 | T81: 0 | U81: 0 | V81: 0 | W81: 0 | X81: 0 | Y81: 0 | Z81: 0 | AA81: 0 | AB81: 0 | AC81: 0 | AD81: 0 | AE81: 0 | AF81: 0 | AG81: 0 | AH81: 0 | AI81: 0 | AJ81: 0 | AK81: 0 | AL81: 0 | AM81: 0 | AN81: 0
B83: Jaarlijkse prijsindex bij simulatie van een OT-pad
E85: =E$9 -> Jaar | F85: =F$9 -> 0 | G85: Volgnr | H85: 0 | I85: 0 | J85: 0 | K85: 1 | L85: 2 | M85: 3 | N85: 4 | O85: 5 | P85: 6 | Q85: 7 | R85: 8 | S85: 9 | T85: 10 | U85: 11 | V85: 12 | W85: 13 | X85: 14 | Y85: 15 | Z85: 16 | AA85: 17 | AB85: 18 | AC85: 19 | AD85: 20 | AE85: 21 | AF85: 22 | AG85: 23 | AH85: 24 | AI85: 25 | AJ85: 26 | AK85: 27 | AL85: 28 | AM85: 29 | AN85: 30
E86: Elektriciteit productiekost | G86: Factor | J86: =(1+J68) -> 1 | K86: 1.05 | L86: 1.05 | M86: 1.05 | N86: 1.05 | O86: 1.05 | P86: 1.05 | Q86: 1.05 | R86: 1.05 | S86: 1.05 | T86: 1.05 | U86: 1.05 | V86: 1.05 | W86: 1.05 | X86: 1.05 | Y86: 1.05 | Z86: 1.05 | AA86: 1.05 | AB86: 1.05 | AC86: 1.05 | AD86: 1.05 | AE86: 1.05 | AF86: 1.05 | AG86: 1.05 | AH86: 1.05 | AI86: 1.05 | AJ86: 1.05 | AK86: 1.05 | AL86: 1.05 | AM86: 1.05 | AN86: 1.05
E87: Elektriciteit eindverbruiker | G87: Factor | J87: 1 | K87: 1.035 | L87: 1.035 | M87: 1.035 | N87: 1.035 | O87: 1.035 | P87: 1.035 | Q87: 1.035 | R87: 1.035 | S87: 1.035 | T87: 1.035 | U87: 1.035 | V87: 1.035 | W87: 1.035 | X87: 1.035 | Y87: 1.035 | Z87: 1.035 | AA87: 1.035 | AB87: 1.035 | AC87: 1.035 | AD87: 1.035 | AE87: 1.035 | AF87: 1.035 | AG87: 1.035 | AH87: 1.035 | AI87: 1.035 | AJ87: 1.035 | AK87: 1.035 | AL87: 1.035 | AM87: 1.035 | AN87: 1.035
E88: Aardgas | G88: Factor | J88: 1 | K88: 1.057 | L88: 1.057 | M88: 1.057 | N88: 1.057 | O88: 1.057 | P88: 1.057 | Q88: 1.057 | R88: 1.057 | S88: 1.057 | T88: 1.057 | U88: 1.057 | V88: 1.057 | W88: 1.057 | X88: 1.057 | Y88: 1.057 | Z88: 1.057 | AA88: 1.057 | AB88: 1.057 | AC88: 1.057 | AD88: 1.057 | AE88: 1.057 | AF88: 1.057 | AG88: 1.057 | AH88: 1.057 | AI88: 1.057 | AJ88: 1.057 | AK88: 1.057 | AL88: 1.057 | AM88: 1.057 | AN88: 1.057
E89: Steenkool | G89: Factor | J89: 1 | K89: 1.06 | L89: 1.06 | M89: 1.06 | N89: 1.06 | O89: 1.06 | P89: 1.06 | Q89: 1.06 | R89: 1.06 | S89: 1.06 | T89: 1.06 | U89: 1.06 | V89: 1.06 | W89: 1.06 | X89: 1.06 | Y89: 1.06 | Z89: 1.06 | AA89: 1.06 | AB89: 1.06 | AC89: 1.06 | AD89: 1.06 | AE89: 1.06 | AF89: 1.06 | AG89: 1.06 | AH89: 1.06 | AI89: 1.06 | AJ89: 1.06 | AK89: 1.06 | AL89: 1.06 | AM89: 1.06 | AN89: 1.06
E90: Dierlijk vet | G90: Factor | J90: 1 | K90: 1.05 | L90: 1.05 | M90: 1.05 | N90: 1.05 | O90: 1.05 | P90: 1.05 | Q90: 1.05 | R90: 1.05 | S90: 1.05 | T90: 1.05 | U90: 1.05 | V90: 1.05 | W90: 1.05 | X90: 1.05 | Y90: 1.05 | Z90: 1.05 | AA90: 1.05 | AB90: 1.05 | AC90: 1.05 | AD90: 1.05 | AE90: 1.05 | AF90: 1.05 | AG90: 1.05 | AH90: 1.05 | AI90: 1.05 | AJ90: 1.05 | AK90: 1.05 | AL90: 1.05 | AM90: 1.05 | AN90: 1.05
E91: Pellets | G91: Factor | J91: 1 | K91: 1.05 | L91: 1.05 | M91: 1.05 | N91: 1.05 | O91: 1.05 | P91: 1.05 | Q91: 1.05 | R91: 1.05 | S91: 1.05 | T91: 1.05 | U91: 1.05 | V91: 1.05 | W91: 1.05 | X91: 1.05 | Y91: 1.05 | Z91: 1.05 | AA91: 1.05 | AB91: 1.05 | AC91: 1.05 | AD91: 1.05 | AE91: 1.05 | AF91: 1.05 | AG91: 1.05 | AH91: 1.05 | AI91: 1.05 | AJ91: 1.05 | AK91: 1.05 | AL91: 1.05 | AM91: 1.05 | AN91: 1.05
E92: Houtchips | G92: Factor | J92: 1 | K92: 1.077 | L92: 1.077 | M92: 1.077 | N92: 1.077 | O92: 1.077 | P92: 1.077 | Q92: 1.077 | R92: 1.077 | S92: 1.077 | T92: 1.077 | U92: 1.077 | V92: 1.077 | W92: 1.077 | X92: 1.077 | Y92: 1.077 | Z92: 1.077 | AA92: 1.077 | AB92: 1.077 | AC92: 1.077 | AD92: 1.077 | AE92: 1.077 | AF92: 1.077 | AG92: 1.077 | AH92: 1.077 | AI92: 1.077 | AJ92: 1.077 | AK92: 1.077 | AL92: 1.077 | AM92: 1.077 | AN92: 1.077
E93: Kost OBA | G93: Factor | J93: 1 | K93: 1.02 | L93: 1.02 | M93: 1.02 | N93: 1.02 | O93: 1.02 | P93: 1.02 | Q93: 1.02 | R93: 1.02 | S93: 1.02 | T93: 1.02 | U93: 1.02 | V93: 1.02 | W93: 1.02 | X93: 1.02 | Y93: 1.02 | Z93: 1.02 | AA93: 1.02 | AB93: 1.02 | AC93: 1.02 | AD93: 1.02 | AE93: 1.02 | AF93: 1.02 | AG93: 1.02 | AH93: 1.02 | AI93: 1.02 | AJ93: 1.02 | AK93: 1.02 | AL93: 1.02 | AM93: 1.02 | AN93: 1.02
E94: Mest-energieteelt | G94: Factor | J94: 1 | K94: 1.02 | L94: 1.02 | M94: 1.02 | N94: 1.02 | O94: 1.02 | P94: 1.02 | Q94: =(1+Q76) -> 1.02 | R94: 1.02 | S94: 1.02 | T94: 1.02 | U94: 1.02 | V94: 1.02 | W94: 1.02 | X94: 1.02 | Y94: 1.02 | Z94: 1.02 | AA94: 1.02 | AB94: 1.02 | AC94: 1.02 | AD94: 1.02 | AE94: 1.02 | AF94: 1.02 | AG94: 1.02 | AH94: 1.02 | AI94: 1.02 | AJ94: 1.02 | AK94: 1.02 | AL94: 1.02 | AM94: 1.02 | AN94: 1.02
E95: Opbrengst GFT | G95: Factor | J95: =(1+J77) -> 1 | K95: 0.98 | L95: 0.98 | M95: 0.98 | N95: 0.98 | O95: 0.98 | P95: 0.98 | Q95: 0.98 | R95: 0.98 | S95: 0.98 | T95: 0.98 | U95: 0.98 | V95: 0.98 | W95: 0.98 | X95: 0.98 | Y95: 0.98 | Z95: 0.98 | AA95: 0.98 | AB95: 0.98 | AC95: 0.98 | AD95: 0.98 | AE95: 0.98 | AF95: 0.98 | AG95: 0.98 | AH95: 0.98 | AI95: 0.98 | AJ95: 0.98 | AK95: 0.98 | AL95: 0.98 | AM95: 0.98 | AN95: 0.98
E96: Kost afzet digestaat mest-energieteelt | G96: Factor | J96: =(1+J78) -> 1 | K96: 1.02 | L96: 1.02 | M96: 1.02 | N96: 1.02 | O96: 1.02 | P96: 1.02 | Q96: 1.02 | R96: 1.02 | S96: 1.02 | T96: 1.02 | U96: 1.02 | V96: 1.02 | W96: 1.02 | X96: 1.02 | Y96: 1.02 | Z96: 1.02 | AA96: 1.02 | AB96: 1.02 | AC96: 1.02 | AD96: 1.02 | AE96: 1.02 | AF96: 1.02 | AG96: 1.02 | AH96: 1.02 | AI96: 1.02 | AJ96: 1.02 | AK96: 1.02 | AL96: 1.02 | AM96: 1.02 | AN96: 1.02
E97: Kost afzet digestaat OBA | G97: Factor | J97: =(1+J79) -> 1 | K97: 1.02 | L97: 1.02 | M97: 1.02 | N97: 1.02 | O97: 1.02 | P97: 1.02 | Q97: 1.02 | R97: 1.02 | S97: 1.02 | T97: 1.02 | U97: 1.02 | V97: 1.02 | W97: 1.02 | X97: 1.02 | Y97: 1.02 | Z97: 1.02 | AA97: 1.02 | AB97: 1.02 | AC97: 1.02 | AD97: 1.02 | AE97: 1.02 | AF97: 1.02 | AG97: 1.02 | AH97: 1.02 | AI97: 1.02 | AJ97: 1.02 | AK97: 1.02 | AL97: 1.02 | AM97: 1.02 | AN97: 1.02
E98: O&M kosten | G98: Factor | J98: =(1+J80) -> 1 | K98: 1.02 | L98: 1.02 | M98: 1.02 | N98: 1.02 | O98: 1.02 | P98: 1.02 | Q98: 1.02 | R98: 1.02 | S98: 1.02 | T98: 1.02 | U98: 1.02 | V98: 1.02 | W98: 1.02 | X98: 1.02 | Y98: 1.02 | Z98: 1.02 | AA98: 1.02 | AB98: 1.02 | AC98: 1.02 | AD98: 1.02 | AE98: 1.02 | AF98: 1.02 | AG98: 1.02 | AH98: 1.02 | AI98: 1.02 | AJ98: 1.02 | AK98: 1.02 | AL98: 1.02 | AM98: 1.02 | AN98: 1.02
E99: 0 | G99: Factor | J99: =(1+J81) -> 1 | K99: 1 | L99: 1 | M99: 1 | N99: 1 | O99: 1 | P99: 1 | Q99: 1 | R99: 1 | S99: 1 | T99: 1 | U99: 1 | V99: 1 | W99: 1 | X99: 1 | Y99: 1 | Z99: 1 | AA99: 1 | AB99: 1 | AC99: 1 | AD99: 1 | AE99: 1 | AF99: 1 | AG99: 1 | AH99: 1 | AI99: =(1+AI81) -> 1 | AJ99: 1 | AK99: 1 | AL99: 1 | AM99: 1 | AN99: 1
B101: Gecumuleerde prijsindex bij simulatie van een OT-pad
E103: =E$9 -> Jaar | F103: =F$9 -> 0 | G103: Volgnr | H103: 0 | I103: 0 | J103: 0 | K103: 1 | L103: 2 | M103: 3 | N103: 4 | O103: 5 | P103: 6 | Q103: 7 | R103: 8 | S103: 9 | T103: 10 | U103: 11 | V103: 12 | W103: 13 | X103: 14 | Y103: 15 | Z103: 16 | AA103: 17 | AB103: 18 | AC103: 19 | AD103: 20 | AE103: 21 | AF103: 22 | AG103: 23 | AH103: 24 | AI103: 25 | AJ103: 26 | AK103: 27 | AL103: 28 | AM103: 29 | AN103: 30
E104: Elektriciteit productiekost | G104: Factor | J104: =PRODUCT($J86:J86) -> 1 | K104: =PRODUCT($J86:K86) -> 1.05 | L104: =PRODUCT($J86:L86) -> 1.1025 | M104: =PRODUCT($J86:M86) -> 1.157625 | N104: =PRODUCT($J86:N86) -> 1.21550625 | O104: =PRODUCT($J86:O86) -> 1.276281563 | P104: =PRODUCT($J86:P86) -> 1.340095641 | Q104: =PRODUCT($J86:Q86) -> 1.407100423 | R104: =PRODUCT($J86:R86) -> 1.477455444 | S104: =PRODUCT($J86:S86) -> 1.551328216 | T104: =PRODUCT($J86:T86) -> 1.628894627 | U104: =PRODUCT($J86:U86) -> 1.710339358 | V104: =PRODUCT($J86:V86) -> 1.795856326 | W104: =PRODUCT($J86:W86) -> 1.885649142 | X104: =PRODUCT($J86:X86) -> 1.979931599 | Y104: =PRODUCT($J86:Y86) -> 2.078928179 | Z104: =PRODUCT($J86:Z86) -> 2.182874588 | AA104: =PRODUCT($J86:AA86) -> 2.292018318 | AB104: =PRODUCT($J86:AB86) -> 2.406619234 | AC104: =PRODUCT($J86:AC86) -> 2.526950195 | AD104: =PRODUCT($J86:AD86) -> 2.653297705 | AE104: =PRODUCT($J86:AE86) -> 2.78596259 | AF104: =PRODUCT($J86:AF86) -> 2.92526072 | AG104: =PRODUCT($J86:AG86) -> 3.071523756 | AH104: =PRODUCT($J86:AH86) -> 3.225099944 | AI104: =PRODUCT($J86:AI86) -> 3.386354941 | AJ104: =PRODUCT($J86:AJ86) -> 3.555672688 | AK104: =PRODUCT($J86:AK86) -> 3.733456322 | AL104: =PRODUCT($J86:AL86) -> 3.920129138 | AM104: =PRODUCT($J86:AM86) -> 4.116135595 | AN104: =PRODUCT($J86:AN86) -> 4.321942375
E105: Elektriciteit eindverbruiker | G105: Factor | J105: =PRODUCT($J87:J87) -> 1 | K105: =PRODUCT($J87:K87) -> 1.035 | L105: =PRODUCT($J87:L87) -> 1.071225 | M105: =PRODUCT($J87:M87) -> 1.108717875 | N105: =PRODUCT($J87:N87) -> 1.147523001 | O105: =PRODUCT($J87:O87) -> 1.187686306 | P105: =PRODUCT($J87:P87) -> 1.229255326 | Q105: =PRODUCT($J87:Q87) -> 1.272279263 | R105: =PRODUCT($J87:R87) -> 1.316809037 | S105: =PRODUCT($J87:S87) -> 1.362897353 | T105: =PRODUCT($J87:T87) -> 1.410598761 | U105: =PRODUCT($J87:U87) -> 1.459969717 | V105: =PRODUCT($J87:V87) -> 1.511068657 | W105: =PRODUCT($J87:W87) -> 1.56395606 | X105: =PRODUCT($J87:X87) -> 1.618694522 | Y105: =PRODUCT($J87:Y87) -> 1.675348831 | Z105: =PRODUCT($J87:Z87) -> 1.73398604 | AA105: =PRODUCT($J87:AA87) -> 1.794675551 | AB105: =PRODUCT($J87:AB87) -> 1.857489196 | AC105: =PRODUCT($J87:AC87) -> 1.922501317 | AD105: =PRODUCT($J87:AD87) -> 1.989788863 | AE105: =PRODUCT($J87:AE87) -> 2.059431474 | AF105: =PRODUCT($J87:AF87) -> 2.131511575 | AG105: =PRODUCT($J87:AG87) -> 2.20611448 | AH105: =PRODUCT($J87:AH87) -> 2.283328487 | AI105: =PRODUCT($J87:AI87) -> 2.363244984 | AJ105: =PRODUCT($J87:AJ87) -> 2.445958559 | AK105: =PRODUCT($J87:AK87) -> 2.531567108 | AL105: =PRODUCT($J87:AL87) -> 2.620171957 | AM105: =PRODUCT($J87:AM87) -> 2.711877976 | AN105: =PRODUCT($J87:AN87) -> 2.806793705
E106: Aardgas | G106: Factor | J106: =PRODUCT($J88:J88) -> 1 | K106: =PRODUCT($J88:K88) -> 1.057 | L106: =PRODUCT($J88:L88) -> 1.117249 | M106: =PRODUCT($J88:M88) -> 1.180932193 | N106: =PRODUCT($J88:N88) -> 1.248245328 | O106: =PRODUCT($J88:O88) -> 1.319395312 | P106: =PRODUCT($J88:P88) -> 1.394600844 | Q106: =PRODUCT($J88:Q88) -> 1.474093093 | R106: =PRODUCT($J88:R88) -> 1.558116399 | S106: =PRODUCT($J88:S88) -> 1.646929034 | T106: =PRODUCT($J88:T88) -> 1.740803989 | U106: =PRODUCT($J88:U88) -> 1.840029816 | V106: =PRODUCT($J88:V88) -> 1.944911515 | W106: =PRODUCT($J88:W88) -> 2.055771472 | X106: =PRODUCT($J88:X88) -> 2.172950446 | Y106: =PRODUCT($J88:Y88) -> 2.296808621 | Z106: =PRODUCT($J88:Z88) -> 2.427726712 | AA106: =PRODUCT($J88:AA88) -> 2.566107135 | AB106: =PRODUCT($J88:AB88) -> 2.712375242 | AC106: =PRODUCT($J88:AC88) -> 2.866980631 | AD106: =PRODUCT($J88:AD88) -> 3.030398526 | AE106: =PRODUCT($J88:AE88) -> 3.203131242 | AF106: =PRODUCT($J88:AF88) -> 3.385709723 | AG106: =PRODUCT($J88:AG88) -> 3.578695178 | AH106: =PRODUCT($J88:AH88) -> 3.782680803 | AI106: =PRODUCT($J88:AI88) -> 3.998293608 | AJ106: =PRODUCT($J88:AJ88) -> 4.226196344 | AK106: =PRODUCT($J88:AK88) -> 4.467089536 | AL106: =PRODUCT($J88:AL88) -> 4.721713639 | AM106: =PRODUCT($J88:AM88) -> 4.990851317 | AN106: =PRODUCT($J88:AN88) -> 5.275329842
E107: Steenkool | G107: Factor | J107: =PRODUCT($J89:J89) -> 1 | K107: =PRODUCT($J89:K89) -> 1.06 | L107: =PRODUCT($J89:L89) -> 1.1236 | M107: =PRODUCT($J89:M89) -> 1.191016 | N107: =PRODUCT($J89:N89) -> 1.26247696 | O107: =PRODUCT($J89:O89) -> 1.338225578 | P107: =PRODUCT($J89:P89) -> 1.418519112 | Q107: =PRODUCT($J89:Q89) -> 1.503630259 | R107: =PRODUCT($J89:R89) -> 1.593848075 | S107: =PRODUCT($J89:S89) -> 1.689478959 | T107: =PRODUCT($J89:T89) -> 1.790847697 | U107: =PRODUCT($J89:U89) -> 1.898298558 | V107: =PRODUCT($J89:V89) -> 2.012196472 | W107: =PRODUCT($J89:W89) -> 2.13292826 | X107: =PRODUCT($J89:X89) -> 2.260903956 | Y107: =PRODUCT($J89:Y89) -> 2.396558193 | Z107: =PRODUCT($J89:Z89) -> 2.540351685 | AA107: =PRODUCT($J89:AA89) -> 2.692772786 | AB107: =PRODUCT($J89:AB89) -> 2.854339153 | AC107: =PRODUCT($J89:AC89) -> 3.025599502 | AD107: =PRODUCT($J89:AD89) -> 3.207135472 | AE107: =PRODUCT($J89:AE89) -> 3.399563601 | AF107: =PRODUCT($J89:AF89) -> 3.603537417 | AG107: =PRODUCT($J89:AG89) -> 3.819749662 | AH107: =PRODUCT($J89:AH89) -> 4.048934641 | AI107: =PRODUCT($J89:AI89) -> 4.29187072 | AJ107: =PRODUCT($J89:AJ89) -> 4.549382963 | AK107: =PRODUCT($J89:AK89) -> 4.822345941 | AL107: =PRODUCT($J89:AL89) -> 5.111686697 | AM107: =PRODUCT($J89:AM89) -> 5.418387899 | AN107: =PRODUCT($J89:AN89) -> 5.743491173
E108: Dierlijk vet | G108: Factor | J108: =PRODUCT($J90:J90) -> 1 | K108: =PRODUCT($J90:K90) -> 1.05 | L108: =PRODUCT($J90:L90) -> 1.1025 | M108: =PRODUCT($J90:M90) -> 1.157625 | N108: =PRODUCT($J90:N90) -> 1.21550625 | O108: =PRODUCT($J90:O90) -> 1.276281563 | P108: =PRODUCT($J90:P90) -> 1.340095641 | Q108: =PRODUCT($J90:Q90) -> 1.407100423 | R108: =PRODUCT($J90:R90) -> 1.477455444 | S108: =PRODUCT($J90:S90) -> 1.551328216 | T108: =PRODUCT($J90:T90) -> 1.628894627 | U108: =PRODUCT($J90:U90) -> 1.710339358 | V108: =PRODUCT($J90:V90) -> 1.795856326 | W108: =PRODUCT($J90:W90) -> 1.885649142 | X108: =PRODUCT($J90:X90) -> 1.979931599 | Y108: =PRODUCT($J90:Y90) -> 2.078928179 | Z108: =PRODUCT($J90:Z90) -> 2.182874588 | AA108: =PRODUCT($J90:AA90) -> 2.292018318 | AB108: =PRODUCT($J90:AB90) -> 2.406619234 | AC108: =PRODUCT($J90:AC90) -> 2.526950195 | AD108: =PRODUCT($J90:AD90) -> 2.653297705 | AE108: =PRODUCT($J90:AE90) -> 2.78596259 | AF108: =PRODUCT($J90:AF90) -> 2.92526072 | AG108: =PRODUCT($J90:AG90) -> 3.071523756 | AH108: =PRODUCT($J90:AH90) -> 3.225099944 | AI108: =PRODUCT($J90:AI90) -> 3.386354941 | AJ108: =PRODUCT($J90:AJ90) -> 3.555672688 | AK108: =PRODUCT($J90:AK90) -> 3.733456322 | AL108: =PRODUCT($J90:AL90) -> 3.920129138 | AM108: =PRODUCT($J90:AM90) -> 4.116135595 | AN108: =PRODUCT($J90:AN90) -> 4.321942375
E109: Pellets | G109: Factor | J109: =PRODUCT($J91:J91) -> 1 | K109: =PRODUCT($J91:K91) -> 1.05 | L109: =PRODUCT($J91:L91) -> 1.1025 | M109: =PRODUCT($J91:M91) -> 1.157625 | N109: =PRODUCT($J91:N91) -> 1.21550625 | O109: =PRODUCT($J91:O91) -> 1.276281563 | P109: =PRODUCT($J91:P91) -> 1.340095641 | Q109: =PRODUCT($J91:Q91) -> 1.407100423 | R109: =PRODUCT($J91:R91) -> 1.477455444 | S109: =PRODUCT($J91:S91) -> 1.551328216 | T109: =PRODUCT($J91:T91) -> 1.628894627 | U109: =PRODUCT($J91:U91) -> 1.710339358 | V109: =PRODUCT($J91:V91) -> 1.795856326 | W109: =PRODUCT($J91:W91) -> 1.885649142 | X109: =PRODUCT($J91:X91) -> 1.979931599 | Y109: =PRODUCT($J91:Y91) -> 2.078928179 | Z109: =PRODUCT($J91:Z91) -> 2.182874588 | AA109: =PRODUCT($J91:AA91) -> 2.292018318 | AB109: =PRODUCT($J91:AB91) -> 2.406619234 | AC109: =PRODUCT($J91:AC91) -> 2.526950195 | AD109: =PRODUCT($J91:AD91) -> 2.653297705 | AE109: =PRODUCT($J91:AE91) -> 2.78596259 | AF109: =PRODUCT($J91:AF91) -> 2.92526072 | AG109: =PRODUCT($J91:AG91) -> 3.071523756 | AH109: =PRODUCT($J91:AH91) -> 3.225099944 | AI109: =PRODUCT($J91:AI91) -> 3.386354941 | AJ109: =PRODUCT($J91:AJ91) -> 3.555672688 | AK109: =PRODUCT($J91:AK91) -> 3.733456322 | AL109: =PRODUCT($J91:AL91) -> 3.920129138 | AM109: =PRODUCT($J91:AM91) -> 4.116135595 | AN109: =PRODUCT($J91:AN91) -> 4.321942375
E110: Houtchips | G110: Factor | J110: =PRODUCT($J92:J92) -> 1 | K110: =PRODUCT($J92:K92) -> 1.077 | L110: =PRODUCT($J92:L92) -> 1.159929 | M110: =PRODUCT($J92:M92) -> 1.249243533 | N110: =PRODUCT($J92:N92) -> 1.345435285 | O110: =PRODUCT($J92:O92) -> 1.449033802 | P110: =PRODUCT($J92:P92) -> 1.560609405 | Q110: =PRODUCT($J92:Q92) -> 1.680776329 | R110: =PRODUCT($J92:R92) -> 1.810196106 | S110: =PRODUCT($J92:S92) -> 1.949581206 | T110: =PRODUCT($J92:T92) -> 2.099698959 | U110: =PRODUCT($J92:U92) -> 2.261375779 | V110: =PRODUCT($J92:V92) -> 2.435501714 | W110: =PRODUCT($J92:W92) -> 2.623035346 | X110: =PRODUCT($J92:X92) -> 2.825009068 | Y110: =PRODUCT($J92:Y92) -> 3.042534766 | Z110: =PRODUCT($J92:Z92) -> 3.276809943 | AA110: =PRODUCT($J92:AA92) -> 3.529124309 | AB110: =PRODUCT($J92:AB92) -> 3.80086688 | AC110: =PRODUCT($J92:AC92) -> 4.09353363 | AD110: =PRODUCT($J92:AD92) -> 4.40873572 | AE110: =PRODUCT($J92:AE92) -> 4.74820837 | AF110: =PRODUCT($J92:AF92) -> 5.113820415 | AG110: =PRODUCT($J92:AG92) -> 5.507584587 | AH110: =PRODUCT($J92:AH92) -> 5.9316686 | AI110: =PRODUCT($J92:AI92) -> 6.388407082 | AJ110: =PRODUCT($J92:AJ92) -> 6.880314427 | AK110: =PRODUCT($J92:AK92) -> 7.410098638 | AL110: =PRODUCT($J92:AL92) -> 7.980676233 | AM110: =PRODUCT($J92:AM92) -> 8.595188303 | AN110: =PRODUCT($J92:AN92) -> 9.257017803
E111: Kost OBA | G111: Factor | J111: =PRODUCT($J93:J93) -> 1 | K111: =PRODUCT($J93:K93) -> 1.02 | L111: =PRODUCT($J93:L93) -> 1.0404 | M111: =PRODUCT($J93:M93) -> 1.061208 | N111: =PRODUCT($J93:N93) -> 1.08243216 | O111: =PRODUCT($J93:O93) -> 1.104080803 | P111: =PRODUCT($J93:P93) -> 1.126162419 | Q111: =PRODUCT($J93:Q93) -> 1.148685668 | R111: =PRODUCT($J93:R93) -> 1.171659381 | S111: =PRODUCT($J93:S93) -> 1.195092569 | T111: =PRODUCT($J93:T93) -> 1.21899442 | U111: =PRODUCT($J93:U93) -> 1.243374308 | V111: =PRODUCT($J93:V93) -> 1.268241795 | W111: =PRODUCT($J93:W93) -> 1.29360663 | X111: =PRODUCT($J93:X93) -> 1.319478763 | Y111: =PRODUCT($J93:Y93) -> 1.345868338 | Z111: =PRODUCT($J93:Z93) -> 1.372785705 | AA111: =PRODUCT($J93:AA93) -> 1.400241419 | AB111: =PRODUCT($J93:AB93) -> 1.428246248 | AC111: =PRODUCT($J93:AC93) -> 1.456811173 | AD111: =PRODUCT($J93:AD93) -> 1.485947396 | AE111: =PRODUCT($J93:AE93) -> 1.515666344 | AF111: =PRODUCT($J93:AF93) -> 1.545979671 | AG111: =PRODUCT($J93:AG93) -> 1.576899264 | AH111: =PRODUCT($J93:AH93) -> 1.608437249 | AI111: =PRODUCT($J93:AI93) -> 1.640605994 | AJ111: =PRODUCT($J93:AJ93) -> 1.673418114 | AK111: =PRODUCT($J93:AK93) -> 1.706886477 | AL111: =PRODUCT($J93:AL93) -> 1.741024206 | AM111: =PRODUCT($J93:AM93) -> 1.77584469 | AN111: =PRODUCT($J93:AN93) -> 1.811361584
E112: Mest-energieteelt | G112: Factor | J112: =PRODUCT($J94:J94) -> 1 | K112: =PRODUCT($J94:K94) -> 1.02 | L112: =PRODUCT($J94:L94) -> 1.0404 | M112: =PRODUCT($J94:M94) -> 1.061208 | N112: =PRODUCT($J94:N94) -> 1.08243216 | O112: =PRODUCT($J94:O94) -> 1.104080803 | P112: =PRODUCT($J94:P94) -> 1.126162419 | Q112: =PRODUCT($J94:Q94) -> 1.148685668 | R112: =PRODUCT($J94:R94) -> 1.171659381 | S112: =PRODUCT($J94:S94) -> 1.195092569 | T112: =PRODUCT($J94:T94) -> 1.21899442 | U112: =PRODUCT($J94:U94) -> 1.243374308 | V112: =PRODUCT($J94:V94) -> 1.268241795 | W112: =PRODUCT($J94:W94) -> 1.29360663 | X112: =PRODUCT($J94:X94) -> 1.319478763 | Y112: =PRODUCT($J94:Y94) -> 1.345868338 | Z112: =PRODUCT($J94:Z94) -> 1.372785705 | AA112: =PRODUCT($J94:AA94) -> 1.400241419 | AB112: =PRODUCT($J94:AB94) -> 1.428246248 | AC112: =PRODUCT($J94:AC94) -> 1.456811173 | AD112: =PRODUCT($J94:AD94) -> 1.485947396 | AE112: =PRODUCT($J94:AE94) -> 1.515666344 | AF112: =PRODUCT($J94:AF94) -> 1.545979671 | AG112: =PRODUCT($J94:AG94) -> 1.576899264 | AH112: =PRODUCT($J94:AH94) -> 1.608437249 | AI112: =PRODUCT($J94:AI94) -> 1.640605994 | AJ112: =PRODUCT($J94:AJ94) -> 1.673418114 | AK112: =PRODUCT($J94:AK94) -> 1.706886477 | AL112: =PRODUCT($J94:AL94) -> 1.741024206 | AM112: =PRODUCT($J94:AM94) -> 1.77584469 | AN112: =PRODUCT($J94:AN94) -> 1.811361584
E113: Opbrengst GFT | G113: Factor | J113: =PRODUCT($J95:J95) -> 1 | K113: =PRODUCT($J95:K95) -> 0.98 | L113: =PRODUCT($J95:L95) -> 0.9604 | M113: =PRODUCT($J95:M95) -> 0.941192 | N113: =PRODUCT($J95:N95) -> 0.92236816 | O113: =PRODUCT($J95:O95) -> 0.9039207968 | P113: =PRODUCT($J95:P95) -> 0.8858423809 | Q113: =PRODUCT($J95:Q95) -> 0.8681255332 | R113: =PRODUCT($J95:R95) -> 0.8507630226 | S113: =PRODUCT($J95:S95) -> 0.8337477621 | T113: =PRODUCT($J95:T95) -> 0.8170728069 | U113: =PRODUCT($J95:U95) -> 0.8007313507 | V113: =PRODUCT($J95:V95) -> 0.7847167237 | W113: =PRODUCT($J95:W95) -> 0.7690223893 | X113: =PRODUCT($J95:X95) -> 0.7536419415 | Y113: =PRODUCT($J95:Y95) -> 0.7385691026 | Z113: =PRODUCT($J95:Z95) -> 0.7237977206 | AA113: =PRODUCT($J95:AA95) -> 0.7093217662 | AB113: =PRODUCT($J95:AB95) -> 0.6951353309 | AC113: =PRODUCT($J95:AC95) -> 0.6812326242 | AD113: =PRODUCT($J95:AD95) -> 0.6676079718 | AE113: =PRODUCT($J95:AE95) -> 0.6542558123 | AF113: =PRODUCT($J95:AF95) -> 0.6411706961 | AG113: =PRODUCT($J95:AG95) -> 0.6283472822 | AH113: =PRODUCT($J95:AH95) -> 0.6157803365 | AI113: =PRODUCT($J95:AI95) -> 0.6034647298 | AJ113: =PRODUCT($J95:AJ95) -> 0.5913954352 | AK113: =PRODUCT($J95:AK95) -> 0.5795675265 | AL113: =PRODUCT($J95:AL95) -> 0.567976176 | AM113: =PRODUCT($J95:AM95) -> 0.5566166524 | AN113: =PRODUCT($J95:AN95) -> 0.5454843194
E114: Kost afzet digestaat mest-energieteelt | G114: Factor | J114: =PRODUCT($J96:J96) -> 1 | K114: =PRODUCT($J96:K96) -> 1.02 | L114: =PRODUCT($J96:L96) -> 1.0404 | M114: =PRODUCT($J96:M96) -> 1.061208 | N114: =PRODUCT($J96:N96) -> 1.08243216 | O114: =PRODUCT($J96:O96) -> 1.104080803 | P114: =PRODUCT($J96:P96) -> 1.126162419 | Q114: =PRODUCT($J96:Q96) -> 1.148685668 | R114: =PRODUCT($J96:R96) -> 1.171659381 | S114: =PRODUCT($J96:S96) -> 1.195092569 | T114: =PRODUCT($J96:T96) -> 1.21899442 | U114: =PRODUCT($J96:U96) -> 1.243374308 | V114: =PRODUCT($J96:V96) -> 1.268241795 | W114: =PRODUCT($J96:W96) -> 1.29360663 | X114: =PRODUCT($J96:X96) -> 1.319478763 | Y114: =PRODUCT($J96:Y96) -> 1.345868338 | Z114: =PRODUCT($J96:Z96) -> 1.372785705 | AA114: =PRODUCT($J96:AA96) -> 1.400241419 | AB114: =PRODUCT($J96:AB96) -> 1.428246248 | AC114: =PRODUCT($J96:AC96) -> 1.456811173 | AD114: =PRODUCT($J96:AD96) -> 1.485947396 | AE114: =PRODUCT($J96:AE96) -> 1.515666344 | AF114: =PRODUCT($J96:AF96) -> 1.545979671 | AG114: =PRODUCT($J96:AG96) -> 1.576899264 | AH114: =PRODUCT($J96:AH96) -> 1.608437249 | AI114: =PRODUCT($J96:AI96) -> 1.640605994 | AJ114: =PRODUCT($J96:AJ96) -> 1.673418114 | AK114: =PRODUCT($J96:AK96) -> 1.706886477 | AL114: =PRODUCT($J96:AL96) -> 1.741024206 | AM114: =PRODUCT($J96:AM96) -> 1.77584469 | AN114: =PRODUCT($J96:AN96) -> 1.811361584
E115: Kost afzet digestaat OBA | G115: Factor | J115: =PRODUCT($J97:J97) -> 1 | K115: =PRODUCT($J97:K97) -> 1.02 | L115: =PRODUCT($J97:L97) -> 1.0404 | M115: =PRODUCT($J97:M97) -> 1.061208 | N115: =PRODUCT($J97:N97) -> 1.08243216 | O115: =PRODUCT($J97:O97) -> 1.104080803 | P115: =PRODUCT($J97:P97) -> 1.126162419 | Q115: =PRODUCT($J97:Q97) -> 1.148685668 | R115: =PRODUCT($J97:R97) -> 1.171659381 | S115: =PRODUCT($J97:S97) -> 1.195092569 | T115: =PRODUCT($J97:T97) -> 1.21899442 | U115: =PRODUCT($J97:U97) -> 1.243374308 | V115: =PRODUCT($J97:V97) -> 1.268241795 | W115: =PRODUCT($J97:W97) -> 1.29360663 | X115: =PRODUCT($J97:X97) -> 1.319478763 | Y115: =PRODUCT($J97:Y97) -> 1.345868338 | Z115: =PRODUCT($J97:Z97) -> 1.372785705 | AA115: =PRODUCT($J97:AA97) -> 1.400241419 | AB115: =PRODUCT($J97:AB97) -> 1.428246248 | AC115: =PRODUCT($J97:AC97) -> 1.456811173 | AD115: =PRODUCT($J97:AD97) -> 1.485947396 | AE115: =PRODUCT($J97:AE97) -> 1.515666344 | AF115: =PRODUCT($J97:AF97) -> 1.545979671 | AG115: =PRODUCT($J97:AG97) -> 1.576899264 | AH115: =PRODUCT($J97:AH97) -> 1.608437249 | AI115: =PRODUCT($J97:AI97) -> 1.640605994 | AJ115: =PRODUCT($J97:AJ97) -> 1.673418114 | AK115: =PRODUCT($J97:AK97) -> 1.706886477 | AL115: =PRODUCT($J97:AL97) -> 1.741024206 | AM115: =PRODUCT($J97:AM97) -> 1.77584469 | AN115: =PRODUCT($J97:AN97) -> 1.811361584
E116: O&M kosten | G116: Factor | J116: =PRODUCT($J98:J98) -> 1 | K116: =PRODUCT($J98:K98) -> 1.02 | L116: =PRODUCT($J98:L98) -> 1.0404 | M116: =PRODUCT($J98:M98) -> 1.061208 | N116: =PRODUCT($J98:N98) -> 1.08243216 | O116: =PRODUCT($J98:O98) -> 1.104080803 | P116: =PRODUCT($J98:P98) -> 1.126162419 | Q116: =PRODUCT($J98:Q98) -> 1.148685668 | R116: =PRODUCT($J98:R98) -> 1.171659381 | S116: =PRODUCT($J98:S98) -> 1.195092569 | T116: =PRODUCT($J98:T98) -> 1.21899442 | U116: =PRODUCT($J98:U98) -> 1.243374308 | V116: =PRODUCT($J98:V98) -> 1.268241795 | W116: =PRODUCT($J98:W98) -> 1.29360663 | X116: =PRODUCT($J98:X98) -> 1.319478763 | Y116: =PRODUCT($J98:Y98) -> 1.345868338 | Z116: =PRODUCT($J98:Z98) -> 1.372785705 | AA116: =PRODUCT($J98:AA98) -> 1.400241419 | AB116: =PRODUCT($J98:AB98) -> 1.428246248 | AC116: =PRODUCT($J98:AC98) -> 1.456811173 | AD116: =PRODUCT($J98:AD98) -> 1.485947396 | AE116: =PRODUCT($J98:AE98) -> 1.515666344 | AF116: =PRODUCT($J98:AF98) -> 1.545979671 | AG116: =PRODUCT($J98:AG98) -> 1.576899264 | AH116: =PRODUCT($J98:AH98) -> 1.608437249 | AI116: =PRODUCT($J98:AI98) -> 1.640605994 | AJ116: =PRODUCT($J98:AJ98) -> 1.673418114 | AK116: =PRODUCT($J98:AK98) -> 1.706886477 | AL116: =PRODUCT($J98:AL98) -> 1.741024206 | AM116: =PRODUCT($J98:AM98) -> 1.77584469 | AN116: =PRODUCT($J98:AN98) -> 1.811361584
E117: 0 | G117: Factor | J117: =PRODUCT($J99:J99) -> 1 | K117: =PRODUCT($J99:K99) -> 1 | L117: =PRODUCT($J99:L99) -> 1 | M117: =PRODUCT($J99:M99) -> 1 | N117: =PRODUCT($J99:N99) -> 1 | O117: =PRODUCT($J99:O99) -> 1 | P117: =PRODUCT($J99:P99) -> 1 | Q117: =PRODUCT($J99:Q99) -> 1 | R117: =PRODUCT($J99:R99) -> 1 | S117: =PRODUCT($J99:S99) -> 1 | T117: =PRODUCT($J99:T99) -> 1 | U117: =PRODUCT($J99:U99) -> 1 | V117: =PRODUCT($J99:V99) -> 1 | W117: =PRODUCT($J99:W99) -> 1 | X117: =PRODUCT($J99:X99) -> 1 | Y117: =PRODUCT($J99:Y99) -> 1 | Z117: =PRODUCT($J99:Z99) -> 1 | AA117: =PRODUCT($J99:AA99) -> 1 | AB117: =PRODUCT($J99:AB99) -> 1 | AC117: =PRODUCT($J99:AC99) -> 1 | AD117: =PRODUCT($J99:AD99) -> 1 | AE117: =PRODUCT($J99:AE99) -> 1 | AF117: =PRODUCT($J99:AF99) -> 1 | AG117: =PRODUCT($J99:AG99) -> 1 | AH117: =PRODUCT($J99:AH99) -> 1 | AI117: =PRODUCT($J99:AI99) -> 1 | AJ117: =PRODUCT($J99:AJ99) -> 1 | AK117: =PRODUCT($J99:AK99) -> 1 | AL117: =PRODUCT($J99:AL99) -> 1 | AM117: =PRODUCT($J99:AM99) -> 1 | AN117: =PRODUCT($J99:AN99) -> 1

Sheet Calc
A1: =Input_Output!A1 -> Onrendabele Topberekening
A2: =Input_Output!F3 -> Fictieve voorbeeldberekening
J3: Jaar
F4: Constante | G4: Eenheid | H4: Totaal | J4: =J9 -> 0 | K4: 1 | L4: 2 | M4: 3 | N4: 4 | O4: 5 | P4: 6 | Q4: 7 | R4: 8 | S4: 9 | T4: 10 | U4: 11 | V4: 12 | W4: 13 | X4: 14 | Y4: 15 | Z4: 16 | AA4: 17 | AB4: 18 | AC4: 19 | AD4: 20 | AE4: 21 | AF4: 22 | AG4: 23 | AH4: 24 | AI4: 25 | AJ4: 26 | AK4: 27 | AL4: 28 | AM4: 29 | AN4: 30
A6: Algemeen
B8: Jaartallen
E9: Jaar | G9: Volgnr | J9: 0 | K9: =J9 +1 -> 1 | L9: =K9 +1 -> 2 | M9: 3 | N9: 4 | O9: 5 | P9: 6 | Q9: 7 | R9: 8 | S9: 9 | T9: 10 | U9: 11 | V9: 12 | W9: 13 | X9: 14 | Y9: 15 | Z9: 16 | AA9: 17 | AB9: 18 | AC9: 19 | AD9: 20 | AE9: 21 | AF9: 22 | AG9: 23 | AH9: 24 | AI9: 25 | AJ9: 26 | AK9: 27 | AL9: 28 | AM9: 29 | AN9: 30
B11: Constructieperiode
E12: =Input_Output!E$95 -> Constructieperiode | F12: =Input_Output!F$95 -> 1 | G12: =Input_Output!G$95 -> Jaar
E13: =E$9 -> Jaar | F13: =F$9 -> 0 | G13: Volgnr | H13: 0 | I13: 0 | J13: 0 | K13: 1 | L13: 2 | M13: 3 | N13: 4 | O13: 5 | P13: 6 | Q13: 7 | R13: 8 | S13: 9 | T13: 10 | U13: 11 | V13: 12 | W13: 13 | X13: 14 | Y13: 15 | Z13: 16 | AA13: 17 | AB13: 18 | AC13: 19 | AD13: 20 | AE13: 21 | AF13: 22 | AG13: 23 | AH13: 24 | AI13: 25 | AJ13: 26 | AK13: 27 | AL13: 28 | AM13: 29 | AN13: 30
E14: Constructieperiode Vlag | G14: Vlag | H14: =SUM(J14:AN14) -> 1 | J14: =IF( J13 < $F12, 1, 0) -> 1 | K14: =IF( K13 < $F12, 1, 0) -> 0 | L14: 0 | M14: 0 | N14: 0 | O14: 0 | P14: 0 | Q14: 0 | R14: 0 | S14: 0 | T14: 0 | U14: 0 | V14: 0 | W14: 0 | X14: 0 | Y14: 0 | Z14: 0 | AA14: 0 | AB14: 0 | AC14: 0 | AD14: 0 | AE14: 0 | AF14: 0 | AG14: 0 | AH14: 0 | AI14: 0 | AJ14: 0 | AK14: 0 | AL14: 0 | AM14: 0 | AN14: 0
B16: Economische levensduur
E17: =Input_Output!E$25 -> Economische levensduur | F17: =Input_Output!F$25 -> 15 | G17: =Input_Output!G$25 -> Jaar
E18: =Input_Output!E$95 -> Constructieperiode | F18: =Input_Output!F$95 -> 1 | G18: =Input_Output!G$95 -> Jaar
E19: =E$9 -> Jaar | F19: =F$9 -> 0 | G19: Volgnr | H19: 0 | I19: 0 | J19: 0 | K19: 1 | L19: 2 | M19: 3 | N19: 4 | O19: 5 | P19: 6 | Q19: 7 | R19: 8 | S19: 9 | T19: 10 | U19: 11 | V19: 12 | W19: 13 | X19: 14 | Y19: 15 | Z19: 16 | AA19: 17 | AB19: 18 | AC19: 19 | AD19: 20 | AE19: 21 | AF19: 22 | AG19: 23 | AH19: 24 | AI19: 25 | AJ19: 26 | AK19: 27 | AL19: 28 | AM19: 29 | AN19: 30
E20: Economische levensduur Vlag | G20: Vlag | H20: =SUM(J20:AN20) -> 15 | J20: =IF( AND( J19 >= $F18, J19 < ($F17 + $F18)), 1, 0) -> 0 | K20: =IF( AND( K19 >= $F18, K19 < ($F17 + $F18)), 1, 0) -> 1 | L20: 1 | M20: 1 | N20: 1 | O20: 1 | P20: 1 | Q20: 1 | R20: 1 | S20: 1 | T20: 1 | U20: 1 | V20: 1 | W20: 1 | X20: 1 | Y20: 1 | Z20: 0 | AA20: 0 | AB20: 0 | AC20: 0 | AD20: 0 | AE20: 0 | AF20: 0 | AG20: 0 | AH20: 0 | AI20: 0 | AJ20: 0 | AK20: 0 | AL20: 0 | AM20: 0 | AN20: 0
B22: Vervangingsinvestering
E23: =Input_Output!E$43 -> Levensduur te vervangen onderdeel | F23: =Input_Output!F$43 -> 12 | G23: =Input_Output!G$43 -> Jaar
E24: =E$20 -> Economische levensduur Vlag | F24: =F$20 -> 0 | G24: Vlag | H24: 15 | I24: 0 | J24: 0 | K24: 1 | L24: 1 | M24: 1 | N24: 1 | O24: 1 | P24: 1 | Q24: 1 | R24: 1 | S24: 1 | T24: 1 | U24: 1 | V24: 1 | W24: 1 | X24: 1 | Y24: 1 | Z24: 0 | AA24: 0 | AB24: 0 | AC24: 0 | AD24: 0 | AE24: 0 | AF24: 0 | AG24: 0 | AH24: 0 | AI24: 0 | AJ24: 0 | AK24: 0 | AL24: 0 | AM24: 0 | AN24: 0
E25: Cumulatieve economische levensduur | G25: Volgnr | J25: =IF( J24 = 0, 0, I25 + J24) -> 0 | K25: 1 | L25: 2 | M25: 3 | N25: 4 | O25: 5 | P25: 6 | Q25: 7 | R25: 8 | S25: 9 | T25: 10 | U25: 11 | V25: 12 | W25: 13 | X25: 14 | Y25: 15 | Z25: 0 | AA25: 0 | AB25: 0 | AC25: 0 | AD25: 0 | AE25: 0 | AF25: 0 | AG25: 0 | AH25: 0 | AI25: 0 | AJ25: 0 | AK25: 0 | AL25: 0 | AM25: 0 | AN25: 0
E26: Vervangingsinvestering Vlag | G26: Vlag | J26: =IF( $F23 + 1 = J25, 1, 0) -> 0 | K26: 0 | L26: 0 | M26: 0 | N26: 0 | O26: 0 | P26: 0 | Q26: 0 | R26: 0 | S26: 0 | T26: 0 | U26: 0 | V26: 0 | W26: 1 | X26: 0 | Y26: 0 | Z26: 0 | AA26: 0 | AB26: 0 | AC26: 0 | AD26: 0 | AE26: 0 | AF26: 0 | AG26: 0 | AH26: 0 | AI26: 0 | AJ26: 0 | AK26: 0 | AL26: 0 | AM26: 0 | AN26: 0
B28: Beleidsperiode
E29: =Input_Output!E97 -> Beleidsperiode | F29: =Input_Output!F97 -> 15 | G29: =Input_Output!G97 -> Jaar
E30: =Input_Output!E$95 -> Constructieperiode | F30: =Input_Output!F$95 -> 1 | G30: =Input_Output!G$95 -> Jaar
E31: =E$9 -> Jaar | F31: =F$9 -> 0 | G31: Volgnr | H31: 0 | I31: 0 | J31: 0 | K31: 1 | L31: 2 | M31: 3 | N31: 4 | O31: 5 | P31: 6 | Q31: 7 | R31: 8 | S31: 9 | T31: 10 | U31: 11 | V31: 12 | W31: 13 | X31: 14 | Y31: 15 | Z31: 16 | AA31: 17 | AB31: 18 | AC31: 19 | AD31: 20 | AE31: 21 | AF31: 22 | AG31: 23 | AH31: 24 | AI31: 25 | AJ31: 26 | AK31: 27 | AL31: 28 | AM31: 29 | AN31: 30
E32: Beleidsperiode Vlag | G32: Vlag | H32: =SUM(J32:AN32) -> 15 | J32: =IF( AND( J31 >= $F30, J31 < ($F29 + $F30)), 1, 0) -> 0 | K32: =IF( AND( K31 >= $F30, K31 < ($F29 + $F30)), 1, 0) -> 1 | L32: 1 | M32: 1 | N32: 1 | O32: 1 | P32: 1 | Q32: 1 | R32: 1 | S32: 1 | T32: 1 | U32: 1 | V32: 1 | W32: 1 | X32: 1 | Y32: 1 | Z32: 0 | AA32: 0 | AB32: 0 | AC32: 0 | AD32: 0 | AE32: 0 | AF32: 0 | AG32: 0 | AH32: 0 | AI32: 0 | AJ32: 0 | AK32: 0 | AL32: 0 | AM32: 0
B34: Afschrijftermijn
E35: =Input_Output!E$96 -> Afschrijvingstermijn | F35: =Input_Output!F$96 -> 15 | G35: =Input_Output!G$96 -> Jaar
E36: =Input_Output!E$95 -> Constructieperiode | F36: =Input_Output!F$95 -> 1 | G36: =Input_Output!G$95 -> Jaar
E37: =E$9 -> Jaar | F37: =F$9 -> 0 | G37: Volgnr | H37: 0 | I37: 0 | J37: 0 | K37: 1 | L37: 2 | M37: 3 | N37: 4 | O37: 5 | P37: 6 | Q37: 7 | R37: 8 | S37: 9 | T37: 10 | U37: 11 | V37: 12 | W37: 13 | X37: 14 | Y37: 15 | Z37: 16 | AA37: 17 | AB37: 18 | AC37: 19 | AD37: 20 | AE37: 21 | AF37: 22 | AG37: 23 | AH37: 24 | AI37: 25 | AJ37: 26 | AK37: 27 | AL37: 28 | AM37: 29 | AN37: 30
E38: Afschrijftermijn Vlag | G38: Vlag | H38: =SUM(J38:AN38) -> 15 | J38: =IF( AND( J37 >= $F36, J37 < ($F35 + $F36)), 1, 0) -> 0 | K38: =IF( AND( K37 >= $F36, K37 < ($F35 + $F36)), 1, 0) -> 1 | L38: 1 | M38: 1 | N38: 1 | O38: 1 | P38: 1 | Q38: 1 | R38: 1 | S38: 1 | T38: 1 | U38: 1 | V38: 1 | W38: 1 | X38: 1 | Y38: 1 | Z38: 0 | AA38: 0 | AB38: 0 | AC38: 0 | AD38: 0 | AE38: 0 | AF38: 0 | AG38: 0 | AH38: 0 | AI38: 0 | AJ38: 0 | AK38: 0 | AL38: 0 | AM38: 0 | AN38: 0
B40: Leentermijn
E41: =Input_Output!E$94 -> Termijn lening | F41: =Input_Output!F$94 -> 15 | G41: =Input_Output!G$94 -> Jaar
E42: =Input_Output!E$95 -> Constructieperiode | F42: =Input_Output!F$95 -> 1 | G42: =Input_Output!G$95 -> Jaar
E43: =E$9 -> Jaar | F43: =F$9 -> 0 | G43: Volgnr | H43: 0 | I43: 0 | J43: 0 | K43: 1 | L43: 2 | M43: 3 | N43: 4 | O43: 5 | P43: 6 | Q43: 7 | R43: 8 | S43: 9 | T43: 10 | U43: 11 | V43: 12 | W43: 13 | X43: 14 | Y43: 15 | Z43: 16 | AA43: 17 | AB43: 18 | AC43: 19 | AD43: 20 | AE43: 21 | AF43: 22 | AG43: 23 | AH43: 24 | AI43: 25 | AJ43: 26 | AK43: 27 | AL43: 28 | AM43: 29 | AN43: 30
E44: Leentermijn Vlag | G44: Vlag | H44: =SUM(J44:AN44) -> 15 | J44: =IF( AND( J43 >= $F42, J43 < ($F41 + $F42)), 1, 0) -> 0 | K44: =IF( AND( K43 >= $F42, K43 < ($F41 + $F42)), 1, 0) -> 1 | L44: 1 | M44: 1 | N44: 1 | O44: 1 | P44: 1 | Q44: 1 | R44: 1 | S44: 1 | T44: 1 | U44: 1 | V44: 1 | W44: 1 | X44: 1 | Y44: 1 | Z44: 0 | AA44: 0 | AB44: 0 | AC44: 0 | AD44: 0 | AE44: 0 | AF44: 0 | AG44: 0 | AH44: 0 | AI44: 0 | AJ44: 0 | AK44: 0 | AL44: 0 | AM44: 0 | AN44: 0
E45: Cumulatieve leenperiode | G45: Volgnr | J45: =IF( J44 = 0, 0, I45 + J44) -> 0 | K45: =IF( K44 = 0, 0, J45 + K44) -> 1 | L45: 2 | M45: 3 | N45: 4 | O45: 5 | P45: 6 | Q45: 7 | R45: 8 | S45: 9 | T45: 10 | U45: 11 | V45: 12 | W45: 13 | X45: 14 | Y45: 15 | Z45: 0 | AA45: 0 | AB45: 0 | AC45: 0 | AD45: 0 | AE45: 0 | AF45: 0 | AG45: 0 | AH45: 0 | AI45: 0 | AJ45: 0 | AK45: 0 | AL45: 0 | AM45: 0 | AN45: 0
B47: Discontovoeten
E48: =Input_Output!E$91 -> Project IRR na belastingen | F48: =Input_Output!F$91 -> 0.12 | G48: =Input_Output!G$91 -> [%]
E49: =E$9 -> Jaar | F49: =F$9 -> 0 | G49: Volgnr | H49: 0 | I49: 0 | J49: 0 | K49: 1 | L49: 2 | M49: 3 | N49: 4 | O49: 5 | P49: 6 | Q49: 7 | R49: 8 | S49: 9 | T49: 10 | U49: 11 | V49: 12 | W49: 13 | X49: 14 | Y49: 15 | Z49: 16 | AA49: 17 | AB49: 18 | AC49: 19 | AD49: 20 | AE49: 21 | AF49: 22 | AG49: 23 | AH49: 24 | AI49: 25 | AJ49: 26 | AK49: 27 | AL49: 28 | AM49: 29 | AN49: 30
E50: Discontofactor Project IRR na belastingen | G50: Factor | J50: =1 / (1 + $F48) ^ J49 -> 1 | K50: =1 / (1 + $F48) ^ K49 -> 0.8928571429 | L50: =1 / (1 + $F48) ^ L49 -> 0.7971938776 | M50: 0.7117802478 | N50: 0.6355180784 | O50: 0.5674268557 | P50: 0.5066311212 | Q50: 0.4523492153 | R50: 0.403883228 | S50: 0.360610025 | T50: 0.3219732366 | U50: 0.2874761041 | V50: 0.2566750929 | W50: 0.2291741901 | X50: 0.2046198126 | Y50: 0.1826962613 | Z50: 0.1631216618 | AA50: 0.1456443409 | AB50: 0.1300395901 | AC50: 0.1161067769 | AD50: 0.1036667651 | AE50: 0.09255961168 | AF50: 0.08264251043 | AG50: 0.07378795574 | AH50: 0.06588210334 | AI50: 0.05882330655 | AJ50: 0.05252080942 | AK50: 0.04689357984 | AL50: 0.04186926771 | AM50: 0.03738327475 | AN50: 0.03337792388
B52: Prijsindexen
E54: Sensitiviteitsanalyse? | F54: Nee
E56: =$E66 -> Prijsparameter elektriciteit zelfafname | F56: =VLOOKUP($F66,Prijsevolutie,7,FALSE) -> 0.035 | G56: =$G66 -> 0
E57: =$E67 -> Prijsparameter elektriciteit verkoop | F57: =VLOOKUP($F67,Prijsevolutie,7,FALSE) -> 0.02
E58: =$E68 -> Prijsparameter GSC | F58: =VLOOKUP($F68,Prijsevolutie,7,FALSE) -> 0 | G58: =$G68 -> 0
E59: Prijsparameter WKC | F59: 0 | G59: 0
E60: Prijsparameter brandstof | F60: 0.035 | G60: 0
E61: Prijsparameter te vervangen brandstof | F61: 0.035 | G61: 0
E62: Prijsparameter operationele kosten | F62: 0.02 | G62: 0
E63: Prijsparameter kosten/opbrengsten ingaande stoffen | F63: 0.02 | G63: 0
E64: Prijsparameter kosten/opbrengsten uitgaande stoffen | F64: 0.02 | G64: 0
E66: =Input_Output!E100 -> Prijsparameter elektriciteit zelfafname | F66: =Input_Output!F100 -> Elektriciteit eindverbruiker | G66: =Input_Output!G100 -> 0
E67: =Input_Output!E101 -> Prijsparameter elektriciteit verkoop | F67: =Input_Output!F101 -> Elektriciteit productiekost
E68: =Input_Output!E102 -> Prijsparameter GSC | F68: =Input_Output!F102 -> 0 | G68: =Input_Output!G102 -> 0
E69: =Input_Output!E103 -> Prijsparameter WKC | F69: =Input_Output!F103 -> 0 | G69: =Input_Output!G103 -> 0
E70: =Input_Output!E104 -> Prijsparameter brandstof | F70: =Input_Output!F104 -> Aardgas | G70: =Input_Output!G104 -> 0
E71: =Input_Output!E105 -> Prijsparameter te vervangen brandstof | F71: =Input_Output!F105 -> Aardgas | G71: =Input_Output!G105 -> 0
E72: =Input_Output!E106 -> Prijsparameter operationele kosten | F72: =Input_Output!F106 -> O&M kosten | G72: =Input_Output!G106 -> 0
E73: =Input_Output!E107 -> Prijsparameter kosten/opbrengsten ingaande stoffen | F73: =Input_Output!F107 -> O&M kosten | G73: =Input_Output!G107 -> 0
E74: =Input_Output!E108 -> Prijsparameter kosten/opbrengsten uitgaande stoffen | F74: =Input_Output!F108 -> O&M kosten | G74: =Input_Output!G108 -> 0
E76: =Input_Output!E$111 -> Prijsevolutie IN de OT berekening? | F76: =Input_Output!F$111 -> ja | G76: =Input_Output!G$111 -> ja/nee
E78: =E9 -> Jaar | F78: 0 | G78: Volgnr | H78: 0 | I78: 0 | J78: 0 | K78: 1 | L78: 2 | M78: 3 | N78: 4 | O78: 5 | P78: 6 | Q78: 7 | R78: 8 | S78: 9 | T78: 10 | U78: 11 | V78: 12 | W78: 13 | X78: 14 | Y78: 15 | Z78: 16 | AA78: 17 | AB78: 18 | AC78: 19 | AD78: 20 | AE78: 21 | AF78: 22 | AG78: 23 | AH78: 24 | AI78: 25 | AJ78: 26 | AK78: 27 | AL78: 28 | AM78: 29 | AN78: 30
E79: ="Prijsindex " & RIGHT(E66, LEN(E66) - 14) -> Prijsindex elektriciteit zelfafname | G79: Factor | J79: =IF($F$76="nee",1,IF($F$54="Ja",(1+$F$56)^J$78,VLOOKUP($F66,Prijsindex,(J$78+6),FALSE))) -> 1 | K79: 1.035 | L79: 1.071225 | M79: 1.108717875 | N79: 1.147523001 | O79: 1.187686306 | P79: 1.229255326 | Q79: 1.272279263 | R79: 1.316809037 | S79: 1.362897353 | T79: 1.410598761 | U79: 1.459969717 | V79: 1.511068657 | W79: 1.56395606 | X79: 1.618694522 | Y79: 1.675348831 | Z79: 1.73398604 | AA79: 1.794675551 | AB79: 1.857489196 | AC79: 1.922501317 | AD79: 1.989788863 | AE79: 2.059431474 | AF79: 2.131511575 | AG79: 2.20611448 | AH79: 2.283328487 | AI79: 2.363244984 | AJ79: 2.445958559 | AK79: 2.531567108 | AL79: 2.620171957 | AM79: 2.711877976 | AN79: 2.806793705
E80: Prijsindex elektriciteit verkoop | G80: Factor | J80: 1 | K80: =IF($F$76="nee",1,IF($F$54="Ja",(1+$F$56)^K$78,VLOOKUP($F67,Prijsindex,(K$78+6),FALSE))) -> 1.02 | L80: 1.0404 | M80: 1.061208 | N80: 1.08243216 | O80: 1.104080803 | P80: 1.126162419 | Q80: 1.148685668 | R80: 1.171659381 | S80: 1.195092569 | T80: 1.21899442 | U80: 1.243374308 | V80: 1.268241795 | W80: 1.29360663 | X80: 1.319478763 | Y80: 1.345868338 | Z80: 1.372785705 | AA80: 1.400241419 | AB80: 1.428246248 | AC80: 1.456811173 | AD80: 1.485947396 | AE80: 1.515666344 | AF80: 1.545979671 | AG80: 1.576899264 | AH80: 1.608437249 | AI80: 1.640605994 | AJ80: 1.673418114 | AK80: 1.706886477 | AL80: 1.741024206 | AM80: 1.77584469 | AN80: 1.811361584
E81: Prijsindex GSC | G81: Factor | J81: =IF($F$76="nee",1,IF($F$54="Ja",(1+$F$56)^J$78,VLOOKUP($F68,Prijsindex,(J$78+6),FALSE))) -> 1 | K81: 1 | L81: 1 | M81: 1 | N81: 1 | O81: 1 | P81: 1 | Q81: 1 | R81: 1 | S81: 1 | T81: 1 | U81: 1 | V81: 1 | W81: 1 | X81: 1 | Y81: 1 | Z81: 1 | AA81: 1 | AB81: 1 | AC81: 1 | AD81: 1 | AE81: 1 | AF81: 1 | AG81: 1 | AH81: 1 | AI81: 1 | AJ81: 1 | AK81: 1 | AL81: 1 | AM81: 1 | AN81: 1
E82: Prijsindex WKC | G82: Factor | J82: =IF($F$76="nee",1,IF($F$54="Ja",(1+$F$56)^J$78,VLOOKUP($F69,Prijsindex,(J$78+6),FALSE))) -> 1 | K82: 1 | L82: 1 | M82: 1 | N82: 1 | O82: 1 | P82: 1 | Q82: 1 | R82: 1 | S82: 1 | T82: 1 | U82: 1 | V82: 1 | W82: 1 | X82: 1 | Y82: 1 | Z82: 1 | AA82: 1 | AB82: 1 | AC82: 1 | AD82: 1 | AE82: 1 | AF82: 1 | AG82: 1 | AH82: 1 | AI82: 1 | AJ82: 1 | AK82: 1 | AL82: 1 | AM82: 1 | AN82: 1
E83: Prijsindex brandstof | G83: Factor | J83: =IF($F$76="nee",1,IF($F$54="Ja",(1+$F$56)^J$78,VLOOKUP($F70,Prijsindex,(J$78+6),FALSE))) -> 1 | K83: 1.035 | L83: 1.071225 | M83: 1.108717875 | N83: 1.147523001 | O83: 1.187686306 | P83: 1.229255326 | Q83: 1.272279263 | R83: 1.316809037 | S83: 1.362897353 | T83: 1.410598761 | U83: 1.459969717 | V83: 1.511068657 | W83: 1.56395606 | X83: 1.618694522 | Y83: 1.675348831 | Z83: 1.73398604 | AA83: 1.794675551 | AB83: 1.857489196 | AC83: 1.922501317 | AD83: 1.989788863 | AE83: 2.059431474 | AF83: 2.131511575 | AG83: 2.20611448 | AH83: 2.283328487 | AI83: 2.363244984 | AJ83: 2.445958559 | AK83: 2.531567108 | AL83: 2.620171957 | AM83: 2.711877976 | AN83: 2.806793705
E84: Prijsindex te vervangen brandstof | G84: Factor | J84: =IF($F$76="nee",1,IF($F$54="Ja",(1+$F$56)^J$78,VLOOKUP($F71,Prijsindex,(J$78+6),FALSE))) -> 1 | K84: 1.035 | L84: 1.071225 | M84: 1.108717875 | N84: 1.147523001 | O84: 1.187686306 | P84: 1.229255326 | Q84: 1.272279263 | R84: 1.316809037 | S84: 1.362897353 | T84: 1.410598761 | U84: 1.459969717 | V84: 1.511068657 | W84: 1.56395606 | X84: 1.618694522 | Y84: 1.675348831 | Z84: 1.73398604 | AA84: 1.794675551 | AB84: 1.857489196 | AC84: 1.922501317 | AD84: 1.989788863 | AE84: 2.059431474 | AF84: 2.131511575 | AG84: 2.20611448 | AH84: 2.283328487 | AI84: 2.363244984 | AJ84: 2.445958559 | AK84: 2.531567108 | AL84: 2.620171957 | AM84: 2.711877976 | AN84: 2.806793705
E85: Prijsindex operationele kosten | G85: Factor | J85: =IF($F$76="nee",1,IF($F$54="Ja",(1+$F$56)^J$78,VLOOKUP($F72,Prijsindex,(J$78+6),FALSE))) -> 1 | K85: =IF($F$76="nee",1,IF($F$54="Ja",(1+$F$56)^K$78,VLOOKUP($F72,Prijsindex,(K$78+6),FALSE))) -> 1.02 | L85: 1.0404 | M85: 1.061208 | N85: 1.08243216 | O85: 1.104080803 | P85: 1.126162419 | Q85: 1.148685668 | R85: 1.171659381 | S85: 1.195092569 | T85: 1.21899442 | U85: 1.243374308 | V85: 1.268241795 | W85: 1.29360663 | X85: 1.319478763 | Y85: 1.345868338 | Z85: 1.372785705 | AA85: 1.400241419 | AB85: 1.428246248 | AC85: 1.456811173 | AD85: 1.485947396 | AE85: 1.515666344 | AF85: 1.545979671 | AG85: 1.576899264 | AH85: 1.608437249 | AI85: 1.640605994 | AJ85: 1.673418114 | AK85: 1.706886477 | AL85: 1.741024206 | AM85: 1.77584469 | AN85: 1.811361584
E86: Prijsindex kosten/opbrengsten ingaande stoffen | G86: Factor | J86: =IF($F$76="nee",1,IF($F$54="Ja",(1+$F$56)^J$78,VLOOKUP($F73,Prijsindex,(J$78+6),FALSE))) -> 1 | K86: 1.02 | L86: 1.0404 | M86: 1.061208 | N86: 1.08243216 | O86: 1.104080803 | P86: 1.126162419 | Q86: 1.148685668 | R86: 1.171659381 | S86: 1.195092569 | T86: 1.21899442 | U86: 1.243374308 | V86: 1.268241795 | W86: 1.29360663 | X86: 1.319478763 | Y86: 1.345868338 | Z86: 1.372785705 | AA86: 1.400241419 | AB86: 1.428246248 | AC86: 1.456811173 | AD86: 1.485947396 | AE86: 1.515666344 | AF86: 1.545979671 | AG86: 1.576899264 | AH86: 1.608437249 | AI86: 1.640605994 | AJ86: 1.673418114 | AK86: 1.706886477 | AL86: 1.741024206 | AM86: 1.77584469 | AN86: 1.811361584
E87: Prijsindex kosten/opbrengsten uitgaande stoffen | G87: Factor | J87: =IF($F$76="nee",1,IF($F$54="Ja",(1+$F$56)^J$78,VLOOKUP($F74,Prijsindex,(J$78+6),FALSE))) -> 1 | K87: 1.02 | L87: 1.0404 | M87: 1.061208 | N87: 1.08243216 | O87: 1.104080803 | P87: 1.126162419 | Q87: 1.148685668 | R87: 1.171659381 | S87: 1.195092569 | T87: 1.21899442 | U87: 1.243374308 | V87: 1.268241795 | W87: 1.29360663 | X87: 1.319478763 | Y87: 1.345868338 | Z87: 1.372785705 | AA87: 1.400241419 | AB87: 1.428246248 | AC87: 1.456811173 | AD87: 1.485947396 | AE87: 1.515666344 | AF87: 1.545979671 | AG87: 1.576899264 | AH87: 1.608437249 | AI87: 1.640605994 | AJ87: 1.673418114 | AK87: 1.706886477 | AL87: 1.741024206 | AM87: 1.77584469 | AN87: 1.811361584
A90: Elektriciteitsproductie & Operationele kasstroom voor OT
B92: Elektriciteitsproductie
E93: =Input_Output!E$23 -> Unit grootte elektriciteitsdeel | F93: =Input_Output!F$23 -> 5 | G93: =Input_Output!G$23 -> kWe
E94: =Input_Output!E$24 -> Bedrijfstijd/vollasturen | F94: =Input_Output!F$24 -> 850 | G94: =Input_Output!G$24 -> Uren/jaar
E95: =E$20 -> Economische levensduur Vlag | F95: 0 | G95: Vlag | H95: 15 | I95: 0 | J95: 0 | K95: 1 | L95: 1 | M95: 1 | N95: 1 | O95: 1 | P95: 1 | Q95: 1 | R95: 1 | S95: 1 | T95: 1 | U95: 1 | V95: 1 | W95: 1 | X95: 1 | Y95: 1 | Z95: 0 | AA95: 0 | AB95: 0 | AC95: 0 | AD95: 0 | AE95: 0 | AF95: 0 | AG95: 0 | AH95: 0 | AI95: 0 | AJ95: 0 | AK95: 0 | AL95: 0 | AM95: 0 | AN95: 0
E96: Bruto elektriciteitsproductie | G96: kWh | H96: =SUM(J96:AN96) -> 63750 | J96: =$F93 * $F94 * J95 -> 0 | K96: =$F93 * $F94 * K95 -> 4250 | L96: 4250 | M96: 4250 | N96: 4250 | O96: 4250 | P96: 4250 | Q96: 4250 | R96: 4250 | S96: 4250 | T96: 4250 | U96: 4250 | V96: 4250 | W96: 4250 | X96: 4250 | Y96: 4250 | Z96: 0 | AA96: 0 | AB96: 0 | AC96: 0 | AD96: 0 | AE96: 0 | AF96: 0 | AG96: 0 | AH96: 0 | AI96: 0 | AJ96: 0 | AK96: 0 | AL96: 0 | AM96: 0 | AN96: 0
B98: Marktwaarde elektriciteit
E99: =Input_Output!E$57 -> Marktprijs stroom zelfafname | F99: =Input_Output!F$57 -> 0.217 | G99: =Input_Output!G$57 -> Euro/kWh | AO99: =$F$99 * AO103 -> 0 | AP99: 0 | AQ99: 0 | AR99: 0 | AS99: 0 | AT99: 0 | AU99: 0 | AV99: 0 | AW99: 0 | AX99: 0 | AY99: 0 | AZ99: 0 | BA99: 0 | BB99: 0 | BC99: 0 | BD99: 0 | BE99: 0 | BF99: 0 | BG99: 0 | BH99: 0 | BI99: 0 | BJ99: 0 | BK99: 0 | BL99: 0 | BM99: 0 | BN99: 0 | BO99: 0 | BP99: 0 | BQ99: 0 | BR99: 0 | BS99: 0 | BT99: 0 | BU99: 0 | BV99: 0 | BW99: 0 | BX99: =$F$99 * BX103 -> 0 | BY99: 0 | BZ99: 0 | CA99: 0 | CB99: 0 | CC99: 0 | CD99: 0 | CE99: 0 | CF99: 0 | CG99: 0 | CH99: 0 | CI99: 0 | CJ99: 0 | CK99: 0 | CL99: 0 | CM99: 0 | CN99: 0 | CO99: 0 | CP99: 0 | CQ99: 0 | CR99: 0 | CS99: 0 | CT99: 0 | CU99: 0 | CV99: 0 | CW99: 0 | CX99: 0 | CY99: 0 | CZ99: 0 | DA99: 0 | DB99: 0 | DC99: 0 | DD99: 0 | DE99: 0 | DF99: 0 | DG99: 0 | DH99: 0 | DI99: 0 | DJ99: 0 | DK99: 0 | DL99: 0 | DM99: 0 | DN99: 0 | DO99: 0 | DP99: 0 | DQ99: 0 | DR99: 0 | DS99: 0 | DT99: 0 | DU99: 0 | DV99: 0 | DW99: 0 | DX99: 0 | DY99: 0 | DZ99: 0 | EA99: 0 | EB99: 0 | EC99: 0 | ED99: 0 | EE99: 0 | EF99: 0 | EG99: 0 | EH99: 0 | EI99: 0 | EJ99: =$F$99 * EJ103 -> 0 | EK99: 0 | EL99: 0 | EM99: 0 | EN99: 0 | EO99: 0 | EP99: 0 | EQ99: 0 | ER99: 0 | ES99: 0 | ET99: 0 | EU99: 0 | EV99: 0 | EW99: 0 | EX99: 0 | EY99: 0 | EZ99: 0 | FA99: 0 | FB99: 0 | FC99: 0 | FD99: 0 | FE99: 0 | FF99: 0 | FG99: 0 | FH99: 0 | FI99: 0 | FJ99: 0 | FK99: 0 | FL99: 0 | FM99: 0 | FN99: 0 | FO99: 0 | FP99: 0 | FQ99: 0 | FR99: 0 | FS99: 0 | FT99: 0 | FU99: 0 | FV99: 0 | FW99: 0 | FX99: 0 | FY99: 0 | FZ99: 0 | GA99: 0 | GB99: 0 | GC99: 0 | GD99: 0 | GE99: 0 | GF99: 0 | GG99: 0 | GH99: 0 | GI99: 0 | GJ99: 0 | GK99: 0 | GL99: 0 | GM99: 0 | GN99: 0 | GO99: 0 | GP99: 0 | GQ99: 0 | GR99: 0 | GS99: 0 | GT99: 0 | GU99: 0 | GV99: =$F$99 * GV103 -> 0 | GW99: 0 | GX99: 0 | GY99: 0 | GZ99: 0 | HA99: 0 | HB99: 0 | HC99: 0 | HD99: 0 | HE99: 0 | HF99: 0 | HG99: 0 | HH99: 0 | HI99: 0 | HJ99: 0 | HK99: 0 | HL99: 0 | HM99: 0 | HN99: 0 | HO99: 0 | HP99: 0 | HQ99: 0 | HR99: 0 | HS99: 0 | HT99: 0 | HU99: 0 | HV99: 0 | HW99: 0 | HX99: 0 | HY99: 0 | HZ99: 0 | IA99: 0 | IB99: 0 | IC99: 0 | ID99: 0 | IE99: 0 | IF99: 0 | IG99: 0 | IH99: 0 | II99: 0 | IJ99: 0 | IK99: 0 | IL99: 0 | IM99: 0 | IN99: 0 | IO99: 0 | IP99: 0 | IQ99: 0 | IR99: 0 | IS99: 0 | IT99: 0 | IU99: 0 | IV99: 0
E100: =Input_Output!E$60 -> Eigenverbruik installatie voor berekening elektriciteitsproductie | F100: =Input_Output!F$60 -> 0.02 | G100: =Input_Output!G$60 -> [%]
E101: =Input_Output!E$56 -> Aandeel zelfafname stroom | F101: =Input_Output!F$56 -> 1 | G101: =Input_Output!G$56 -> [%]
E102: =E$96 -> Bruto elektriciteitsproductie | F102: 0 | G102: kWh | H102: 63750 | I102: 0 | J102: =J$96 -> 0 | K102: =K$96 -> 4250 | L102: 4250 | M102: 4250 | N102: 4250 | O102: 4250 | P102: 4250 | Q102: 4250 | R102: 4250 | S102: 4250 | T102: 4250 | U102: 4250 | V102: 4250 | W102: 4250 | X102: 4250 | Y102: 4250 | Z102: 0 | AA102: 0 | AB102: 0 | AC102: 0 | AD102: 0 | AE102: 0 | AF102: 0 | AG102: 0 | AH102: 0 | AI102: 0 | AJ102: 0 | AK102: 0 | AL102: 0 | AM102: 0 | AN102: 0
E103: =E$79 -> Prijsindex elektriciteit zelfafname | F103: =F$79 -> 0 | G103: Factor | H103: 0 | I103: 0 | J103: 1 | K103: 1.035 | L103: 1.071225 | M103: 1.108717875 | N103: 1.147523001 | O103: 1.187686306 | P103: 1.229255326 | Q103: 1.272279263 | R103: 1.316809037 | S103: 1.362897353 | T103: 1.410598761 | U103: 1.459969717 | V103: 1.511068657 | W103: 1.56395606 | X103: 1.618694522 | Y103: 1.675348831 | Z103: 1.73398604 | AA103: 1.794675551 | AB103: 1.857489196 | AC103: 1.922501317 | AD103: 1.989788863 | AE103: 2.059431474 | AF103: 2.131511575 | AG103: 2.20611448 | AH103: 2.283328487 | AI103: 2.363244984 | AJ103: 2.445958559 | AK103: 2.531567108 | AL103: 2.620171957 | AM103: 2.711877976 | AN103: 2.806793705
E104: Marktwaarde elektriciteit zelfafname | G104: Euro | H104: =SUM(J104:AN104) -> 18049.91651 | J104: =$F99 * (1-$F100) * $F101 * J102 * J103 -> 0 | K104: 935.438175 | L104: 968.1785111 | M104: 1002.064759 | N104: 1037.137026 | O104: 1073.436821 | P104: 1111.00711 | Q104: 1149.892359 | R104: 1190.138592 | S104: 1231.793442 | T104: 1274.906213 | U104: 1319.52793 | V104: 1365.711408 | W104: 1413.511307 | X104: 1462.984203 | Y104: 1514.18865 | Z104: 0 | AA104: 0 | AB104: 0 | AC104: 0 | AD104: 0 | AE104: 0 | AF104: 0 | AG104: 0 | AH104: 0 | AI104: 0 | AJ104: 0 | AK104: 0 | AL104: 0 | AM104: 0 | AN104: 0
E106: =Input_Output!E$58 -> Marktprijs stroom verkoop | F106: =Input_Output!F$58 -> 0.0506 | G106: =Input_Output!G$58 -> Euro/kWh | AO106: =$F$106 * AO111 -> 0 | AP106: 0 | AQ106: 0 | AR106: 0 | AS106: 0 | AT106: 0 | AU106: 0 | AV106: 0 | AW106: 0 | AX106: 0 | AY106: 0 | AZ106: 0 | BA106: 0 | BB106: 0 | BC106: 0 | BD106: 0 | BE106: 0 | BF106: 0 | BG106: 0 | BH106: 0 | BI106: 0 | BJ106: 0 | BK106: 0 | BL106: 0 | BM106: 0 | BN106: 0 | BO106: 0 | BP106: 0 | BQ106: 0 | BR106: 0 | BS106: 0 | BT106: 0 | BU106: 0 | BV106: 0 | BW106: 0 | BX106: 0 | BY106: 0 | BZ106: 0 | CA106: 0 | CB106: 0 | CC106: 0 | CD106: 0 | CE106: 0 | CF106: 0 | CG106: 0 | CH106: 0 | CI106: 0 | CJ106: 0 | CK106: 0 | CL106: 0 | CM106: 0 | CN106: 0 | CO106: 0 | CP106: 0 | CQ106: 0 | CR106: 0 | CS106: 0 | CT106: 0 | CU106: 0 | CV106: 0 | CW106: 0 | CX106: 0 | CY106: 0 | CZ106: 0 | DA106: =$F$106 * DA111 -> 0 | DB106: 0 | DC106: 0 | DD106: 0 | DE106: 0 | DF106: 0 | DG106: 0 | DH106: 0 | DI106: 0 | DJ106: 0 | DK106: 0 | DL106: 0 | DM106: 0 | DN106: 0 | DO106: 0 | DP106: 0 | DQ106: 0 | DR106: 0 | DS106: 0 | DT106: 0 | DU106: 0 | DV106: 0 | DW106: 0 | DX106: 0 | DY106: 0 | DZ106: 0 | EA106: 0 | EB106: 0 | EC106: 0 | ED106: 0 | EE106: 0 | EF106: 0 | EG106: 0 | EH106: 0 | EI106: 0 | EJ106: 0 | EK106: 0 | EL106: 0 | EM106: 0 | EN106: 0 | EO106: 0 | EP106: 0 | EQ106: 0 | ER106: 0 | ES106: 0 | ET106: 0 | EU106: 0 | EV106: 0 | EW106: 0 | EX106: 0 | EY106: 0 | EZ106: 0 | FA106: 0 | FB106: 0 | FC106: 0 | FD106: 0 | FE106: 0 | FF106: 0 | FG106: 0 | FH106: 0 | FI106: 0 | FJ106: 0 | FK106: 0 | FL106: 0 | FM106: =$F$106 * FM111 -> 0 | FN106: 0 | FO106: 0 | FP106: 0 | FQ106: 0 | FR106: 0 | FS106: 0 | FT106: 0 | FU106: 0 | FV106: 0 | FW106: 0 | FX106: 0 | FY106: 0 | FZ106: 0 | GA106: 0 | GB106: 0 | GC106: 0 | GD106: 0 | GE106: 0 | GF106: 0 | GG106: 0 | GH106: 0 | GI106: 0 | GJ106: 0 | GK106: 0 | GL106: 0 | GM106: 0 | GN106: 0 | GO106: 0 | GP106: 0 | GQ106: 0 | GR106: 0 | GS106: 0 | GT106: 0 | GU106: 0 | GV106: 0 | GW106: 0 | GX106: 0 | GY106: 0 | GZ106: 0 | HA106: 0 | HB106: 0 | HC106: 0 | HD106: 0 | HE106: 0 | HF106: 0 | HG106: 0 | HH106: 0 | HI106: 0 | HJ106: 0 | HK106: 0 | HL106: 0 | HM106: 0 | HN106: 0 | HO106: 0 | HP106: 0 | HQ106: 0 | HR106: 0 | HS106: 0 | HT106: 0 | HU106: 0 | HV106: 0 | HW106: 0 | HX106: 0 | HY106: =$F$106 * HY111 -> 0 | HZ106: 0 | IA106: 0 | IB106: 0 | IC106: 0 | ID106: 0 | IE106: 0 | IF106: 0 | IG106: 0 | IH106: 0 | II106: 0 | IJ106: 0 | IK106: 0 | IL106: 0 | IM106: 0 | IN106: 0 | IO106: 0 | IP106: 0 | IQ106: 0 | IR106: 0 | IS106: 0 | IT106: 0 | IU106: 0 | IV106: 0
E107: =Input_Output!E$59 -> Injectietarief/Kosten onbalans | F107: =Input_Output!F$59 -> 0.0023 | G107: =Input_Output!G$59 -> Euro/kWh
E108: =Input_Output!E$60 -> Eigenverbruik installatie voor berekening elektriciteitsproductie | F108: =Input_Output!F$60 -> 0.02 | G108: =Input_Output!G$60 -> [%]
E109: Aandeel verkoop stroom | F109: =1 - F101 -> 0 | G109: [%]
E110: =E$96 -> Bruto elektriciteitsproductie | F110: 0 | G110: kWh | H110: 63750 | I110: 0 | J110: =J$96 -> 0 | K110: =K$96 -> 4250 | L110: 4250 | M110: 4250 | N110: 4250 | O110: 4250 | P110: 4250 | Q110: 4250 | R110: 4250 | S110: 4250 | T110: 4250 | U110: 4250 | V110: 4250 | W110: 4250 | X110: 4250 | Y110: 4250 | Z110: 0 | AA110: 0 | AB110: 0 | AC110: 0 | AD110: 0 | AE110: 0 | AF110: 0 | AG110: 0 | AH110: 0 | AI110: 0 | AJ110: 0 | AK110: 0 | AL110: 0 | AM110: 0 | AN110: 0
E111: =E$80 -> Prijsindex elektriciteit verkoop | F111: =F$80 -> 0 | G111: Factor | H111: 0 | I111: 0 | J111: 1 | K111: 1.02 | L111: 1.0404 | M111: 1.061208 | N111: 1.08243216 | O111: 1.104080803 | P111: 1.126162419 | Q111: 1.148685668 | R111: 1.171659381 | S111: 1.195092569 | T111: 1.21899442 | U111: 1.243374308 | V111: 1.268241795 | W111: 1.29360663 | X111: 1.319478763 | Y111: 1.345868338 | Z111: 1.372785705 | AA111: 1.400241419 | AB111: 1.428246248 | AC111: 1.456811173 | AD111: 1.485947396 | AE111: 1.515666344 | AF111: 1.545979671 | AG111: 1.576899264 | AH111: 1.608437249 | AI111: 1.640605994 | AJ111: 1.673418114 | AK111: 1.706886477 | AL111: 1.741024206 | AM111: 1.77584469 | AN111: 1.811361584
E112: Marktwaarde elektriciteit verkoop | G112: Euro | H112: =SUM(J112:AN112) -> 0 | J112: =($F106 -$F107) * (1-$F108) * $F109 * J110 * J111 -> 0 | K112: =($F106 -$F107) * (1-$F108) * $F109 * K110 * K111 -> 0 | L112: =($F106 -$F107) * (1-$F108) * $F109 * L110 * L111 -> 0 | M112: 0 | N112: 0 | O112: 0 | P112: 0 | Q112: 0 | R112: 0 | S112: 0 | T112: 0 | U112: 0 | V112: 0 | W112: 0 | X112: 0 | Y112: 0 | Z112: 0 | AA112: 0 | AB112: 0 | AC112: 0 | AD112: 0 | AE112: 0 | AF112: 0 | AG112: 0 | AH112: 0 | AI112: 0 | AJ112: 0 | AK112: 0 | AL112: 0 | AM112: 0 | AN112: 0 | AO112: =AO102 * AO109 * AO111 * $F$106 * (1-$F$100) -> 0 | AP112: 0 | AQ112: 0 | AR112: 0 | AS112: 0 | AT112: 0 | AU112: 0 | AV112: 0 | AW112: 0 | AX112: 0 | AY112: 0 | AZ112: 0 | BA112: 0 | BB112: 0 | BC112: 0 | BD112: 0 | BE112: 0 | BF112: 0 | BG112: 0 | BH112: 0 | BI112: 0 | BJ112: 0 | BK112: 0 | BL112: 0 | BM112: 0 | BN112: 0 | BO112: 0 | BP112: 0 | BQ112: 0 | BR112: 0 | BS112: 0 | BT112: 0 | BU112: 0 | BV112: 0 | BW112: 0 | BX112: 0 | BY112: 0 | BZ112: 0 | CA112: 0 | CB112: 0 | CC112: 0 | CD112: 0 | CE112: 0 | CF112: 0 | CG112: 0 | CH112: 0 | CI112: 0 | CJ112: 0 | CK112: 0 | CL112: 0 | CM112: 0 | CN112: 0 | CO112: 0 | CP112: 0 | CQ112: 0 | CR112: 0 | CS112: 0 | CT112: 0 | CU112: 0 | CV112: 0 | CW112: 0 | CX112: 0 | CY112: 0 | CZ112: 0 | DA112: =DA102 * DA109 * DA111 * $F$106 * (1-$F$100) -> 0 | DB112: 0 | DC112: 0 | DD112: 0 | DE112: 0 | DF112: 0 | DG112: 0 | DH112: 0 | DI112: 0 | DJ112: 0 | DK112: 0 | DL112: 0 | DM112: 0 | DN112: 0 | DO112: 0 | DP112: 0 | DQ112: 0 | DR112: 0 | DS112: 0 | DT112: 0 | DU112: 0 | DV112: 0 | DW112: 0 | DX112: 0 | DY112: 0 | DZ112: 0 | EA112: 0 | EB112: 0 | EC112: 0 | ED112: 0 | EE112: 0 | EF112: 0 | EG112: 0 | EH112: 0 | EI112: 0 | EJ112: 0 | EK112: 0 | EL112: 0 | EM112: 0 | EN112: 0 | EO112: 0 | EP112: 0 | EQ112: 0 | ER112: 0 | ES112: 0 | ET112: 0 | EU112: 0 | EV112: 0 | EW112: 0 | EX112: 0 | EY112: 0 | EZ112: 0 | FA112: 0 | FB112: 0 | FC112: 0 | FD112: 0 | FE112: 0 | FF112: 0 | FG112: 0 | FH112: 0 | FI112: 0 | FJ112: 0 | FK112: 0 | FL112: 0 | FM112: =FM102 * FM109 * FM111 * $F$106 * (1-$F$100) -> 0 | FN112: 0 | FO112: 0 | FP112: 0 | FQ112: 0 | FR112: 0 | FS112: 0 | FT112: 0 | FU112: 0 | FV112: 0 | FW112: 0 | FX112: 0 | FY112: 0 | FZ112: 0 | GA112: 0 | GB112: 0 | GC112: 0 | GD112: 0 | GE112: 0 | GF112: 0 | GG112: 0 | GH112: 0 | GI112: 0 | GJ112: 0 | GK112: 0 | GL112: 0 | GM112: 0 | GN112: 0 | GO112: 0 | GP112: 0 | GQ112: 0 | GR112: 0 | GS112: 0 | GT112: 0 | GU112: 0 | GV112: 0 | GW112: 0 | GX112: 0 | GY112: 0 | GZ112: 0 | HA112: 0 | HB112: 0 | HC112: 0 | HD112: 0 | HE112: 0 | HF112: 0 | HG112: 0 | HH112: 0 | HI112: 0 | HJ112: 0 | HK112: 0 | HL112: 0 | HM112: 0 | HN112: 0 | HO112: 0 | HP112: 0 | HQ112: 0 | HR112: 0 | HS112: 0 | HT112: 0 | HU112: 0 | HV112: 0 | HW112: 0 | HX112: 0 | HY112: =HY102 * HY109 * HY111 * $F$106 * (1-$F$100) -> 0 | HZ112: 0 | IA112: 0 | IB112: 0 | IC112: 0 | ID112: 0 | IE112: 0 | IF112: 0 | IG112: 0 | IH112: 0 | II112: 0 | IJ112: 0 | IK112: 0 | IL112: 0 | IM112: 0 | IN112: 0 | IO112: 0 | IP112: 0 | IQ112: 0 | IR112: 0 | IS112: 0 | IT112: 0 | IU112: 0 | IV112: 0
E114: =E$104 -> Marktwaarde elektriciteit zelfafname | F114: =F$104 -> 0 | G114: Euro | H114: 18049.91651 | I114: 0 | J114: =J$104 -> 0 | K114: 935.438175 | L114: 968.1785111 | M114: 1002.064759 | N114: 1037.137026 | O114: 1073.436821 | P114: 1111.00711 | Q114: 1149.892359 | R114: 1190.138592 | S114: 1231.793442 | T114: 1274.906213 | U114: 1319.52793 | V114: 1365.711408 | W114: 1413.511307 | X114: 1462.984203 | Y114: 1514.18865 | Z114: 0 | AA114: 0 | AB114: 0 | AC114: 0 | AD114: 0 | AE114: 0 | AF114: 0 | AG114: 0 | AH114: 0 | AI114: 0 | AJ114: 0 | AK114: 0 | AL114: 0 | AM114: 0 | AN114: 0
E115: =E$112 -> Marktwaarde elektriciteit verkoop | F115: =F$112 -> 0 | G115: Euro | H115: 0 | I115: 0 | J115: =J$112 -> 0 | K115: 0 | L115: 0 | M115: 0 | N115: 0 | O115: 0 | P115: 0 | Q115: 0 | R115: 0 | S115: 0 | T115: 0 | U115: 0 | V115: 0 | W115: 0 | X115: 0 | Y115: 0 | Z115: 0 | AA115: 0 | AB115: 0 | AC115: 0 | AD115: 0 | AE115: 0 | AF115: 0 | AG115: 0 | AH115: 0 | AI115: 0 | AJ115: 0 | AK115: 0 | AL115: 0 | AM115: 0 | AN115: 0
E116: Marktwaarde elektriciteit | G116: Euro | H116: =SUM(J116:AN116) -> 18049.91651 | J116: =SUM(J114:J115) -> 0 | K116: =SUM(K114:K115) -> 935.438175 | L116: 968.1785111 | M116: 1002.064759 | N116: 1037.137026 | O116: 1073.436821 | P116: 1111.00711 | Q116: 1149.892359 | R116: 1190.138592 | S116: 1231.793442 | T116: 1274.906213 | U116: 1319.52793 | V116: 1365.711408 | W116: 1413.511307 | X116: 1462.984203 | Y116: 1514.18865 | Z116: 0 | AA116: 0 | AB116: 0 | AC116: 0 | AD116: 0 | AE116: 0 | AF116: 0 | AG116: 0 | AH116: 0 | AI116: 0 | AJ116: 0 | AK116: 0 | AL116: 0 | AM116: 0 | AN116: 0 | AO116: =AO112+AO104 -> 0 | AP116: 0 | AQ116: 0 | AR116: 0 | AS116: 0 | AT116: 0 | AU116: 0 | AV116: 0 | AW116: 0 | AX116: 0 | AY116: 0 | AZ116: 0 | BA116: 0 | BB116: 0 | BC116: 0 | BD116: 0 | BE116: 0 | BF116: 0 | BG116: 0 | BH116: 0 | BI116: 0 | BJ116: 0 | BK116: 0 | BL116: 0 | BM116: 0 | BN116: 0 | BO116: 0 | BP116: 0 | BQ116: 0 | BR116: 0 | BS116: 0 | BT116: 0 | BU116: 0 | BV116: 0 | BW116: 0 | BX116: 0 | BY116: 0 | BZ116: 0 | CA116: 0 | CB116: 0 | CC116: 0 | CD116: 0 | CE116: 0 | CF116: 0 | CG116: 0 | CH116: 0 | CI116: 0 | CJ116: 0 | CK116: 0 | CL116: 0 | CM116: 0 | CN116: 0 | CO116: 0 | CP116: 0 | CQ116: 0 | CR116: 0 | CS116: 0 | CT116: 0 | CU116: 0 | CV116: 0 | CW116: 0 | CX116: 0 | CY116: 0 | CZ116: 0 | DA116: =DA112+DA104 -> 0 | DB116: 0 | DC116: 0 | DD116: 0 | DE116: 0 | DF116: 0 | DG116: 0 | DH116: 0 | DI116: 0 | DJ116: 0 | DK116: 0 | DL116: 0 | DM116: 0 | DN116: 0 | DO116: 0 | DP116: 0 | DQ116: 0 | DR116: 0 | DS116: 0 | DT116: 0 | DU116: 0 | DV116: 0 | DW116: 0 | DX116: 0 | DY116: 0 | DZ116: 0 | EA116: 0 | EB116: 0 | EC116: 0 | ED116: 0 | EE116: 0 | EF116: 0 | EG116: 0 | EH116: 0 | EI116: 0 | EJ116: 0 | EK116: 0 | EL116: 0 | EM116: 0 | EN116: 0 | EO116: 0 | EP116: 0 | EQ116: 0 | ER116: 0 | ES116: 0 | ET116: 0 | EU116: 0 | EV116: 0 | EW116: 0 | EX116: 0 | EY116: 0 | EZ116: 0 | FA116: 0 | FB116: 0 | FC116: 0 | FD116: 0 | FE116: 0 | FF116: 0 | FG116: 0 | FH116: 0 | FI116: 0 | FJ116: 0 | FK116: 0 | FL116: 0 | FM116: =FM112+FM104 -> 0 | FN116: 0 | FO116: 0 | FP116: 0 | FQ116: 0 | FR116: 0 | FS116: 0 | FT116: 0 | FU116: 0 | FV116: 0 | FW116: 0 | FX116: 0 | FY116: 0 | FZ116: 0 | GA116: 0 | GB116: 0 | GC116: 0 | GD116: 0 | GE116: 0 | GF116: 0 | GG116: 0 | GH116: 0 | GI116: 0 | GJ116: 0 | GK116: 0 | GL116: 0 | GM116: 0 | GN116: 0 | GO116: 0 | GP116: 0 | GQ116: 0 | GR116: 0 | GS116: 0 | GT116: 0 | GU116: 0 | GV116: 0 | GW116: 0 | GX116: 0 | GY116: 0 | GZ116: 0 | HA116: 0 | HB116: 0 | HC116: 0 | HD116: 0 | HE116: 0 | HF116: 0 | HG116: 0 | HH116: 0 | HI116: 0 | HJ116: 0 | HK116: 0 | HL116: 0 | HM116: 0 | HN116: 0 | HO116: 0 | HP116: 0 | HQ116: 0 | HR116: 0 | HS116: 0 | HT116: 0 | HU116: 0 | HV116: 0 | HW116: 0 | HX116: 0 | HY116: =HY112+HY104 -> 0 | HZ116: 0 | IA116: 0 | IB116: 0 | IC116: 0 | ID116: 0 | IE116: 0 | IF116: 0 | IG116: 0 | IH116: 0 | II116: 0 | IJ116: 0 | IK116: 0 | IL116: 0 | IM116: 0 | IN116: 0 | IO116: 0 | IP116: 0 | IQ116: 0 | IR116: 0 | IS116: 0 | IT116: 0 | IU116: 0 | IV116: 0
B118: WKK waarde warmtelevering
E119: =Input_Output!E$29 -> Thermisch rendement WKK | F119: =Input_Output!F$29 -> 0 | G119: =Input_Output!G$29 -> [%]
E120: =Input_Output!E$26 -> Elektrisch rendement | F120: =Input_Output!F$26 -> 0.4 | G120: =Input_Output!G$26 -> [%]
E121: =Input_Output!E$34 -> Referentierendement ketel | F121: =Input_Output!F$34 -> 0 | G121: =Input_Output!G$34 -> [%]
E122: =E$96 -> Bruto elektriciteitsproductie | F122: =F$96 -> 0 | G122: kWh | H122: 63750 | I122: 0 | J122: 0 | K122: 4250 | L122: 4250 | M122: 4250 | N122: 4250 | O122: 4250 | P122: 4250 | Q122: 4250 | R122: 4250 | S122: 4250 | T122: 4250 | U122: 4250 | V122: 4250 | W122: 4250 | X122: 4250 | Y122: 4250 | Z122: 0 | AA122: 0 | AB122: 0 | AC122: 0 | AD122: 0 | AE122: 0 | AF122: 0 | AG122: 0 | AH122: 0 | AI122: 0 | AJ122: 0 | AK122: 0 | AL122: 0 | AM122: 0 | AN122: 0
E123: WKK warmteproductie (equivalent aardgasvolume) | G123: kWh | H123: =SUM(J123:AN123) -> 0 | J123: =IF(OR($F$120=0,$F$121=0),0,(J122*$F119/$F120)/($F121)) -> 0 | K123: =IF(OR($F$120=0,$F$121=0),0,(K122*$F119/$F120)/($F121)) -> 0 | L123: 0 | M123: 0 | N123: 0 | O123: 0 | P123: 0 | Q123: 0 | R123: 0 | S123: 0 | T123: 0 | U123: 0 | V123: 0 | W123: 0 | X123: 0 | Y123: 0 | Z123: 0 | AA123: 0 | AB123: 0 | AC123: 0 | AD123: 0 | AE123: 0 | AF123: 0 | AG123: 0 | AH123: 0 | AI123: 0 | AJ123: 0 | AK123: 0 | AL123: 0 | AM123: 0 | AN123: 0
E125: =Input_Output!E$46 -> Brandstofkosten te vervangen brandstof | F125: =Input_Output!F$46 -> 0 | G125: =Input_Output!G$46 -> Euro/kWh
E126: =E$123 -> WKK warmteproductie (equivalent aardgasvolume) | F126: =+ F$123 -> 0 | G126: kWh | H126: 0 | I126: 0 | J126: 0 | K126: 0 | L126: 0 | M126: 0 | N126: 0 | O126: 0 | P126: 0 | Q126: 0 | R126: 0 | S126: 0 | T126: 0 | U126: 0 | V126: 0 | W126: 0 | X126: 0 | Y126: 0 | Z126: 0 | AA126: 0 | AB126: 0 | AC126: 0 | AD126: 0 | AE126: 0 | AF126: 0 | AG126: 0 | AH126: 0 | AI126: 0 | AJ126: 0 | AK126: 0 | AL126: 0 | AM126: 0 | AN126: 0
E127: =E84 -> Prijsindex te vervangen brandstof | F127: 0 | G127: Factor | H127: 0 | I127: 0 | J127: 1 | K127: 1.035 | L127: 1.071225 | M127: 1.108717875 | N127: 1.147523001 | O127: 1.187686306 | P127: 1.229255326 | Q127: 1.272279263 | R127: 1.316809037 | S127: 1.362897353 | T127: 1.410598761 | U127: 1.459969717 | V127: 1.511068657 | W127: 1.56395606 | X127: 1.618694522 | Y127: 1.675348831 | Z127: 1.73398604 | AA127: 1.794675551 | AB127: 1.857489196 | AC127: 1.922501317 | AD127: 1.989788863 | AE127: 2.059431474 | AF127: 2.131511575 | AG127: 2.20611448 | AH127: 2.283328487 | AI127: 2.363244984 | AJ127: 2.445958559 | AK127: 2.531567108 | AL127: 2.620171957 | AM127: 2.711877976 | AN127: 2.806793705
E128: Waarde WKK warmteproductie | G128: Euro | H128: =SUM(J128:AN128) -> 0 | J128: =$F125 * J126 * J127 -> 0 | K128: =$F125 * K126 * K127 -> 0 | L128: 0 | M128: 0 | N128: 0 | O128: 0 | P128: 0 | Q128: 0 | R128: 0 | S128: 0 | T128: 0 | U128: 0 | V128: 0 | W128: 0 | X128: 0 | Y128: 0 | Z128: 0 | AA128: 0 | AB128: 0 | AC128: 0 | AD128: 0 | AE128: 0 | AF128: 0 | AG128: 0 | AH128: 0 | AI128: 0 | AJ128: 0 | AK128: 0 | AL128: 0 | AM128: 0 | AN128: 0
B130: Besparing Primaire Brandstof
E131: =Input_Output!E$26 -> Elektrisch rendement | F131: =Input_Output!F$26 -> 0.4 | G131: =Input_Output!G$26 -> [%]
E132: =Input_Output!E$47 -> Effectiviteit brandstofsubstitutie | F132: =Input_Output!F$47 -> 0 | G132: =Input_Output!G$47 -> [%]
E133: =E$96 -> Bruto elektriciteitsproductie | F133: =F$96 -> 0 | G133: kWh | H133: 63750 | I133: 0 | J133: 0 | K133: 4250 | L133: 4250 | M133: 4250 | N133: 4250 | O133: 4250 | P133: 4250 | Q133: 4250 | R133: 4250 | S133: 4250 | T133: 4250 | U133: 4250 | V133: 4250 | W133: 4250 | X133: 4250 | Y133: 4250 | Z133: 0 | AA133: 0 | AB133: 0 | AC133: 0 | AD133: 0 | AE133: 0 | AF133: 0 | AG133: 0 | AH133: 0 | AI133: 0 | AJ133: 0 | AK133: 0 | AL133: 0 | AM133: 0 | AN133: 0
E134: Besparing primaire brandstof | G134: kWh | J134: =IF($F$131=0,0,$F$132/$F$131*J133) -> 0 | K134: =IF($F$131=0,0,$F$132/$F$131*K133) -> 0 | L134: 0 | M134: 0 | N134: 0 | O134: 0 | P134: 0 | Q134: 0 | R134: 0 | S134: 0 | T134: 0 | U134: 0 | V134: 0 | W134: 0 | X134: 0 | Y134: 0 | Z134: 0 | AA134: 0 | AB134: 0 | AC134: 0 | AD134: 0 | AE134: 0 | AF134: 0 | AG134: 0 | AH134: 0 | AI134: 0 | AJ134: 0 | AK134: 0 | AL134: 0 | AM134: 0 | AN134: 0
E136: =Input_Output!E$46 -> Brandstofkosten te vervangen brandstof | F136: =Input_Output!F$46 -> 0 | G136: =Input_Output!G$46 -> Euro/kWh
E137: =E$134 -> Besparing primaire brandstof | F137: =F$134 -> 0 | G137: kWh | H137: 0 | I137: 0 | J137: =J$134 -> 0 | K137: 0 | L137: 0 | M137: 0 | N137: 0 | O137: 0 | P137: 0 | Q137: 0 | R137: 0 | S137: 0 | T137: 0 | U137: 0 | V137: 0 | W137: 0 | X137: 0 | Y137: 0 | Z137: 0 | AA137: 0 | AB137: 0 | AC137: 0 | AD137: 0 | AE137: 0 | AF137: 0 | AG137: 0 | AH137: 0 | AI137: 0 | AJ137: 0 | AK137: 0 | AL137: 0 | AM137: 0 | AN137: 0
E138: =E84 -> Prijsindex te vervangen brandstof | F138: 0 | G138: Factor | H138: 0 | I138: 0 | J138: 1 | K138: 1.035 | L138: 1.071225 | M138: 1.108717875 | N138: 1.147523001 | O138: 1.187686306 | P138: 1.229255326 | Q138: 1.272279263 | R138: 1.316809037 | S138: 1.362897353 | T138: 1.410598761 | U138: 1.459969717 | V138: 1.511068657 | W138: 1.56395606 | X138: 1.618694522 | Y138: 1.675348831 | Z138: 1.73398604 | AA138: 1.794675551 | AB138: 1.857489196 | AC138: 1.922501317 | AD138: 1.989788863 | AE138: 2.059431474 | AF138: 2.131511575 | AG138: 2.20611448 | AH138: 2.283328487 | AI138: 2.363244984 | AJ138: 2.445958559 | AK138: 2.531567108 | AL138: 2.620171957 | AM138: 2.711877976 | AN138: 2.806793705
E139: Besparing primaire brandstof | G139: Euro | H139: =SUM(J139:AN139) -> 0 | J139: =$F136 * J137 * J138 -> 0 | K139: =$F136 * K137 * K138 -> 0 | L139: 0 | M139: 0 | N139: 0 | O139: 0 | P139: 0 | Q139: 0 | R139: 0 | S139: 0 | T139: 0 | U139: 0 | V139: 0 | W139: 0 | X139: 0 | Y139: 0 | Z139: 0 | AA139: 0 | AB139: 0 | AC139: 0 | AD139: 0 | AE139: 0 | AF139: 0 | AG139: 0 | AH139: 0 | AI139: 0 | AJ139: 0 | AK139: 0 | AL139: 0 | AM139: 0 | AN139: 0
B141: Opbrengst GSC
E142: =Input_Output!E$62 -> GSC van toepassing? | F142: =Input_Output!F$62 -> nee | G142: =Input_Output!G$62 -> ja/nee
E143: =Input_Output!E$63 -> Prijs GSC | F143: =Input_Output!F$63 -> 0 | G143: =Input_Output!G$63 -> Euro/MWh
E144: Factor 1000 | F144: 1000 | G144: Factor
E145: =Input_Output!E$64 -> Eigenverbruik installatie voor berekening GSC | F145: =Input_Output!F$64 -> 0.02 | G145: =Input_Output!G$64 -> [%]
E146: =E20 -> Economische levensduur Vlag | F146: 0 | G146: Vlag | H146: 15 | I146: 0 | J146: 0 | K146: 1 | L146: 1 | M146: 1 | N146: 1 | O146: 1 | P146: 1 | Q146: 1 | R146: 1 | S146: 1 | T146: 1 | U146: 1 | V146: 1 | W146: 1 | X146: 1 | Y146: 1 | Z146: 0 | AA146: 0 | AB146: 0 | AC146: 0 | AD146: 0 | AE146: 0 | AF146: 0 | AG146: 0 | AH146: 0 | AI146: 0 | AJ146: 0 | AK146: 0 | AL146: 0 | AM146: 0 | AN146: 0
E147: =E$96 -> Bruto elektriciteitsproductie | F147: =F$96 -> 0 | G147: kWh | H147: 63750 | I147: 0 | J147: 0 | K147: 4250 | L147: 4250 | M147: 4250 | N147: 4250 | O147: 4250 | P147: 4250 | Q147: 4250 | R147: 4250 | S147: 4250 | T147: 4250 | U147: 4250 | V147: 4250 | W147: 4250 | X147: 4250 | Y147: 4250 | Z147: 0 | AA147: 0 | AB147: 0 | AC147: 0 | AD147: 0 | AE147: 0 | AF147: 0 | AG147: 0 | AH147: 0 | AI147: 0 | AJ147: 0 | AK147: 0 | AL147: 0 | AM147: 0 | AN147: 0
E148: =E81 -> Prijsindex GSC | F148: 0 | G148: Factor | H148: 0 | I148: 0 | J148: 1 | K148: 1 | L148: 1 | M148: 1 | N148: 1 | O148: 1 | P148: 1 | Q148: 1 | R148: 1 | S148: 1 | T148: 1 | U148: 1 | V148: 1 | W148: 1 | X148: 1 | Y148: 1 | Z148: 1 | AA148: 1 | AB148: 1 | AC148: 1 | AD148: 1 | AE148: 1 | AF148: 1 | AG148: 1 | AH148: 1 | AI148: 1 | AJ148: 1 | AK148: 1 | AL148: 1 | AM148: 1 | AN148: 1
E149: Opbrengst OT (GS) | G149: Euro | H149: =SUM(J149:AN149) -> 0 | J149: =IF($F142 = "ja", ($F143 / $F144) * (1 - $F145) * J146 * J147 * J148, 0) -> 0 | K149: =IF($F142 = "ja", ($F143 / $F144) * (1 - $F145) * K146 * K147 * K148, 0) -> 0 | L149: 0 | M149: 0 | N149: 0 | O149: 0 | P149: 0 | Q149: 0 | R149: 0 | S149: 0 | T149: 0 | U149: 0 | V149: 0 | W149: 0 | X149: 0 | Y149: 0 | Z149: 0 | AA149: 0 | AB149: 0 | AC149: 0 | AD149: 0 | AE149: 0 | AF149: 0 | AG149: 0 | AH149: 0 | AI149: 0 | AJ149: 0 | AK149: 0 | AL149: 0 | AM149: 0 | AN149: 0
B151: Opbrengst WKC
C153: Valoriseerbare Warmtekrachtbesparing
E154: =Input_Output!E$26 -> Elektrisch rendement | F154: =Input_Output!F$26 -> 0.4 | G154: =Input_Output!G$26 -> [%]
E155: =Input_Output!E$29 -> Thermisch rendement WKK | F155: =Input_Output!F$29 -> 0 | G155: =Input_Output!G$29 -> [%]
E156: =Input_Output!E$30 -> Referentierendement WKK Vla (thermisch) | F156: =Input_Output!F$30 -> 0 | G156: =Input_Output!G$30 -> [%]
E157: =Input_Output!E$31 -> Referentierendement WKK Vla (elektrisch) | F157: =Input_Output!F$31 -> 0 | G157: =Input_Output!G$31 -> [%]
E158: Eigenverbruik installatie voor berekening elektriciteitsproductie | F158: =Input_Output!F60 -> 0.02 | G158: [%]
E159: =E$96 -> Bruto elektriciteitsproductie | F159: =F$96 -> 0 | G159: kWh | H159: 63750 | I159: 0 | J159: 0 | K159: 4250 | L159: 4250 | M159: 4250 | N159: 4250 | O159: 4250 | P159: 4250 | Q159: 4250 | R159: 4250 | S159: 4250 | T159: 4250 | U159: 4250 | V159: 4250 | W159: 4250 | X159: 4250 | Y159: 4250 | Z159: 0 | AA159: 0 | AB159: 0 | AC159: 0 | AD159: 0 | AE159: 0 | AF159: 0 | AG159: 0 | AH159: 0 | AI159: 0 | AJ159: 0 | AK159: 0 | AL159: 0 | AM159: 0 | AN159: 0
E160: Netto elektriciteitsproductie | G160: kWh | H160: =SUM(J160:AN160) -> 62475 | J160: =J$159*(1-$F$158) -> 0 | K160: =K$159*(1-$F$158) -> 4165 | L160: 4165 | M160: 4165 | N160: 4165 | O160: 4165 | P160: 4165 | Q160: 4165 | R160: 4165 | S160: 4165 | T160: 4165 | U160: 4165 | V160: 4165 | W160: 4165 | X160: 4165 | Y160: 4165 | Z160: 0 | AA160: 0 | AB160: 0 | AC160: 0 | AD160: 0 | AE160: 0 | AF160: 0 | AG160: 0 | AH160: 0 | AI160: 0 | AJ160: 0 | AK160: 0 | AL160: 0 | AM160: 0 | AN160: 0
E161: Valoriseerbare warmtekrachtbesparing | G161: kWh | H161: =SUM(J161:AN161) -> 0 | J161: =IF(OR($F154=0, $F156=0, $F157=0), 0, MAX(0, (1 / $F157 + $F155 / ($F156 * $F154) - 1 / $F154) * J160 )) -> 0 | K161: =IF(OR($F154=0, $F156=0, $F157=0), 0, MAX(0, (1 / $F157 + $F155 / ($F156 * $F154) - 1 / $F154) * K160 )) -> 0 | L161: =IF(OR($F154=0, $F156=0, $F157=0), 0, MAX(0, (1 / $F157 + $F155 / ($F156 * $F154) - 1 / $F154) * L160 )) -> 0 | M161: 0 | N161: 0 | O161: 0 | P161: 0 | Q161: 0 | R161: 0 | S161: 0 | T161: 0 | U161: 0 | V161: 0 | W161: 0 | X161: 0 | Y161: 0 | Z161: 0 | AA161: 0 | AB161: 0 | AC161: 0 | AD161: 0 | AE161: 0 | AF161: 0 | AG161: 0 | AH161: 0 | AI161: 0 | AJ161: 0 | AK161: 0 | AL161: 0 | AM161: 0 | AN161: 0
C163: Opbrengst WKC
E164: =Input_Output!E$66 -> WKK certificaten van toepassing? | F164: =Input_Output!F$66 -> nee | G164: =Input_Output!G$66 -> ja/nee
E165: =Input_Output!E$67 -> Prijs WKK certificaat | F165: =Input_Output!F$67 -> 0 | G165: =Input_Output!G$67 -> Euro/MWh
E166: =E$161 -> Valoriseerbare warmtekrachtbesparing | F166: =F$161 -> 0 | G166: kWh | H166: 0 | I166: 0 | J166: 0 | K166: 0 | L166: 0 | M166: 0 | N166: 0 | O166: 0 | P166: 0 | Q166: 0 | R166: 0 | S166: 0 | T166: 0 | U166: 0 | V166: 0 | W166: 0 | X166: 0 | Y166: 0 | Z166: 0 | AA166: 0 | AB166: 0 | AC166: 0 | AD166: 0 | AE166: 0 | AF166: 0 | AG166: 0 | AH166: 0 | AI166: 0 | AJ166: 0 | AK166: 0 | AL166: 0 | AM166: 0 | AN166: 0
E167: Factor 1000 | F167: 1000 | G167: Factor
E168: =E82 -> Prijsindex WKC | F168: 0 | G168: Factor | H168: 0 | I168: 0 | J168: 1 | K168: 1 | L168: 1 | M168: 1 | N168: 1 | O168: 1 | P168: 1 | Q168: 1 | R168: 1 | S168: 1 | T168: 1 | U168: 1 | V168: 1 | W168: 1 | X168: 1 | Y168: 1 | Z168: 1 | AA168: 1 | AB168: 1 | AC168: 1 | AD168: 1 | AE168: 1 | AF168: 1 | AG168: 1 | AH168: 1 | AI168: 1 | AJ168: 1 | AK168: 1 | AL168: 1 | AM168: 1 | AN168: 1
E169: Opbrengst OT (WKK) | G169: Euro | H169: =SUM(J169:AN169) -> 0 | J169: =IF($F164="ja", $F165 * J166 / $F167 * J168, 0) -> 0 | K169: =IF($F164="ja", $F165 * K166 / $F167 * K168, 0) -> 0 | L169: 0 | M169: 0 | N169: 0 | O169: 0 | P169: 0 | Q169: 0 | R169: 0 | S169: 0 | T169: 0 | U169: 0 | V169: 0 | W169: 0 | X169: 0 | Y169: 0 | Z169: 0 | AA169: 0 | AB169: 0 | AC169: 0 | AD169: 0 | AE169: 0 | AF169: 0 | AG169: 0 | AH169: 0 | AI169: 0 | AJ169: 0 | AK169: 0 | AL169: 0 | AM169: 0 | AN169: 0
B171: Operationele Kosten (zonder brandstof)
C173: Vervangingsinvestering
E174: =Input_Output!E42 -> Vervangingsinvestering | F174: =Input_Output!F42 -> 250 | G174: =Input_Output!G42 -> Euro/kWe
E175: =Input_Output!E22 -> Unit grootte | F175: =Input_Output!F22 -> 5 | G175: =Input_Output!G22 -> kWe
E176: ="Bedrag " & LOWER(C173) -> Bedrag vervangingsinvestering | F176: =F174*F175 -> 1250 | G176: Euro
E178: =E176 -> Bedrag vervangingsinvestering | F178: =F176 -> 1250 | G178: =G176 -> Euro
E179: =E$26 -> Vervangingsinvestering Vlag | F179: =F$26 -> 0 | G179: Vlag | H179: 0 | I179: 0 | J179: 0 | K179: 0 | L179: 0 | M179: 0 | N179: 0 | O179: 0 | P179: 0 | Q179: 0 | R179: 0 | S179: 0 | T179: 0 | U179: 0 | V179: 0 | W179: 1 | X179: 0 | Y179: 0 | Z179: 0 | AA179: 0 | AB179: 0 | AC179: 0 | AD179: 0 | AE179: 0 | AF179: 0 | AG179: 0 | AH179: 0 | AI179: 0 | AJ179: 0 | AK179: 0 | AL179: 0 | AM179: 0 | AN179: 0
E180: =E$85 -> Prijsindex operationele kosten | F180: =F$85 -> 0 | G180: Factor | H180: 0 | I180: 0 | J180: 1 | K180: =K$85 -> 1.02 | L180: 1.0404 | M180: 1.061208 | N180: 1.08243216 | O180: 1.104080803 | P180: 1.126162419 | Q180: 1.148685668 | R180: 1.171659381 | S180: 1.195092569 | T180: 1.21899442 | U180: 1.243374308 | V180: 1.268241795 | W180: 1.29360663 | X180: 1.319478763 | Y180: 1.345868338 | Z180: 1.372785705 | AA180: 1.400241419 | AB180: 1.428246248 | AC180: 1.456811173 | AD180: 1.485947396 | AE180: 1.515666344 | AF180: 1.545979671 | AG180: 1.576899264 | AH180: 1.608437249 | AI180: 1.640605994 | AJ180: 1.673418114 | AK180: 1.706886477 | AL180: 1.741024206 | AM180: 1.77584469 | AN180: 1.811361584
E181: =C173 & " POS" -> Vervangingsinvestering POS | G181: Euro | H181: =SUM(J181:AN181) -> 1617.008288 | J181: =$F178 * J179 * J180 -> 0 | K181: =$F178 * K179 * K180 -> 0 | L181: 0 | M181: 0 | N181: 0 | O181: 0 | P181: 0 | Q181: 0 | R181: 0 | S181: 0 | T181: 0 | U181: 0 | V181: 0 | W181: 1617.008288 | X181: 0 | Y181: 0 | Z181: 0 | AA181: 0 | AB181: 0 | AC181: 0 | AD181: 0 | AE181: 0 | AF181: 0 | AG181: 0 | AH181: 0 | AI181: 0 | AJ181: 0 | AK181: 0 | AL181: 0 | AM181: 0 | AN181: =$F178 * AN179 * AN180 -> 0
C183: Vaste Operationele Kosten
E184: =Input_Output!E$38 -> Onderhoudskosten vast | F184: =Input_Output!F$38 -> 58.2615 | G184: =Input_Output!G$38 -> Euro/kWe
E185: =Input_Output!E$22 -> Unit grootte | F185: =Input_Output!F$22 -> 5 | G185: =Input_Output!G$22 -> kWe
E186: =E$20 -> Economische levensduur Vlag | F186: 0 | G186: Vlag | H186: 15 | I186: 0 | J186: 0 | K186: 1 | L186: 1 | M186: 1 | N186: 1 | O186: 1 | P186: 1 | Q186: 1 | R186: 1 | S186: 1 | T186: 1 | U186: 1 | V186: 1 | W186: 1 | X186: 1 | Y186: 1 | Z186: 0 | AA186: 0 | AB186: 0 | AC186: 0 | AD186: 0 | AE186: 0 | AF186: 0 | AG186: 0 | AH186: 0 | AI186: 0 | AJ186: 0 | AK186: 0 | AL186: 0 | AM186: 0 | AN186: 0
E187: =E$85 -> Prijsindex operationele kosten | F187: =F$85 -> 0 | G187: Factor | H187: 0 | I187: 0 | J187: 1 | K187: =K$85 -> 1.02 | L187: 1.0404 | M187: 1.061208 | N187: 1.08243216 | O187: 1.104080803 | P187: 1.126162419 | Q187: 1.148685668 | R187: 1.171659381 | S187: 1.195092569 | T187: 1.21899442 | U187: 1.243374308 | V187: 1.268241795 | W187: 1.29360663 | X187: 1.319478763 | Y187: 1.345868338 | Z187: 1.372785705 | AA187: 1.400241419 | AB187: 1.428246248 | AC187: 1.456811173 | AD187: 1.485947396 | AE187: 1.515666344 | AF187: 1.545979671 | AG187: 1.576899264 | AH187: 1.608437249 | AI187: 1.640605994 | AJ187: 1.673418114 | AK187: 1.706886477 | AL187: 1.741024206 | AM187: 1.77584469 | AN187: 1.811361584
E188: Vaste Operationele Kosten POS | G188: Euro | H188: =SUM(J188:AN188) -> 5138.456089 | J188: =$F184 * $F185 * J186 * J187 -> 0 | K188: =$F184 * $F185 * K186 * K187 -> 297.13365 | L188: =$F184 * $F185 * L186 * L187 -> 303.076323 | M188: 309.1378495 | N188: 315.3206064 | O188: 321.6270186 | P188: 328.0595589 | Q188: 334.6207501 | R188: 341.3131651 | S188: 348.1394284 | T188: 355.102217 | U188: 362.2042613 | V188: 369.4483466 | W188: 376.8373135 | X188: 384.3740598 | Y188: 392.061541 | Z188: 0 | AA188: 0 | AB188: 0 | AC188: 0 | AD188: 0 | AE188: 0 | AF188: 0 | AG188: 0 | AH188: 0 | AI188: 0 | AJ188: 0 | AK188: 0 | AL188: 0 | AM188: 0 | AN188: 0
C190: Variabele Operationele Kosten
E191: =Input_Output!E$39 -> Onderhoudskosten variabel | F191: =Input_Output!F$39 -> 0.02 | G191: =Input_Output!G$39 -> Euro/kWhe
E192: =Input_Output!E$40 -> Overige operationele kosten | F192: =Input_Output!F$40 -> 0.02 | G192: =Input_Output!G$40 -> Euro/kWhe
E193: =E$96 -> Bruto elektriciteitsproductie | F193: 0 | G193: kWh | H193: 63750 | I193: 0 | J193: 0 | K193: 4250 | L193: 4250 | M193: 4250 | N193: 4250 | O193: 4250 | P193: 4250 | Q193: 4250 | R193: 4250 | S193: 4250 | T193: 4250 | U193: 4250 | V193: 4250 | W193: 4250 | X193: 4250 | Y193: 4250 | Z193: 0 | AA193: 0 | AB193: 0 | AC193: 0 | AD193: 0 | AE193: 0 | AF193: 0 | AG193: 0 | AH193: 0 | AI193: 0 | AJ193: 0 | AK193: 0 | AL193: 0 | AM193: 0 | AN193: 0
E194: =E$85 -> Prijsindex operationele kosten | F194: =F$85 -> 0 | G194: Factor | H194: 0 | I194: 0 | J194: 1 | K194: 1.02 | L194: 1.0404 | M194: 1.061208 | N194: 1.08243216 | O194: 1.104080803 | P194: 1.126162419 | Q194: 1.148685668 | R194: 1.171659381 | S194: 1.195092569 | T194: 1.21899442 | U194: 1.243374308 | V194: 1.268241795 | W194: 1.29360663 | X194: 1.319478763 | Y194: 1.345868338 | Z194: 1.372785705 | AA194: 1.400241419 | AB194: 1.428246248 | AC194: 1.456811173 | AD194: 1.485947396 | AE194: 1.515666344 | AF194: 1.545979671 | AG194: 1.576899264 | AH194: 1.608437249 | AI194: 1.640605994 | AJ194: 1.673418114 | AK194: 1.706886477 | AL194: 1.741024206 | AM194: 1.77584469 | AN194: 1.811361584
E195: Variabele Operationele Kosten POS | G195: Euro | H195: =SUM(J195:AN195) -> 2998.678493 | J195: =SUM($F191:$F192) * J193 * J194 -> 0 | K195: =SUM($F191:$F192) * K193 * K194 -> 173.4 | L195: =SUM($F191:$F192) * L193 * L194 -> 176.868 | M195: 180.40536 | N195: 184.0134672 | O195: 187.6937365 | P195: 191.4476113 | Q195: 195.2765635 | R195: 199.1820948 | S195: 203.1657367 | T195: 207.2290514 | U195: 211.3736324 | V195: 215.6011051 | W195: 219.9131272 | X195: 224.3113897 | Y195: 228.7976175 | Z195: 0 | AA195: 0 | AB195: 0 | AC195: 0 | AD195: 0 | AE195: 0 | AF195: 0 | AG195: 0 | AH195: 0 | AI195: 0 | AJ195: 0 | AK195: 0 | AL195: 0 | AM195: 0 | AN195: 0
C197: Totale Operationele Kosten
E198: =E181 -> Vervangingsinvestering POS | F198: =F181 -> 0 | G198: Euro | H198: 1617.008288 | I198: 0 | J198: =J181 -> 0 | K198: 0 | L198: 0 | M198: 0 | N198: 0 | O198: 0 | P198: 0 | Q198: 0 | R198: 0 | S198: 0 | T198: 0 | U198: 0 | V198: 0 | W198: 1617.008288 | X198: 0 | Y198: 0 | Z198: 0 | AA198: 0 | AB198: 0 | AC198: 0 | AD198: 0 | AE198: 0 | AF198: 0 | AG198: 0 | AH198: 0 | AI198: 0 | AJ198: 0 | AK198: 0 | AL198: 0 | AM198: 0 | AN198: 0
E199: =E$188 -> Vaste Operationele Kosten POS | F199: =F$188 -> 0 | G199: Euro | H199: 5138.456089 | I199: 0 | J199: 0 | K199: 297.13365 | L199: =L$188 -> 303.076323 | M199: 309.1378495 | N199: =N$188 -> 315.3206064 | O199: 321.6270186 | P199: 328.0595589 | Q199: 334.6207501 | R199: 341.3131651 | S199: 348.1394284 | T199: 355.102217 | U199: 362.2042613 | V199: 369.4483466 | W199: 376.8373135 | X199: 384.3740598 | Y199: 392.061541 | Z199: 0 | AA199: 0 | AB199: 0 | AC199: 0 | AD199: 0 | AE199: 0 | AF199: 0 | AG199: 0 | AH199: 0 | AI199: 0 | AJ199: 0 | AK199: 0 | AL199: 0 | AM199: 0 | AN199: 0
E200: =E$195 -> Variabele Operationele Kosten POS | F200: =F$195 -> 0 | G200: Euro | H200: 2998.678493 | I200: 0 | J200: 0 | K200: 173.4 | L200: 176.868 | M200: 180.40536 | N200: 184.0134672 | O200: 187.6937365 | P200: 191.4476113 | Q200: 195.2765635 | R200: 199.1820948 | S200: 203.1657367 | T200: 207.2290514 | U200: 211.3736324 | V200: 215.6011051 | W200: 219.9131272 | X200: 224.3113897 | Y200: 228.7976175 | Z200: 0 | AA200: 0 | AB200: 0 | AC200: 0 | AD200: 0 | AE200: 0 | AF200: 0 | AG200: 0 | AH200: 0 | AI200: 0 | AJ200: 0 | AK200: 0 | AL200: 0 | AM200: 0 | AN200: 0
E201: Operationele Kosten (zonder brandstof) POS | G201: Euro | H201: =SUM(J201:AN201) -> 9754.142871 | J201: =SUM(J198:J200) -> 0 | K201: =SUM(K198:K200) -> 470.53365 | L201: 479.944323 | M201: 489.5432095 | N201: 499.3340736 | O201: 509.3207551 | P201: 519.5071702 | Q201: 529.8973136 | R201: 540.4952599 | S201: 551.3051651 | T201: 562.3312684 | U201: 573.5778938 | V201: 585.0494516 | W201: 2213.758729 | X201: 608.6854495 | Y201: 620.8591585 | Z201: 0 | AA201: 0 | AB201: 0 | AC201: 0 | AD201: 0 | AE201: 0 | AF201: 0 | AG201: 0 | AH201: 0 | AI201: 0 | AJ201: 0 | AK201: 0 | AL201: 0 | AM201: 0 | AN201: 0
E202: =LEFT(E201, LEN(E201) - 4) -> Operationele Kosten (zonder brandstof) | G202: Euro | H202: =SUM(J202:AN202) -> -9754.142871 | J202: =- J201 -> 0 | K202: =- K201 -> -470.53365 | L202: =- L201 -> -479.944323 | M202: -489.5432095 | N202: -499.3340736 | O202: -509.3207551 | P202: -519.5071702 | Q202: -529.8973136 | R202: -540.4952599 | S202: -551.3051651 | T202: -562.3312684 | U202: -573.5778938 | V202: -585.0494516 | W202: -2213.758729 | X202: -608.6854495 | Y202: -620.8591585 | Z202: 0 | AA202: 0 | AB202: 0 | AC202: 0 | AD202: 0 | AE202: 0 | AF202: 0 | AG202: 0 | AH202: 0 | AI202: 0 | AJ202: 0 | AK202: 0 | AL202: 0 | AM202: 0 | AN202: 0
B204: Brandstofkosten
E205: =Input_Output!E$45 -> Kosten brandstof | F205: =Input_Output!F$45 -> 0.0473 | G205: =Input_Output!G$45 -> Euro/kWh
E206: =Input_Output!E$26 -> Elektrisch rendement | F206: =Input_Output!F$26 -> 0.4 | G206: =Input_Output!G$26 -> [%]
E207: =E$96 -> Bruto elektriciteitsproductie | F207: =F$96 -> 0 | G207: kWh | H207: 63750 | I207: 0 | J207: 0 | K207: 4250 | L207: 4250 | M207: 4250 | N207: 4250 | O207: 4250 | P207: 4250 | Q207: 4250 | R207: 4250 | S207: 4250 | T207: 4250 | U207: 4250 | V207: 4250 | W207: 4250 | X207: 4250 | Y207: 4250 | Z207: 0 | AA207: 0 | AB207: 0 | AC207: 0 | AD207: 0 | AE207: 0 | AF207: 0 | AG207: 0 | AH207: 0 | AI207: 0 | AJ207: 0 | AK207: 0 | AL207: 0 | AM207: 0 | AN207: 0
E208: =E83 -> Prijsindex brandstof | F208: 0 | G208: Factor | H208: 0 | I208: 0 | J208: 1 | K208: 1.035 | L208: 1.071225 | M208: 1.108717875 | N208: 1.147523001 | O208: 1.187686306 | P208: 1.229255326 | Q208: 1.272279263 | R208: 1.316809037 | S208: 1.362897353 | T208: 1.410598761 | U208: 1.459969717 | V208: 1.511068657 | W208: 1.56395606 | X208: 1.618694522 | Y208: 1.675348831 | Z208: 1.73398604 | AA208: 1.794675551 | AB208: 1.857489196 | AC208: 1.922501317 | AD208: 1.989788863 | AE208: 2.059431474 | AF208: 2.131511575 | AG208: 2.20611448 | AH208: 2.283328487 | AI208: 2.363244984 | AJ208: 2.445958559 | AK208: 2.531567108 | AL208: 2.620171957 | AM208: 2.711877976 | AN208: 2.806793705
E209: Brandstofkosten POS | G209: Euro | H209: =SUM(J209:AN209) -> 10036.69062 | J209: =IF($F$206=0,0, $F205 * ((J207) / ($F206)) * J208) -> 0 | K209: =IF($F$206=0,0, $F205 * ((K207) / ($F206)) * K208) -> 520.1521875 | L209: 538.3575141 | M209: 557.2000271 | N209: 576.702028 | O209: 596.886599 | P209: 617.7776299 | Q209: 639.399847 | R209: 661.7788416 | S209: 684.9411011 | T209: 708.9140396 | U209: 733.726031 | V209: 759.4064421 | W209: 785.9856676 | X209: 813.4951659 | Y209: 841.9674968 | Z209: 0 | AA209: 0 | AB209: 0 | AC209: 0 | AD209: 0 | AE209: 0 | AF209: 0 | AG209: 0 | AH209: 0 | AI209: 0 | AJ209: 0 | AK209: 0 | AL209: 0 | AM209: 0 | AN209: 0
E210: =LEFT(E209, LEN(E209) - 4) -> Brandstofkosten | G210: Euro | H210: =SUM(J210:AN210) -> -10036.69062 | J210: =- J209 -> 0 | K210: =- K209 -> -520.1521875 | L210: -538.3575141 | M210: -557.2000271 | N210: -576.702028 | O210: -596.886599 | P210: -617.7776299 | Q210: -639.399847 | R210: -661.7788416 | S210: -684.9411011 | T210: -708.9140396 | U210: -733.726031 | V210: -759.4064421 | W210: -785.9856676 | X210: -813.4951659 | Y210: -841.9674968 | Z210: 0 | AA210: 0 | AB210: 0 | AC210: 0 | AD210: 0 | AE210: 0 | AF210: 0 | AG210: 0 | AH210: 0 | AI210: 0 | AJ210: 0 | AK210: 0 | AL210: 0 | AM210: 0 | AN210: 0
B212: In- en uitgaande stoffen
C214: Ingaande stoffen
E215: =Input_Output!E$49 -> Hoeveelheid ingaande stoffen (GFT,…) | F215: =Input_Output!F$49 -> 0 | G215: =Input_Output!G$49 -> ton
E216: =Input_Output!E$50 -> Kosten (+) / opbrengsten (-) ingaande stoffen | F216: =Input_Output!F$50 -> 0 | G216: =Input_Output!G$50 -> Euro/ton
E217: =E216 -> Kosten (+) / opbrengsten (-) ingaande stoffen | F217: =F215 * F216 -> 0 | G217: Euro
E218: =E$20 -> Economische levensduur Vlag | F218: =F20 -> 0 | G218: Vlag | H218: 15 | I218: 0 | J218: 0 | K218: 1 | L218: 1 | M218: 1 | N218: 1 | O218: 1 | P218: 1 | Q218: 1 | R218: 1 | S218: 1 | T218: 1 | U218: 1 | V218: 1 | W218: 1 | X218: 1 | Y218: 1 | Z218: 0 | AA218: 0 | AB218: 0 | AC218: 0 | AD218: 0 | AE218: 0 | AF218: 0 | AG218: 0 | AH218: 0 | AI218: 0 | AJ218: 0 | AK218: 0 | AL218: 0 | AM218: 0 | AN218: 0
E219: =E86 -> Prijsindex kosten/opbrengsten ingaande stoffen | F219: 0 | G219: Factor | H219: 0 | I219: 0 | J219: 1 | K219: 1.02 | L219: 1.0404 | M219: 1.061208 | N219: 1.08243216 | O219: 1.104080803 | P219: 1.126162419 | Q219: 1.148685668 | R219: 1.171659381 | S219: 1.195092569 | T219: 1.21899442 | U219: 1.243374308 | V219: 1.268241795 | W219: 1.29360663 | X219: 1.319478763 | Y219: 1.345868338 | Z219: 1.372785705 | AA219: 1.400241419 | AB219: 1.428246248 | AC219: 1.456811173 | AD219: 1.485947396 | AE219: 1.515666344 | AF219: 1.545979671 | AG219: 1.576899264 | AH219: 1.608437249 | AI219: 1.640605994 | AJ219: 1.673418114 | AK219: 1.706886477 | AL219: 1.741024206 | AM219: 1.77584469 | AN219: 1.811361584
E220: Kosten ingaande stoffen POS | G220: Euro | H220: =SUM(J220:AN220) -> 0 | J220: =IF($F217>0, $F217 * J218 * J219, 0) -> 0 | K220: =IF($F217>0, $F217 * K218 * K219, 0) -> 0 | L220: 0 | M220: 0 | N220: 0 | O220: 0 | P220: 0 | Q220: 0 | R220: 0 | S220: 0 | T220: 0 | U220: 0 | V220: 0 | W220: 0 | X220: 0 | Y220: 0 | Z220: 0 | AA220: 0 | AB220: 0 | AC220: 0 | AD220: 0 | AE220: 0 | AF220: 0 | AG220: 0 | AH220: 0 | AI220: 0 | AJ220: 0 | AK220: 0 | AL220: 0 | AM220: 0 | AN220: 0
E221: Kosten ingaande stoffen | G221: Euro | H221: =SUM(J221:AN221) -> 0 | J221: =-1 * J220 -> 0 | K221: =-1 * K220 -> 0 | L221: 0 | M221: 0 | N221: 0 | O221: 0 | P221: 0 | Q221: 0 | R221: 0 | S221: 0 | T221: 0 | U221: 0 | V221: 0 | W221: 0 | X221: 0 | Y221: 0 | Z221: 0 | AA221: 0 | AB221: 0 | AC221: 0 | AD221: 0 | AE221: 0 | AF221: 0 | AG221: 0 | AH221: 0 | AI221: 0 | AJ221: 0 | AK221: 0 | AL221: 0 | AM221: 0 | AN221: 0
E222: Opbrengst ingaande stoffen | G222: Euro | H222: =SUM(J222:AN222) -> 0 | J222: =IF($F217<0, -1 * $F217 * J218 * J219, 0) -> 0 | K222: =IF($F217<0, -1 * $F217 * K218 * K219, 0) -> 0 | L222: 0 | M222: 0 | N222: 0 | O222: 0 | P222: 0 | Q222: 0 | R222: 0 | S222: 0 | T222: 0 | U222: 0 | V222: 0 | W222: 0 | X222: 0 | Y222: 0 | Z222: 0 | AA222: 0 | AB222: 0 | AC222: 0 | AD222: 0 | AE222: 0 | AF222: 0 | AG222: 0 | AH222: 0 | AI222: 0 | AJ222: 0 | AK222: 0 | AL222: 0 | AM222: 0 | AN222: 0
C224: Uitgaande stoffen
E225: =Input_Output!E52 -> Hoeveelheid uitgaande stoffen (digestaat, slib) | F225: =Input_Output!F52 -> 0 | G225: =Input_Output!G52 -> ton
E226: =Input_Output!E53 -> Kosten (+) / opbrengsten (-) uitgaande stoffen | F226: =Input_Output!F53 -> 0 | G226: =Input_Output!G53 -> Euro/ton
E227: =E226 -> Kosten (+) / opbrengsten (-) uitgaande stoffen | F227: =F225 * F226 -> 0 | G227: Euro
E228: =E$20 -> Economische levensduur Vlag | F228: 0 | G228: Vlag | H228: 15 | I228: 0 | J228: 0 | K228: 1 | L228: 1 | M228: 1 | N228: 1 | O228: 1 | P228: 1 | Q228: 1 | R228: 1 | S228: 1 | T228: 1 | U228: 1 | V228: 1 | W228: 1 | X228: 1 | Y228: 1 | Z228: 0 | AA228: 0 | AB228: 0 | AC228: 0 | AD228: 0 | AE228: 0 | AF228: 0 | AG228: 0 | AH228: 0 | AI228: 0 | AJ228: 0 | AK228: 0 | AL228: 0 | AM228: 0 | AN228: 0
E229: =E87 -> Prijsindex kosten/opbrengsten uitgaande stoffen | F229: 0 | G229: Factor | H229: 0 | I229: 0 | J229: 1 | K229: 1.02 | L229: 1.0404 | M229: 1.061208 | N229: 1.08243216 | O229: 1.104080803 | P229: 1.126162419 | Q229: 1.148685668 | R229: 1.171659381 | S229: 1.195092569 | T229: 1.21899442 | U229: 1.243374308 | V229: 1.268241795 | W229: 1.29360663 | X229: 1.319478763 | Y229: 1.345868338 | Z229: 1.372785705 | AA229: 1.400241419 | AB229: 1.428246248 | AC229: 1.456811173 | AD229: 1.485947396 | AE229: 1.515666344 | AF229: 1.545979671 | AG229: 1.576899264 | AH229: 1.608437249 | AI229: 1.640605994 | AJ229: 1.673418114 | AK229: 1.706886477 | AL229: 1.741024206 | AM229: 1.77584469 | AN229: 1.811361584
E230: Kosten uitgaande stoffen POS | G230: Euro | H230: =SUM(J230:AN230) -> 0 | J230: =IF($F227>0, $F227 * J228 * J229, 0) -> 0 | K230: =IF($F227>0, $F227 * K228 * K229, 0) -> 0 | L230: 0 | M230: 0 | N230: 0 | O230: 0 | P230: 0 | Q230: 0 | R230: 0 | S230: 0 | T230: 0 | U230: 0 | V230: 0 | W230: 0 | X230: 0 | Y230: 0 | Z230: 0 | AA230: 0 | AB230: 0 | AC230: 0 | AD230: 0 | AE230: 0 | AF230: 0 | AG230: 0 | AH230: 0 | AI230: 0 | AJ230: 0 | AK230: 0 | AL230: 0 | AM230: 0 | AN230: 0
E231: Kosten uitgaande stoffen | G231: Euro | H231: =SUM(J231:AN231) -> 0 | J231: =-1 * J230 -> 0 | K231: 0 | L231: 0 | M231: 0 | N231: 0 | O231: 0 | P231: 0 | Q231: 0 | R231: 0 | S231: 0 | T231: 0 | U231: 0 | V231: 0 | W231: 0 | X231: 0 | Y231: 0 | Z231: 0 | AA231: 0 | AB231: 0 | AC231: 0 | AD231: 0 | AE231: 0 | AF231: 0 | AG231: 0 | AH231: 0 | AI231: 0 | AJ231: 0 | AK231: 0 | AL231: 0 | AM231: 0 | AN231: 0
E232: Opbrengst uitgaande stoffen | G232: Euro | H232: =SUM(J232:AN232) -> 0 | J232: =IF($F227<0, -1 * $F227 * J228 * J229, 0) -> 0 | K232: =IF($F227<0, -1 * $F227 * K228 * K229, 0) -> 0 | L232: 0 | M232: 0 | N232: 0 | O232: 0 | P232: 0 | Q232: 0 | R232: 0 | S232: 0 | T232: 0 | U232: 0 | V232: 0 | W232: 0 | X232: 0 | Y232: 0 | Z232: 0 | AA232: 0 | AB232: 0 | AC232: 0 | AD232: 0 | AE232: 0 | AF232: 0 | AG232: 0 | AH232: 0 | AI232: 0 | AJ232: 0 | AK232: 0 | AL232: 0 | AM232: 0 | AN232: 0
B234: Operationele kasstroom
E235: =E$116 -> Marktwaarde elektriciteit | F235: =F116 -> 0 | G235: Euro | H235: 18049.91651 | I235: 0 | J235: 0 | K235: 935.438175 | L235: 968.1785111 | M235: 1002.064759 | N235: 1037.137026 | O235: 1073.436821 | P235: 1111.00711 | Q235: 1149.892359 | R235: 1190.138592 | S235: 1231.793442 | T235: 1274.906213 | U235: 1319.52793 | V235: 1365.711408 | W235: 1413.511307 | X235: 1462.984203 | Y235: 1514.18865 | Z235: 0 | AA235: 0 | AB235: 0 | AC235: 0 | AD235: 0 | AE235: 0 | AF235: 0 | AG235: 0 | AH235: 0 | AI235: 0 | AJ235: 0 | AK235: 0 | AL235: 0 | AM235: 0 | AN235: 0
E236: =E$128 -> Waarde WKK warmteproductie | F236: =F128 -> 0 | G236: Euro | H236: 0 | I236: 0 | J236: 0 | K236: 0 | L236: 0 | M236: 0 | N236: 0 | O236: 0 | P236: 0 | Q236: 0 | R236: 0 | S236: 0 | T236: 0 | U236: 0 | V236: 0 | W236: 0 | X236: 0 | Y236: 0 | Z236: 0 | AA236: 0 | AB236: 0 | AC236: 0 | AD236: 0 | AE236: 0 | AF236: 0 | AG236: 0 | AH236: 0 | AI236: 0 | AJ236: 0 | AK236: 0 | AL236: 0 | AM236: 0 | AN236: 0
E237: =E$139 -> Besparing primaire brandstof | F237: =F139 -> 0 | G237: Euro | H237: 0 | I237: 0 | J237: 0 | K237: 0 | L237: 0 | M237: 0 | N237: 0 | O237: 0 | P237: 0 | Q237: 0 | R237: 0 | S237: 0 | T237: 0 | U237: 0 | V237: 0 | W237: 0 | X237: 0 | Y237: 0 | Z237: 0 | AA237: 0 | AB237: 0 | AC237: 0 | AD237: 0 | AE237: 0 | AF237: 0 | AG237: 0 | AH237: 0 | AI237: 0 | AJ237: 0 | AK237: 0 | AL237: 0 | AM237: 0 | AN237: 0
E238: =E$149 -> Opbrengst OT (GS) | F238: =F149 -> 0 | G238: Euro | H238: 0 | I238: 0 | J238: 0 | K238: 0 | L238: 0 | M238: 0 | N238: 0 | O238: 0 | P238: 0 | Q238: 0 | R238: 0 | S238: 0 | T238: 0 | U238: 0 | V238: 0 | W238: 0 | X238: 0 | Y238: 0 | Z238: 0 | AA238: 0 | AB238: 0 | AC238: 0 | AD238: 0 | AE238: 0 | AF238: 0 | AG238: 0 | AH238: 0 | AI238: 0 | AJ238: 0 | AK238: 0 | AL238: 0 | AM238: 0 | AN238: 0
E239: =E$169 -> Opbrengst OT (WKK) | F239: =F169 -> 0 | G239: Euro | H239: 0 | I239: 0 | J239: 0 | K239: 0 | L239: 0 | M239: 0 | N239: 0 | O239: 0 | P239: 0 | Q239: 0 | R239: 0 | S239: 0 | T239: 0 | U239: 0 | V239: 0 | W239: 0 | X239: 0 | Y239: 0 | Z239: 0 | AA239: 0 | AB239: 0 | AC239: 0 | AD239: 0 | AE239: 0 | AF239: 0 | AG239: 0 | AH239: 0 | AI239: 0 | AJ239: 0 | AK239: 0 | AL239: 0 | AM239: 0 | AN239: 0
E240: =E$202 -> Operationele Kosten (zonder brandstof) | F240: =F202 -> 0 | G240: Euro | H240: -9754.142871 | I240: 0 | J240: 0 | K240: =K202 -> -470.53365 | L240: -479.944323 | M240: -489.5432095 | N240: -499.3340736 | O240: -509.3207551 | P240: -519.5071702 | Q240: -529.8973136 | R240: -540.4952599 | S240: -551.3051651 | T240: -562.3312684 | U240: -573.5778938 | V240: -585.0494516 | W240: -2213.758729 | X240: -608.6854495 | Y240: -620.8591585 | Z240: 0 | AA240: 0 | AB240: 0 | AC240: 0 | AD240: 0 | AE240: 0 | AF240: 0 | AG240: 0 | AH240: 0 | AI240: 0 | AJ240: 0 | AK240: 0 | AL240: 0 | AM240: 0 | AN240: 0
... 247 more rows

Sheet FinResBedr
A1: =Input_Output!A1 -> Onrendabele Topberekening
A2: =Input_Output!F3 -> Fictieve voorbeeldberekening
J3: Jaar
F4: Constante | G4: Eenheid | H4: Totaal | J4: =Calc!J$4 -> 0 | K4: =Calc!K$4 -> 1 | L4: =Calc!L$4 -> 2 | M4: =Calc!M$4 -> 3 | N4: =Calc!N$4 -> 4 | O4: =Calc!O$4 -> 5 | P4: =Calc!P$4 -> 6 | Q4: =Calc!Q$4 -> 7 | R4: =Calc!R$4 -> 8 | S4: =Calc!S$4 -> 9 | T4: =Calc!T$4 -> 10 | U4: =Calc!U$4 -> 11 | V4: =Calc!V$4 -> 12 | W4: =Calc!W$4 -> 13 | X4: =Calc!X$4 -> 14 | Y4: =Calc!Y$4 -> 15 | Z4: =Calc!Z$4 -> 16 | AA4: =Calc!AA$4 -> 17 | AB4: =Calc!AB$4 -> 18 | AC4: =Calc!AC$4 -> 19 | AD4: =Calc!AD$4 -> 20 | AE4: =Calc!AE$4 -> 21 | AF4: =Calc!AF$4 -> 22 | AG4: =Calc!AG$4 -> 23 | AH4: =Calc!AH$4 -> 24 | AI4: =Calc!AI$4 -> 25 | AJ4: =Calc!AJ$4 -> 26 | AK4: =Calc!AK$4 -> 27 | AL4: =Calc!AL$4 -> 28 | AM4: =Calc!AM$4 -> 29 | AN4: =Calc!AN$4 -> 30
A6: Onrendabele Top
E8: Basis voor berekening onrendabele top | F8: GS | G8: GS: groene stroom/WKB: warmtekrachtbesparing
E9: Bedrijfsfinanciering of projectfinanciering? | F9: PF | G9: BF/PF
E11: =Calc!E531 -> Tussenkomst Onrendabele Top per MWh | F11: =Calc!F531 -> 234.8122529 | G11: =Calc!G531 -> Euro/MWh
E13: =Calc!E$527 -> Check rendement Project na belastingen | F13: =Calc!F$527 -> 1 | G13: =Calc!G$527 -> Check
A15: Productie
E17: =Calc!E96 -> Bruto elektriciteitsproductie | F17: =Calc!F96 -> 0 | G17: =Calc!G96 -> kWh | H17: =Calc!H96 -> 63750 | I17: =Calc!I96 -> 0 | J17: =Calc!J96 -> 0 | K17: =Calc!K96 -> 4250 | L17: =Calc!L96 -> 4250 | M17: =Calc!M96 -> 4250 | N17: =Calc!N96 -> 4250 | O17: =Calc!O96 -> 4250 | P17: =Calc!P96 -> 4250 | Q17: =Calc!Q96 -> 4250 | R17: =Calc!R96 -> 4250 | S17: =Calc!S96 -> 4250 | T17: =Calc!T96 -> 4250 | U17: =Calc!U96 -> 4250 | V17: =Calc!V96 -> 4250 | W17: =Calc!W96 -> 4250 | X17: =Calc!X96 -> 4250 | Y17: =Calc!Y96 -> 4250 | Z17: =Calc!Z96 -> 0 | AA17: =Calc!AA96 -> 0 | AB17: =Calc!AB96 -> 0 | AC17: =Calc!AC96 -> 0 | AD17: =Calc!AD96 -> 0 | AE17: =Calc!AE96 -> 0 | AF17: =Calc!AF96 -> 0 | AG17: =Calc!AG96 -> 0 | AH17: =Calc!AH96 -> 0 | AI17: =Calc!AI96 -> 0 | AJ17: =Calc!AJ96 -> 0 | AK17: =Calc!AK96 -> 0 | AL17: =Calc!AL96 -> 0 | AM17: =Calc!AM96 -> 0 | AN17: =Calc!AN96 -> 0
E18: =Calc!E123 -> WKK warmteproductie (equivalent aardgasvolume) | F18: =Calc!F123 -> 0 | G18: =Calc!G123 -> kWh | H18: =Calc!H123 -> 0 | I18: =Calc!I123 -> 0 | J18: =Calc!J123 -> 0 | K18: =Calc!K123 -> 0 | L18: =Calc!L123 -> 0 | M18: =Calc!M123 -> 0 | N18: =Calc!N123 -> 0 | O18: =Calc!O123 -> 0 | P18: =Calc!P123 -> 0 | Q18: =Calc!Q123 -> 0 | R18: =Calc!R123 -> 0 | S18: =Calc!S123 -> 0 | T18: =Calc!T123 -> 0 | U18: =Calc!U123 -> 0 | V18: =Calc!V123 -> 0 | W18: =Calc!W123 -> 0 | X18: =Calc!X123 -> 0 | Y18: =Calc!Y123 -> 0 | Z18: =Calc!Z123 -> 0 | AA18: =Calc!AA123 -> 0 | AB18: =Calc!AB123 -> 0 | AC18: =Calc!AC123 -> 0 | AD18: =Calc!AD123 -> 0 | AE18: =Calc!AE123 -> 0 | AF18: =Calc!AF123 -> 0 | AG18: =Calc!AG123 -> 0 | AH18: =Calc!AH123 -> 0 | AI18: =Calc!AI123 -> 0 | AJ18: =Calc!AJ123 -> 0 | AK18: =Calc!AK123 -> 0 | AL18: =Calc!AL123 -> 0 | AM18: =Calc!AM123 -> 0 | AN18: =Calc!AN123 -> 0
E19: =Calc!E134 -> Besparing primaire brandstof | F19: =Calc!F134 -> 0 | G19: =Calc!G134 -> kWh | H19: =Calc!H134 -> 0 | I19: =Calc!I134 -> 0 | J19: =Calc!J134 -> 0 | K19: =Calc!K134 -> 0 | L19: =Calc!L134 -> 0 | M19: =Calc!M134 -> 0 | N19: =Calc!N134 -> 0 | O19: =Calc!O134 -> 0 | P19: =Calc!P134 -> 0 | Q19: =Calc!Q134 -> 0 | R19: =Calc!R134 -> 0 | S19: =Calc!S134 -> 0 | T19: =Calc!T134 -> 0 | U19: =Calc!U134 -> 0 | V19: =Calc!V134 -> 0 | W19: =Calc!W134 -> 0 | X19: =Calc!X134 -> 0 | Y19: =Calc!Y134 -> 0 | Z19: =Calc!Z134 -> 0 | AA19: =Calc!AA134 -> 0 | AB19: =Calc!AB134 -> 0 | AC19: =Calc!AC134 -> 0 | AD19: =Calc!AD134 -> 0 | AE19: =Calc!AE134 -> 0 | AF19: =Calc!AF134 -> 0 | AG19: =Calc!AG134 -> 0 | AH19: =Calc!AH134 -> 0 | AI19: =Calc!AI134 -> 0 | AJ19: =Calc!AJ134 -> 0 | AK19: =Calc!AK134 -> 0 | AL19: =Calc!AL134 -> 0 | AM19: =Calc!AM134 -> 0 | AN19: =Calc!AN134 -> 0
E20: =Calc!E161 -> Valoriseerbare warmtekrachtbesparing | F20: =Calc!F161 -> 0 | G20: =Calc!G161 -> kWh | H20: =Calc!H161 -> 0 | I20: =Calc!I161 -> 0 | J20: =Calc!J161 -> 0 | K20: =Calc!K161 -> 0 | L20: =Calc!L161 -> 0 | M20: =Calc!M161 -> 0 | N20: =Calc!N161 -> 0 | O20: =Calc!O161 -> 0 | P20: =Calc!P161 -> 0 | Q20: =Calc!Q161 -> 0 | R20: =Calc!R161 -> 0 | S20: =Calc!S161 -> 0 | T20: =Calc!T161 -> 0 | U20: =Calc!U161 -> 0 | V20: =Calc!V161 -> 0 | W20: =Calc!W161 -> 0 | X20: =Calc!X161 -> 0 | Y20: =Calc!Y161 -> 0 | Z20: =Calc!Z161 -> 0 | AA20: =Calc!AA161 -> 0 | AB20: =Calc!AB161 -> 0 | AC20: =Calc!AC161 -> 0 | AD20: =Calc!AD161 -> 0 | AE20: =Calc!AE161 -> 0 | AF20: =Calc!AF161 -> 0 | AG20: =Calc!AG161 -> 0 | AH20: =Calc!AH161 -> 0 | AI20: =Calc!AI161 -> 0 | AJ20: =Calc!AJ161 -> 0 | AK20: =Calc!AK161 -> 0 | AL20: =Calc!AL161 -> 0 | AM20: =Calc!AM161 -> 0 | AN20: =Calc!AN161 -> 0
A23: Kasstroom
E25: Met/zonder tussenkomst onrendabele top? | F25: met | G25: met/zonder
B27: Investeringen
E28: =Calc!E258 -> Investering | F28: =Calc!F258 -> 0 | G28: =Calc!G258 -> Euro | H28: =Calc!H258 -> -9000 | I28: =Calc!I258 -> 0 | J28: =Calc!J258 -> -9000 | K28: =Calc!K258 -> 0 | L28: =Calc!L258 -> 0 | M28: =Calc!M258 -> 0 | N28: =Calc!N258 -> 0 | O28: =Calc!O258 -> 0 | P28: =Calc!P258 -> 0 | Q28: =Calc!Q258 -> 0 | R28: =Calc!R258 -> 0 | S28: =Calc!S258 -> 0 | T28: =Calc!T258 -> 0 | U28: =Calc!U258 -> 0 | V28: =Calc!V258 -> 0 | W28: =Calc!W258 -> 0 | X28: =Calc!X258 -> 0 | Y28: =Calc!Y258 -> 0 | Z28: =Calc!Z258 -> 0 | AA28: =Calc!AA258 -> 0 | AB28: =Calc!AB258 -> 0 | AC28: =Calc!AC258 -> 0 | AD28: =Calc!AD258 -> 0 | AE28: =Calc!AE258 -> 0 | AF28: =Calc!AF258 -> 0 | AG28: =Calc!AG258 -> 0 | AH28: =Calc!AH258 -> 0 | AI28: =Calc!AI258 -> 0 | AJ28: =Calc!AJ258 -> 0 | AK28: =Calc!AK258 -> 0 | AL28: =Calc!AL258 -> 0 | AM28: =Calc!AM258 -> 0 | AN28: =Calc!AN258 -> 0
E29: =Calc!E301 -> Investeringssteun | F29: =Calc!F301 -> 0 | G29: =Calc!G301 -> Euro | H29: =Calc!H301 -> 0 | I29: =Calc!I301 -> 0 | J29: =Calc!J301 -> 0 | K29: =Calc!K301 -> 0 | L29: =Calc!L301 -> 0 | M29: =Calc!M301 -> 0 | N29: =Calc!N301 -> 0 | O29: =Calc!O301 -> 0 | P29: =Calc!P301 -> 0 | Q29: =Calc!Q301 -> 0 | R29: =Calc!R301 -> 0 | S29: =Calc!S301 -> 0 | T29: =Calc!T301 -> 0 | U29: =Calc!U301 -> 0 | V29: =Calc!V301 -> 0 | W29: =Calc!W301 -> 0 | X29: =Calc!X301 -> 0 | Y29: =Calc!Y301 -> 0 | Z29: =Calc!Z301 -> 0 | AA29: =Calc!AA301 -> 0 | AB29: =Calc!AB301 -> 0 | AC29: =Calc!AC301 -> 0 | AD29: =Calc!AD301 -> 0 | AE29: =Calc!AE301 -> 0 | AF29: =Calc!AF301 -> 0 | AG29: =Calc!AG301 -> 0 | AH29: =Calc!AH301 -> 0 | AI29: =Calc!AI301 -> 0 | AJ29: =Calc!AJ301 -> 0 | AK29: =Calc!AK301 -> 0 | AL29: =Calc!AL301 -> 0 | AM29: =Calc!AM301 -> 0 | AN29: =Calc!AN301 -> 0
E30: Kasstroom investeringen | G30: Euro | H30: =SUM(J30:AN30) -> -9000 | J30: =J28+J29 -> -9000 | K30: =K28+K29 -> 0 | L30: 0 | M30: 0 | N30: 0 | O30: 0 | P30: 0 | Q30: 0 | R30: 0 | S30: 0 | T30: 0 | U30: 0 | V30: 0 | W30: 0 | X30: 0 | Y30: 0 | Z30: 0 | AA30: 0 | AB30: 0 | AC30: 0 | AD30: 0 | AE30: 0 | AF30: 0 | AG30: 0 | AH30: 0 | AI30: 0 | AJ30: 0 | AK30: 0 | AL30: 0 | AM30: 0 | AN30: 0
B32: Operationele inkomsten
E33: =Calc!E535 -> Tussenkomst Onrendabele Top | F33: =Calc!F535 -> 0 | G33: =Calc!G535 -> Euro | H33: =Calc!H535 -> 14669.8955 | I33: =Calc!I535 -> 0 | J33: =Calc!J535 -> 0 | K33: =Calc!K535 -> 977.9930333 | L33: =Calc!L535 -> 977.9930333 | M33: =Calc!M535 -> 977.9930333 | N33: =Calc!N535 -> 977.9930333 | O33: =Calc!O535 -> 977.9930333 | P33: =Calc!P535 -> 977.9930333 | Q33: =Calc!Q535 -> 977.9930333 | R33: =Calc!R535 -> 977.9930333 | S33: =Calc!S535 -> 977.9930333 | T33: =Calc!T535 -> 977.9930333 | U33: =Calc!U535 -> 977.9930333 | V33: =Calc!V535 -> 977.9930333 | W33: =Calc!W535 -> 977.9930333 | X33: =Calc!X535 -> 977.9930333 | Y33: =Calc!Y535 -> 977.9930333 | Z33: =Calc!Z535 -> 0 | AA33: =Calc!AA535 -> 0 | AB33: =Calc!AB535 -> 0 | AC33: =Calc!AC535 -> 0 | AD33: =Calc!AD535 -> 0 | AE33: =Calc!AE535 -> 0 | AF33: =Calc!AF535 -> 0 | AG33: =Calc!AG535 -> 0 | AH33: =Calc!AH535 -> 0 | AI33: =Calc!AI535 -> 0 | AJ33: =Calc!AJ535 -> 0 | AK33: =Calc!AK535 -> 0 | AL33: =Calc!AL535 -> 0 | AM33: =Calc!AM535 -> 0 | AN33: =Calc!AN535 -> 0
E34: =Calc!E116 -> Marktwaarde elektriciteit | F34: =Calc!F116 -> 0 | G34: =Calc!G116 -> Euro | H34: =Calc!H116 -> 18049.91651 | I34: =Calc!I116 -> 0 | J34: =Calc!J116 -> 0 | K34: =Calc!K116 -> 935.438175 | L34: =Calc!L116 -> 968.1785111 | M34: =Calc!M116 -> 1002.064759 | N34: =Calc!N116 -> 1037.137026 | O34: =Calc!O116 -> 1073.436821 | P34: =Calc!P116 -> 1111.00711 | Q34: =Calc!Q116 -> 1149.892359 | R34: =Calc!R116 -> 1190.138592 | S34: =Calc!S116 -> 1231.793442 | T34: =Calc!T116 -> 1274.906213 | U34: =Calc!U116 -> 1319.52793 | V34: =Calc!V116 -> 1365.711408 | W34: =Calc!W116 -> 1413.511307 | X34: =Calc!X116 -> 1462.984203 | Y34: =Calc!Y116 -> 1514.18865 | Z34: =Calc!Z116 -> 0 | AA34: =Calc!AA116 -> 0 | AB34: =Calc!AB116 -> 0 | AC34: =Calc!AC116 -> 0 | AD34: =Calc!AD116 -> 0 | AE34: =Calc!AE116 -> 0 | AF34: =Calc!AF116 -> 0 | AG34: =Calc!AG116 -> 0 | AH34: =Calc!AH116 -> 0 | AI34: =Calc!AI116 -> 0 | AJ34: =Calc!AJ116 -> 0 | AK34: =Calc!AK116 -> 0 | AL34: =Calc!AL116 -> 0 | AM34: =Calc!AM116 -> 0 | AN34: =Calc!AN116 -> 0
E35: =Calc!E128 -> Waarde WKK warmteproductie | F35: =Calc!F128 -> 0 | G35: =Calc!G128 -> Euro | H35: =Calc!H128 -> 0 | I35: =Calc!I128 -> 0 | J35: =Calc!J128 -> 0 | K35: =Calc!K128 -> 0 | L35: =Calc!L128 -> 0 | M35: =Calc!M128 -> 0 | N35: =Calc!N128 -> 0 | O35: =Calc!O128 -> 0 | P35: =Calc!P128 -> 0 | Q35: =Calc!Q128 -> 0 | R35: =Calc!R128 -> 0 | S35: =Calc!S128 -> 0 | T35: =Calc!T128 -> 0 | U35: =Calc!U128 -> 0 | V35: =Calc!V128 -> 0 | W35: =Calc!W128 -> 0 | X35: =Calc!X128 -> 0 | Y35: =Calc!Y128 -> 0 | Z35: =Calc!Z128 -> 0 | AA35: =Calc!AA128 -> 0 | AB35: =Calc!AB128 -> 0 | AC35: =Calc!AC128 -> 0 | AD35: =Calc!AD128 -> 0 | AE35: =Calc!AE128 -> 0 | AF35: =Calc!AF128 -> 0 | AG35: =Calc!AG128 -> 0 | AH35: =Calc!AH128 -> 0 | AI35: =Calc!AI128 -> 0 | AJ35: =Calc!AJ128 -> 0 | AK35: =Calc!AK128 -> 0 | AL35: =Calc!AL128 -> 0 | AM35: =Calc!AM128 -> 0 | AN35: =Calc!AN128 -> 0
E36: =Calc!E139 -> Besparing primaire brandstof | F36: =Calc!F139 -> 0 | G36: =Calc!G139 -> Euro | H36: =Calc!H139 -> 0 | I36: =Calc!I139 -> 0 | J36: =Calc!J139 -> 0 | K36: =Calc!K139 -> 0 | L36: =Calc!L139 -> 0 | M36: =Calc!M139 -> 0 | N36: =Calc!N139 -> 0 | O36: =Calc!O139 -> 0 | P36: =Calc!P139 -> 0 | Q36: =Calc!Q139 -> 0 | R36: =Calc!R139 -> 0 | S36: =Calc!S139 -> 0 | T36: =Calc!T139 -> 0 | U36: =Calc!U139 -> 0 | V36: =Calc!V139 -> 0 | W36: =Calc!W139 -> 0 | X36: =Calc!X139 -> 0 | Y36: =Calc!Y139 -> 0 | Z36: =Calc!Z139 -> 0 | AA36: =Calc!AA139 -> 0 | AB36: =Calc!AB139 -> 0 | AC36: =Calc!AC139 -> 0 | AD36: =Calc!AD139 -> 0 | AE36: =Calc!AE139 -> 0 | AF36: =Calc!AF139 -> 0 | AG36: =Calc!AG139 -> 0 | AH36: =Calc!AH139 -> 0 | AI36: =Calc!AI139 -> 0 | AJ36: =Calc!AJ139 -> 0 | AK36: =Calc!AK139 -> 0 | AL36: =Calc!AL139 -> 0 | AM36: =Calc!AM139 -> 0 | AN36: =Calc!AN139 -> 0
E37: =Calc!E149 -> Opbrengst OT (GS) | F37: =Calc!F149 -> 0 | G37: =Calc!G149 -> Euro | H37: =Calc!H149 -> 0 | I37: =Calc!I149 -> 0 | J37: =Calc!J149 -> 0 | K37: =Calc!K149 -> 0 | L37: =Calc!L149 -> 0 | M37: =Calc!M149 -> 0 | N37: =Calc!N149 -> 0 | O37: =Calc!O149 -> 0 | P37: =Calc!P149 -> 0 | Q37: =Calc!Q149 -> 0 | R37: =Calc!R149 -> 0 | S37: =Calc!S149 -> 0 | T37: =Calc!T149 -> 0 | U37: =Calc!U149 -> 0 | V37: =Calc!V149 -> 0 | W37: =Calc!W149 -> 0 | X37: =Calc!X149 -> 0 | Y37: =Calc!Y149 -> 0 | Z37: =Calc!Z149 -> 0 | AA37: =Calc!AA149 -> 0 | AB37: =Calc!AB149 -> 0 | AC37: =Calc!AC149 -> 0 | AD37: =Calc!AD149 -> 0 | AE37: =Calc!AE149 -> 0 | AF37: =Calc!AF149 -> 0 | AG37: =Calc!AG149 -> 0 | AH37: =Calc!AH149 -> 0 | AI37: =Calc!AI149 -> 0 | AJ37: =Calc!AJ149 -> 0 | AK37: =Calc!AK149 -> 0 | AL37: =Calc!AL149 -> 0 | AM37: =Calc!AM149 -> 0 | AN37: =Calc!AN149 -> 0
E38: =Calc!E169 -> Opbrengst OT (WKK) | F38: =Calc!F169 -> 0 | G38: =Calc!G169 -> Euro | H38: =Calc!H169 -> 0 | I38: =Calc!I169 -> 0 | J38: =Calc!J169 -> 0 | K38: =Calc!K169 -> 0 | L38: =Calc!L169 -> 0 | M38: =Calc!M169 -> 0 | N38: =Calc!N169 -> 0 | O38: =Calc!O169 -> 0 | P38: =Calc!P169 -> 0 | Q38: =Calc!Q169 -> 0 | R38: =Calc!R169 -> 0 | S38: =Calc!S169 -> 0 | T38: =Calc!T169 -> 0 | U38: =Calc!U169 -> 0 | V38: =Calc!V169 -> 0 | W38: =Calc!W169 -> 0 | X38: =Calc!X169 -> 0 | Y38: =Calc!Y169 -> 0 | Z38: =Calc!Z169 -> 0 | AA38: =Calc!AA169 -> 0 | AB38: =Calc!AB169 -> 0 | AC38: =Calc!AC169 -> 0 | AD38: =Calc!AD169 -> 0 | AE38: =Calc!AE169 -> 0 | AF38: =Calc!AF169 -> 0 | AG38: =Calc!AG169 -> 0 | AH38: =Calc!AH169 -> 0 | AI38: =Calc!AI169 -> 0 | AJ38: =Calc!AJ169 -> 0 | AK38: =Calc!AK169 -> 0 | AL38: =Calc!AL169 -> 0 | AM38: =Calc!AM169 -> 0 | AN38: =Calc!AN169 -> 0
E39: =Calc!E222 -> Opbrengst ingaande stoffen | F39: =Calc!F222 -> 0 | G39: =Calc!G222 -> Euro | H39: =Calc!H222 -> 0 | I39: =Calc!I222 -> 0 | J39: =Calc!J222 -> 0 | K39: =Calc!K222 -> 0 | L39: =Calc!L222 -> 0 | M39: =Calc!M222 -> 0 | N39: =Calc!N222 -> 0 | O39: =Calc!O222 -> 0 | P39: =Calc!P222 -> 0 | Q39: =Calc!Q222 -> 0 | R39: =Calc!R222 -> 0 | S39: =Calc!S222 -> 0 | T39: =Calc!T222 -> 0 | U39: =Calc!U222 -> 0 | V39: =Calc!V222 -> 0 | W39: =Calc!W222 -> 0 | X39: =Calc!X222 -> 0 | Y39: =Calc!Y222 -> 0 | Z39: =Calc!Z222 -> 0 | AA39: =Calc!AA222 -> 0 | AB39: =Calc!AB222 -> 0 | AC39: =Calc!AC222 -> 0 | AD39: =Calc!AD222 -> 0 | AE39: =Calc!AE222 -> 0 | AF39: =Calc!AF222 -> 0 | AG39: =Calc!AG222 -> 0 | AH39: =Calc!AH222 -> 0 | AI39: =Calc!AI222 -> 0 | AJ39: =Calc!AJ222 -> 0 | AK39: =Calc!AK222 -> 0 | AL39: =Calc!AL222 -> 0 | AM39: =Calc!AM222 -> 0 | AN39: =Calc!AN222 -> 0
E40: =Calc!E232 -> Opbrengst uitgaande stoffen | F40: =Calc!F232 -> 0 | G40: =Calc!G232 -> Euro | H40: =Calc!H232 -> 0 | I40: =Calc!I232 -> 0 | J40: =Calc!J232 -> 0 | K40: =Calc!K232 -> 0 | L40: =Calc!L232 -> 0 | M40: =Calc!M232 -> 0 | N40: =Calc!N232 -> 0 | O40: =Calc!O232 -> 0 | P40: =Calc!P232 -> 0 | Q40: =Calc!Q232 -> 0 | R40: =Calc!R232 -> 0 | S40: =Calc!S232 -> 0 | T40: =Calc!T232 -> 0 | U40: =Calc!U232 -> 0 | V40: =Calc!V232 -> 0 | W40: =Calc!W232 -> 0 | X40: =Calc!X232 -> 0 | Y40: =Calc!Y232 -> 0 | Z40: =Calc!Z232 -> 0 | AA40: =Calc!AA232 -> 0 | AB40: =Calc!AB232 -> 0 | AC40: =Calc!AC232 -> 0 | AD40: =Calc!AD232 -> 0 | AE40: =Calc!AE232 -> 0 | AF40: =Calc!AF232 -> 0 | AG40: =Calc!AG232 -> 0 | AH40: =Calc!AH232 -> 0 | AI40: =Calc!AI232 -> 0 | AJ40: =Calc!AJ232 -> 0 | AK40: =Calc!AK232 -> 0 | AL40: =Calc!AL232 -> 0 | AM40: =Calc!AM232 -> 0 | AN40: =Calc!AN232 -> 0
E41: =B32 -> Operationele inkomsten | G41: Euro | H41: =SUM(J41:AN41) -> 32719.81201 | J41: =SUM(J33:J40) -> 0 | K41: 1913.431208 | L41: 1946.171544 | M41: 1980.057792 | N41: 2015.130059 | O41: 2051.429855 | P41: 2089.000144 | Q41: 2127.885392 | R41: 2168.131625 | S41: 2209.786476 | T41: 2252.899246 | U41: 2297.520964 | V41: 2343.704441 | W41: 2391.50434 | X41: 2440.977236 | Y41: 2492.181683 | Z41: 0 | AA41: 0 | AB41: 0 | AC41: 0 | AD41: 0 | AE41: 0 | AF41: 0 | AG41: 0 | AH41: 0 | AI41: 0 | AJ41: 0 | AK41: 0 | AL41: 0 | AM41: 0 | AN41: 0
B43: Operationele kosten
E44: =Calc!E202 -> Operationele Kosten (zonder brandstof) | F44: =Calc!F202 -> 0 | G44: =Calc!G202 -> Euro | H44: =Calc!H202 -> -9754.142871 | I44: =Calc!I202 -> 0 | J44: =Calc!J202 -> 0 | K44: =Calc!K202 -> -470.53365 | L44: =Calc!L202 -> -479.944323 | M44: =Calc!M202 -> -489.5432095 | N44: =Calc!N202 -> -499.3340736 | O44: =Calc!O202 -> -509.3207551 | P44: =Calc!P202 -> -519.5071702 | Q44: =Calc!Q202 -> -529.8973136 | R44: =Calc!R202 -> -540.4952599 | S44: =Calc!S202 -> -551.3051651 | T44: =Calc!T202 -> -562.3312684 | U44: =Calc!U202 -> -573.5778938 | V44: =Calc!V202 -> -585.0494516 | W44: =Calc!W202 -> -2213.758729 | X44: =Calc!X202 -> -608.6854495 | Y44: =Calc!Y202 -> -620.8591585 | Z44: =Calc!Z202 -> 0 | AA44: =Calc!AA202 -> 0 | AB44: =Calc!AB202 -> 0 | AC44: =Calc!AC202 -> 0 | AD44: =Calc!AD202 -> 0 | AE44: =Calc!AE202 -> 0 | AF44: =Calc!AF202 -> 0 | AG44: =Calc!AG202 -> 0 | AH44: =Calc!AH202 -> 0 | AI44: =Calc!AI202 -> 0 | AJ44: =Calc!AJ202 -> 0 | AK44: =Calc!AK202 -> 0 | AL44: =Calc!AL202 -> 0 | AM44: =Calc!AM202 -> 0 | AN44: =Calc!AN202 -> 0
E45: =Calc!E210 -> Brandstofkosten | F45: =Calc!F210 -> 0 | G45: =Calc!G210 -> Euro | H45: =Calc!H210 -> -10036.69062 | I45: =Calc!I210 -> 0 | J45: =Calc!J210 -> 0 | K45: =Calc!K210 -> -520.1521875 | L45: =Calc!L210 -> -538.3575141 | M45: =Calc!M210 -> -557.2000271 | N45: =Calc!N210 -> -576.702028 | O45: =Calc!O210 -> -596.886599 | P45: =Calc!P210 -> -617.7776299 | Q45: =Calc!Q210 -> -639.399847 | R45: =Calc!R210 -> -661.7788416 | S45: =Calc!S210 -> -684.9411011 | T45: =Calc!T210 -> -708.9140396 | U45: =Calc!U210 -> -733.726031 | V45: =Calc!V210 -> -759.4064421 | W45: =Calc!W210 -> -785.9856676 | X45: =Calc!X210 -> -813.4951659 | Y45: =Calc!Y210 -> -841.9674968 | Z45: =Calc!Z210 -> 0 | AA45: =Calc!AA210 -> 0 | AB45: =Calc!AB210 -> 0 | AC45: =Calc!AC210 -> 0 | AD45: =Calc!AD210 -> 0 | AE45: =Calc!AE210 -> 0 | AF45: =Calc!AF210 -> 0 | AG45: =Calc!AG210 -> 0 | AH45: =Calc!AH210 -> 0 | AI45: =Calc!AI210 -> 0 | AJ45: =Calc!AJ210 -> 0 | AK45: =Calc!AK210 -> 0 | AL45: =Calc!AL210 -> 0 | AM45: =Calc!AM210 -> 0 | AN45: =Calc!AN210 -> 0
E46: =Calc!E221 -> Kosten ingaande stoffen | F46: =Calc!F221 -> 0 | G46: =Calc!G221 -> Euro | H46: =Calc!H221 -> 0 | I46: =Calc!I221 -> 0 | J46: =Calc!J221 -> 0 | K46: =Calc!K221 -> 0 | L46: =Calc!L221 -> 0 | M46: =Calc!M221 -> 0 | N46: =Calc!N221 -> 0 | O46: =Calc!O221 -> 0 | P46: =Calc!P221 -> 0 | Q46: =Calc!Q221 -> 0 | R46: =Calc!R221 -> 0 | S46: =Calc!S221 -> 0 | T46: =Calc!T221 -> 0 | U46: =Calc!U221 -> 0 | V46: =Calc!V221 -> 0 | W46: =Calc!W221 -> 0 | X46: =Calc!X221 -> 0 | Y46: =Calc!Y221 -> 0 | Z46: =Calc!Z221 -> 0 | AA46: =Calc!AA221 -> 0 | AB46: =Calc!AB221 -> 0 | AC46: =Calc!AC221 -> 0 | AD46: =Calc!AD221 -> 0 | AE46: =Calc!AE221 -> 0 | AF46: =Calc!AF221 -> 0 | AG46: =Calc!AG221 -> 0 | AH46: =Calc!AH221 -> 0 | AI46: =Calc!AI221 -> 0 | AJ46: =Calc!AJ221 -> 0 | AK46: =Calc!AK221 -> 0 | AL46: =Calc!AL221 -> 0 | AM46: =Calc!AM221 -> 0 | AN46: =Calc!AN221 -> 0
E47: =Calc!E231 -> Kosten uitgaande stoffen | F47: =Calc!F231 -> 0 | G47: =Calc!G231 -> Euro | H47: =Calc!H231 -> 0 | I47: =Calc!I231 -> 0 | J47: =Calc!J231 -> 0 | K47: =Calc!K231 -> 0 | L47: =Calc!L231 -> 0 | M47: =Calc!M231 -> 0 | N47: =Calc!N231 -> 0 | O47: =Calc!O231 -> 0 | P47: =Calc!P231 -> 0 | Q47: =Calc!Q231 -> 0 | R47: =Calc!R231 -> 0 | S47: =Calc!S231 -> 0 | T47: =Calc!T231 -> 0 | U47: =Calc!U231 -> 0 | V47: =Calc!V231 -> 0 | W47: =Calc!W231 -> 0 | X47: =Calc!X231 -> 0 | Y47: =Calc!Y231 -> 0 | Z47: =Calc!Z231 -> 0 | AA47: =Calc!AA231 -> 0 | AB47: =Calc!AB231 -> 0 | AC47: =Calc!AC231 -> 0 | AD47: =Calc!AD231 -> 0 | AE47: =Calc!AE231 -> 0 | AF47: =Calc!AF231 -> 0 | AG47: =Calc!AG231 -> 0 | AH47: =Calc!AH231 -> 0 | AI47: =Calc!AI231 -> 0 | AJ47: =Calc!AJ231 -> 0 | AK47: =Calc!AK231 -> 0 | AL47: =Calc!AL231 -> 0 | AM47: =Calc!AM231 -> 0 | AN47: =Calc!AN231 -> 0
E48: =B43 -> Operationele kosten | G48: Euro | H48: =SUM(J48:AN48) -> -19790.83349 | J48: =SUM(J44:J47) -> 0 | K48: =SUM(K44:K47) -> -990.6858375 | L48: -1018.301837 | M48: -1046.743237 | N48: -1076.036102 | O48: -1106.207354 | P48: -1137.2848 | Q48: -1169.297161 | R48: -1202.274102 | S48: -1236.246266 | T48: -1271.245308 | U48: -1307.303925 | V48: -1344.455894 | W48: -2999.744396 | X48: -1422.180615 | Y48: -1462.826655 | Z48: 0 | AA48: 0 | AB48: 0 | AC48: 0 | AD48: 0 | AE48: 0 | AF48: 0 | AG48: 0 | AH48: 0 | AI48: 0 | AJ48: 0 | AK48: 0 | AL48: 0 | AM48: 0 | AN48: 0
B50: Belastingen
E51: =Calc!E547 -> Belastingen (-) / Belastingverliezen (+) | F51: =Calc!F547 -> 0 | G51: =Calc!G547 -> Euro | H51: =Calc!H547 -> -727.664178 | I51: =Calc!I547 -> 0 | J51: =Calc!J547 -> 0 | K51: =Calc!K547 -> 0 | L51: =Calc!L547 -> 0 | M51: =Calc!M547 -> 0 | N51: =Calc!N547 -> 0 | O51: =Calc!O547 -> 0 | P51: =Calc!P547 -> -51.61513685 | Q51: =Calc!Q547 -> -100.9359188 | R51: =Calc!R547 -> -105.3065468 | S51: =Calc!S547 -> -109.9126775 | T51: =Calc!T547 -> -114.7650588 | U51: =Calc!U547 -> -119.8749079 | V51: =Calc!V547 -> -125.2539314 | W51: =Calc!W547 -> 0 | X51: =Calc!X547 -> 0 | Y51: =Calc!Y547 -> 0 | Z51: =Calc!Z547 -> 0 | AA51: =Calc!AA547 -> 0 | AB51: =Calc!AB547 -> 0 | AC51: =Calc!AC547 -> 0 | AD51: =Calc!AD547 -> 0 | AE51: =Calc!AE547 -> 0 | AF51: =Calc!AF547 -> 0 | AG51: =Calc!AG547 -> 0 | AH51: =Calc!AH547 -> 0 | AI51: =Calc!AI547 -> 0 | AJ51: =Calc!AJ547 -> 0 | AK51: =Calc!AK547 -> 0 | AL51: =Calc!AL547 -> 0 | AM51: =Calc!AM547 -> 0 | AN51: =Calc!AN547 -> 0
E52: Kasstroom belastingen | G52: Euro | H52: =SUM(J52:AN52) -> -727.664178 | J52: =J51 -> 0 | K52: =K51 -> 0 | L52: 0 | M52: 0 | N52: 0 | O52: 0 | P52: -51.61513685 | Q52: -100.9359188 | R52: -105.3065468 | S52: -109.9126775 | T52: -114.7650588 | U52: -119.8749079 | V52: -125.2539314 | W52: 0 | X52: 0 | Y52: 0 | Z52: 0 | AA52: 0 | AB52: 0 | AC52: 0 | AD52: 0 | AE52: 0 | AF52: 0 | AG52: 0 | AH52: 0 | AI52: 0 | AJ52: 0 | AK52: 0 | AL52: 0 | AM52: 0 | AN52: 0
B54: Lening
E55: =Calc!E337 -> Trekking lening | F55: =Calc!F337 -> 0 | G55: =Calc!G337 -> Euro | H55: =Calc!H337 -> 1800 | I55: =Calc!I337 -> 0 | J55: =Calc!J337 -> 1800 | K55: =Calc!K337 -> 0 | L55: =Calc!L337 -> 0 | M55: =Calc!M337 -> 0 | N55: =Calc!N337 -> 0 | O55: =Calc!O337 -> 0 | P55: =Calc!P337 -> 0 | Q55: =Calc!Q337 -> 0 | R55: =Calc!R337 -> 0 | S55: =Calc!S337 -> 0 | T55: =Calc!T337 -> 0 | U55: =Calc!U337 -> 0 | V55: =Calc!V337 -> 0 | W55: =Calc!W337 -> 0 | X55: =Calc!X337 -> 0 | Y55: =Calc!Y337 -> 0 | Z55: =Calc!Z337 -> 0 | AA55: =Calc!AA337 -> 0 | AB55: =Calc!AB337 -> 0 | AC55: =Calc!AC337 -> 0 | AD55: =Calc!AD337 -> 0 | AE55: =Calc!AE337 -> 0 | AF55: =Calc!AF337 -> 0 | AG55: =Calc!AG337 -> 0 | AH55: =Calc!AH337 -> 0 | AI55: =Calc!AI337 -> 0 | AJ55: =Calc!AJ337 -> 0 | AK55: =Calc!AK337 -> 0 | AL55: =Calc!AL337 -> 0 | AM55: =Calc!AM337 -> 0 | AN55: =Calc!AN337 -> 0
E56: =Calc!E353 -> Aflossing lening | F56: =Calc!F353 -> 0 | G56: =Calc!G353 -> Euro | H56: =Calc!H353 -> -1800 | I56: =Calc!I353 -> 0 | J56: =Calc!J353 -> 0 | K56: =Calc!K353 -> -83.4161177 | L56: =Calc!L353 -> -87.58692358 | M56: =Calc!M353 -> -91.96626976 | N56: =Calc!N353 -> -96.56458325 | O56: =Calc!O353 -> -101.3928124 | P56: =Calc!P353 -> -106.462453 | Q56: =Calc!Q353 -> -111.7855757 | R56: =Calc!R353 -> -117.3748545 | S56: =Calc!S353 -> -123.2435972 | T56: =Calc!T353 -> -129.4057771 | U56: =Calc!U353 -> -135.8760659 | V56: =Calc!V353 -> -142.6698692 | W56: =Calc!W353 -> -149.8033627 | X56: =Calc!X353 -> -157.2935308 | Y56: =Calc!Y353 -> -165.1582073 | Z56: =Calc!Z353 -> 0 | AA56: =Calc!AA353 -> 0 | AB56: =Calc!AB353 -> 0 | AC56: =Calc!AC353 -> 0 | AD56: =Calc!AD353 -> 0 | AE56: =Calc!AE353 -> 0 | AF56: =Calc!AF353 -> 0 | AG56: =Calc!AG353 -> 0 | AH56: =Calc!AH353 -> 0 | AI56: =Calc!AI353 -> 0 | AJ56: =Calc!AJ353 -> 0 | AK56: =Calc!AK353 -> 0 | AL56: =Calc!AL353 -> 0 | AM56: =Calc!AM353 -> 0 | AN56: =Calc!AN353 -> 0
E57: =Calc!E345 -> Rente lening | F57: =Calc!F345 -> 0 | G57: =Calc!G345 -> Euro | H57: =Calc!H345 -> -801.2417654 | I57: =Calc!I345 -> 0 | J57: =Calc!J345 -> 0 | K57: =Calc!K345 -> -90 | L57: =Calc!L345 -> -85.82919412 | M57: =Calc!M345 -> -81.44984794 | N57: =Calc!N345 -> -76.85153445 | O57: =Calc!O345 -> -72.02330529 | P57: =Calc!P345 -> -66.95366467 | Q57: =Calc!Q345 -> -61.63054201 | R57: =Calc!R345 -> -56.04126323 | S57: =Calc!S345 -> -50.17252051 | T57: =Calc!T345 -> -44.01034065 | U57: =Calc!U345 -> -37.54005179 | V57: =Calc!V345 -> -30.7462485 | W57: =Calc!W345 -> -23.61275504 | X57: =Calc!X345 -> -16.12258691 | Y57: =Calc!Y345 -> -8.257910367 | Z57: =Calc!Z345 -> 0 | AA57: =Calc!AA345 -> 0 | AB57: =Calc!AB345 -> 0 | AC57: =Calc!AC345 -> 0 | AD57: =Calc!AD345 -> 0 | AE57: =Calc!AE345 -> 0 | AF57: =Calc!AF345 -> 0 | AG57: =Calc!AG345 -> 0 | AH57: =Calc!AH345 -> 0 | AI57: =Calc!AI345 -> 0 | AJ57: =Calc!AJ345 -> 0 | AK57: =Calc!AK345 -> 0 | AL57: =Calc!AL345 -> 0 | AM57: =Calc!AM345 -> 0 | AN57: =Calc!AN345 -> 0
E58: Kasstroom lening | G58: Euro | H58: =SUM(J58:AN58) -> -801.2417654 | J58: =SUM(J55:J57) -> 1800 | K58: =SUM(K55:K57) -> -173.4161177 | L58: -173.4161177 | M58: -173.4161177 | N58: -173.4161177 | O58: -173.4161177 | P58: -173.4161177 | Q58: -173.4161177 | R58: -173.4161177 | S58: -173.4161177 | T58: -173.4161177 | U58: -173.4161177 | V58: -173.4161177 | W58: -173.4161177 | X58: -173.4161177 | Y58: -173.4161177 | Z58: 0 | AA58: 0 | AB58: 0 | AC58: 0 | AD58: 0 | AE58: 0 | AF58: 0 | AG58: 0 | AH58: 0 | AI58: 0 | AJ58: 0 | AK58: 0 | AL58: 0 | AM58: 0 | AN58: 0
B60: Projectkasstroom voor belastingen
E61: =E30 -> Kasstroom investeringen | F61: =F30 -> 0 | G61: Euro | H61: -9000 | I61: 0 | J61: -9000 | K61: 0 | L61: 0 | M61: 0 | N61: 0 | O61: 0 | P61: 0 | Q61: 0 | R61: 0 | S61: 0 | T61: 0 | U61: 0 | V61: 0 | W61: 0 | X61: 0 | Y61: 0 | Z61: 0 | AA61: 0 | AB61: 0 | AC61: 0 | AD61: 0 | AE61: 0 | AF61: 0 | AG61: 0 | AH61: 0 | AI61: 0 | AJ61: 0 | AK61: 0 | AL61: 0 | AM61: 0 | AN61: 0
E62: =E41 -> Operationele inkomsten | F62: =F41 -> 0 | G62: Euro | H62: 32719.81201 | I62: 0 | J62: 0 | K62: 1913.431208 | L62: 1946.171544 | M62: 1980.057792 | N62: 2015.130059 | O62: 2051.429855 | P62: 2089.000144 | Q62: 2127.885392 | R62: 2168.131625 | S62: 2209.786476 | T62: 2252.899246 | U62: 2297.520964 | V62: 2343.704441 | W62: 2391.50434 | X62: 2440.977236 | Y62: 2492.181683 | Z62: 0 | AA62: 0 | AB62: 0 | AC62: 0 | AD62: 0 | AE62: 0 | AF62: 0 | AG62: 0 | AH62: 0 | AI62: 0 | AJ62: 0 | AK62: 0 | AL62: 0 | AM62: 0 | AN62: 0
E63: =E48 -> Operationele kosten | F63: =F48 -> 0 | G63: Euro | H63: -19790.83349 | I63: 0 | J63: 0 | K63: -990.6858375 | L63: -1018.301837 | M63: -1046.743237 | N63: -1076.036102 | O63: -1106.207354 | P63: -1137.2848 | Q63: -1169.297161 | R63: -1202.274102 | S63: -1236.246266 | T63: -1271.245308 | U63: -1307.303925 | V63: -1344.455894 | W63: -2999.744396 | X63: -1422.180615 | Y63: -1462.826655 | Z63: 0 | AA63: 0 | AB63: 0 | AC63: 0 | AD63: 0 | AE63: 0 | AF63: 0 | AG63: 0 | AH63: 0 | AI63: 0 | AJ63: 0 | AK63: 0 | AL63: 0 | AM63: 0 | AN63: 0
E64: =B60 -> Projectkasstroom voor belastingen | G64: Euro | H64: =SUM(J64:AN64) -> 3928.978517 | J64: =SUM(J61:J63) -> -9000 | K64: 922.7453708 | L64: 927.8697074 | M64: 933.3145558 | N64: 939.0939573 | O64: 945.2225007 | P64: 951.7153434 | Q64: 958.5882318 | R64: 965.8575234 | S64: 973.5402095 | T64: 981.6539381 | U64: 990.2170388 | V64: 999.2485474 | W64: -608.2400559 | X64: 1018.796621 | Y64: 1029.355028 | Z64: 0 | AA64: 0 | AB64: 0 | AC64: 0 | AD64: 0 | AE64: 0 | AF64: 0 | AG64: 0 | AH64: 0 | AI64: 0 | AJ64: 0 | AK64: 0 | AL64: 0 | AM64: 0 | AN64: 0
B66: Projectkasstroom na belastingen
E67: =E64 -> Projectkasstroom voor belastingen | F67: =F64 -> 0 | G67: Euro | H67: 3928.978517 | I67: 0 | J67: -9000 | K67: =K64 -> 922.7453708 | L67: 927.8697074 | M67: 933.3145558 | N67: 939.0939573 | O67: 945.2225007 | P67: 951.7153434 | Q67: 958.5882318 | R67: 965.8575234 | S67: 973.5402095 | T67: 981.6539381 | U67: 990.2170388 | V67: 999.2485474 | W67: -608.2400559 | X67: 1018.796621 | Y67: 1029.355028 | Z67: 0 | AA67: 0 | AB67: 0 | AC67: 0 | AD67: 0 | AE67: 0 | AF67: 0 | AG67: 0 | AH67: 0 | AI67: 0 | AJ67: 0 | AK67: 0 | AL67: 0 | AM67: 0 | AN67: 0
E68: =E52 -> Kasstroom belastingen | F68: =F52 -> 0 | G68: Euro | H68: -727.664178 | I68: 0 | J68: 0 | K68: 0 | L68: 0 | M68: 0 | N68: 0 | O68: 0 | P68: -51.61513685 | Q68: -100.9359188 | R68: -105.3065468 | S68: -109.9126775 | T68: -114.7650588 | U68: -119.8749079 | V68: -125.2539314 | W68: 0 | X68: 0 | Y68: 0 | Z68: 0 | AA68: 0 | AB68: 0 | AC68: 0 | AD68: 0 | AE68: 0 | AF68: 0 | AG68: 0 | AH68: 0 | AI68: 0 | AJ68: 0 | AK68: 0 | AL68: 0 | AM68: 0 | AN68: 0
E69: =B66 -> Projectkasstroom na belastingen | G69: Euro | H69: =SUM(J69:AN69) -> 3201.314339 | J69: =SUM(J67:J68) -> -9000 | K69: 922.7453708 | L69: 927.8697074 | M69: 933.3145558 | N69: 939.0939573 | O69: 945.2225007 | P69: 900.1002065 | Q69: 857.652313 | R69: 860.5509766 | S69: 863.627532 | T69: 866.8888793 | U69: 870.3421309 | V69: 873.994616 | W69: -608.2400559 | X69: 1018.796621 | Y69: 1029.355028 | Z69: 0 | AA69: 0 | AB69: 0 | AC69: 0 | AD69: 0 | AE69: 0 | AF69: 0 | AG69: 0 | AH69: 0 | AI69: 0 | AJ69: 0 | AK69: 0 | AL69: 0 | AM69: 0 | AN69: 0
E70: ="NCW " & E69 -> NCW Projectkasstroom na belastingen | F70: =NPV(Input_Output!F91,J69:AN69) * (1+Input_Output!F91) -> -3125.202891
E71: Project IRR na belastingen | F71: =IRR(J69:AN69, F72) -> 0.04417576993 | G71: [%]
E72: Gissing IRR: | F72: 0.05
A74: Resultatenrekening
B76: Winst voor belastingen
E77: =E41 -> Operationele inkomsten | F77: =F41 -> 0 | G77: Euro | H77: 32719.81201 | I77: 0 | J77: 0 | K77: 1913.431208 | L77: 1946.171544 | M77: 1980.057792 | N77: 2015.130059 | O77: 2051.429855 | P77: 2089.000144 | Q77: 2127.885392 | R77: 2168.131625 | S77: 2209.786476 | T77: 2252.899246 | U77: 2297.520964 | V77: 2343.704441 | W77: 2391.50434 | X77: 2440.977236 | Y77: 2492.181683 | Z77: 0 | AA77: 0 | AB77: 0 | AC77: 0 | AD77: 0 | AE77: 0 | AF77: 0 | AG77: 0 | AH77: 0 | AI77: 0 | AJ77: 0 | AK77: 0 | AL77: 0 | AM77: 0 | AN77: 0
E78: =E48 -> Operationele kosten | F78: =F48 -> 0 | G78: Euro | H78: -19790.83349 | I78: 0 | J78: 0 | K78: -990.6858375 | L78: -1018.301837 | M78: -1046.743237 | N78: -1076.036102 | O78: -1106.207354 | P78: -1137.2848 | Q78: -1169.297161 | R78: -1202.274102 | S78: -1236.246266 | T78: -1271.245308 | U78: -1307.303925 | V78: -1344.455894 | W78: -2999.744396 | X78: -1422.180615 | Y78: -1462.826655 | Z78: 0 | AA78: 0 | AB78: 0 | AC78: 0 | AD78: 0 | AE78: 0 | AF78: 0 | AG78: 0 | AH78: 0 | AI78: 0 | AJ78: 0 | AK78: 0 | AL78: 0 | AM78: 0 | AN78: 0
E79: =Calc!E265 -> Afschrijvingen | F79: =Calc!F265 -> 0 | G79: =Calc!G265 -> Euro | H79: =Calc!H265 -> -9000 | I79: =Calc!I265 -> 0 | J79: =Calc!J265 -> 0 | K79: =Calc!K265 -> -600 | L79: =Calc!L265 -> -600 | M79: =Calc!M265 -> -600 | N79: =Calc!N265 -> -600 | O79: =Calc!O265 -> -600 | P79: =Calc!P265 -> -600 | Q79: =Calc!Q265 -> -600 | R79: =Calc!R265 -> -600 | S79: =Calc!S265 -> -600 | T79: =Calc!T265 -> -600 | U79: =Calc!U265 -> -600 | V79: =Calc!V265 -> -600 | W79: =Calc!W265 -> -600 | X79: =Calc!X265 -> -600 | Y79: =Calc!Y265 -> -600 | Z79: =Calc!Z265 -> 0 | AA79: =Calc!AA265 -> 0 | AB79: =Calc!AB265 -> 0 | AC79: =Calc!AC265 -> 0 | AD79: =Calc!AD265 -> 0 | AE79: =Calc!AE265 -> 0 | AF79: =Calc!AF265 -> 0 | AG79: =Calc!AG265 -> 0 | AH79: =Calc!AH265 -> 0 | AI79: =Calc!AI265 -> 0 | AJ79: =Calc!AJ265 -> 0 | AK79: =Calc!AK265 -> 0 | AL79: =Calc!AL265 -> 0 | AM79: =Calc!AM265 -> 0 | AN79: =Calc!AN265 -> 0
E80: =Calc!E345 -> Rente lening | F80: =Calc!F345 -> 0 | G80: =Calc!G345 -> Euro | H80: =Calc!H345 -> -801.2417654 | I80: =Calc!I345 -> 0 | J80: =Calc!J345 -> 0 | K80: =Calc!K345 -> -90 | L80: =Calc!L345 -> -85.82919412 | M80: =Calc!M345 -> -81.44984794 | N80: =Calc!N345 -> -76.85153445 | O80: =Calc!O345 -> -72.02330529 | P80: =Calc!P345 -> -66.95366467 | Q80: =Calc!Q345 -> -61.63054201 | R80: =Calc!R345 -> -56.04126323 | S80: =Calc!S345 -> -50.17252051 | T80: =Calc!T345 -> -44.01034065 | U80: =Calc!U345 -> -37.54005179 | V80: =Calc!V345 -> -30.7462485 | W80: =Calc!W345 -> -23.61275504 | X80: =Calc!X345 -> -16.12258691 | Y80: =Calc!Y345 -> -8.257910367 | Z80: =Calc!Z345 -> 0 | AA80: =Calc!AA345 -> 0 | AB80: =Calc!AB345 -> 0 | AC80: =Calc!AC345 -> 0 | AD80: =Calc!AD345 -> 0 | AE80: =Calc!AE345 -> 0 | AF80: =Calc!AF345 -> 0 | AG80: =Calc!AG345 -> 0 | AH80: =Calc!AH345 -> 0 | AI80: =Calc!AI345 -> 0 | AJ80: =Calc!AJ345 -> 0 | AK80: =Calc!AK345 -> 0 | AL80: =Calc!AL345 -> 0 | AM80: =Calc!AM345 -> 0 | AN80: =Calc!AN345 -> 0
E81: =Calc!E308 -> In resultaat nemen van Investeringssteun | F81: =Calc!F308 -> 0 | G81: =Calc!G308 -> Euro | H81: =Calc!H308 -> 0 | I81: =Calc!I308 -> 0 | J81: =Calc!J308 -> 0 | K81: =Calc!K308 -> 0 | L81: =Calc!L308 -> 0 | M81: =Calc!M308 -> 0 | N81: =Calc!N308 -> 0 | O81: =Calc!O308 -> 0 | P81: =Calc!P308 -> 0 | Q81: =Calc!Q308 -> 0 | R81: =Calc!R308 -> 0 | S81: =Calc!S308 -> 0 | T81: =Calc!T308 -> 0 | U81: =Calc!U308 -> 0 | V81: =Calc!V308 -> 0 | W81: =Calc!W308 -> 0 | X81: =Calc!X308 -> 0 | Y81: =Calc!Y308 -> 0 | Z81: =Calc!Z308 -> 0 | AA81: =Calc!AA308 -> 0 | AB81: =Calc!AB308 -> 0 | AC81: =Calc!AC308 -> 0 | AD81: =Calc!AD308 -> 0 | AE81: =Calc!AE308 -> 0 | AF81: =Calc!AF308 -> 0 | AG81: =Calc!AG308 -> 0 | AH81: =Calc!AH308 -> 0 | AI81: =Calc!AI308 -> 0 | AJ81: =Calc!AJ308 -> 0 | AK81: =Calc!AK308 -> 0 | AL81: =Calc!AL308 -> 0 | AM81: =Calc!AM308 -> 0 | AN81: =Calc!AN308 -> 0
E82: =B76 -> Winst voor belastingen | G82: Euro | H82: =SUM(J82:AN82) -> 3127.736752 | J82: =SUM(J77:J81) -> 0 | K82: =SUM(K77:K81) -> 232.7453708 | L82: 242.0405133 | M82: 251.8647079 | N82: 262.2424228 | O82: 273.1991954 | P82: 284.7616787 | Q82: 296.9576898 | R82: 309.8162602 | S82: 323.367689 | T82: 337.6435975 | U82: 352.676987 | V82: 368.5022989 | W82: -1231.852811 | X82: 402.6740339 | Y82: 421.0971177 | Z82: 0 | AA82: 0 | AB82: 0 | AC82: 0 | AD82: 0 | AE82: 0 | AF82: 0 | AG82: 0 | AH82: 0 | AI82: 0 | AJ82: 0 | AK82: 0 | AL82: 0 | AM82: 0 | AN82: 0
B84: Belastingen op het resultaat
E85: =E82 -> Winst voor belastingen | F85: =F82 -> 0 | G85: Euro | H85: 3127.736752 | I85: 0 | J85: 0 | K85: 232.7453708 | L85: 242.0405133 | M85: 251.8647079 | N85: 262.2424228 | O85: 273.1991954 | P85: 284.7616787 | Q85: 296.9576898 | R85: 309.8162602 | S85: 323.367689 | T85: 337.6435975 | U85: 352.676987 | V85: 368.5022989 | W85: -1231.852811 | X85: 402.6740339 | Y85: 421.0971177 | Z85: 0 | AA85: 0 | AB85: 0 | AC85: 0 | AD85: 0 | AE85: 0 | AF85: 0 | AG85: 0 | AH85: 0 | AI85: 0 | AJ85: 0 | AK85: 0 | AL85: 0 | AM85: 0 | AN85: 0
D86: Min: | E86: =Calc!E539 -> Overgedragen Verliezen | F86: =Calc!F539 -> 0 | G86: =Calc!G539 -> Euro | H86: =Calc!H539 -> 823.7711516 | I86: =Calc!I539 -> 0 | J86: =Calc!J539 -> 0 | K86: =Calc!K539 -> 0 | L86: =Calc!L539 -> 0 | M86: =Calc!M539 -> 0 | N86: =Calc!N539 -> 0 | O86: =Calc!O539 -> 0 | P86: =Calc!P539 -> 0 | Q86: =Calc!Q539 -> 0 | R86: =Calc!R539 -> 0 | S86: =Calc!S539 -> 0 | T86: =Calc!T539 -> 0 | U86: =Calc!U539 -> 0 | V86: =Calc!V539 -> 0 | W86: =Calc!W539 -> 0 | X86: =Calc!X539 -> 402.6740339 | Y86: =Calc!Y539 -> 421.0971177 | Z86: =Calc!Z539 -> 0 | AA86: =Calc!AA539 -> 0 | AB86: =Calc!AB539 -> 0 | AC86: =Calc!AC539 -> 0 | AD86: =Calc!AD539 -> 0 | AE86: =Calc!AE539 -> 0 | AF86: =Calc!AF539 -> 0 | AG86: =Calc!AG539 -> 0 | AH86: =Calc!AH539 -> 0 | AI86: =Calc!AI539 -> 0 | AJ86: =Calc!AJ539 -> 0 | AK86: =Calc!AK539 -> 0 | AL86: =Calc!AL539 -> 0 | AM86: =Calc!AM539 -> 0 | AN86: =Calc!AN539 -> 0
D87: Min: | E87: =Calc!E543 -> Investeringsaftrek | F87: =Calc!F543 -> 0 | G87: =Calc!G543 -> Euro | H87: =Calc!H543 -> 1395 | I87: =Calc!I543 -> 0 | J87: =Calc!J543 -> 0 | K87: =Calc!K543 -> 232.7453708 | L87: =Calc!L543 -> 242.0405133 | M87: =Calc!M543 -> 251.8647079 | N87: =Calc!N543 -> 262.2424228 | O87: =Calc!O543 -> 273.1991954 | P87: =Calc!P543 -> 132.9077898 | Q87: =Calc!Q543 -> 0 | R87: =Calc!R543 -> 0 | S87: =Calc!S543 -> 0 | T87: =Calc!T543 -> 0 | U87: =Calc!U543 -> 0 | V87: =Calc!V543 -> 0 | W87: =Calc!W543 -> 0 | X87: =Calc!X543 -> 0 | Y87: =Calc!Y543 -> 0 | Z87: =Calc!Z543 -> 0 | AA87: =Calc!AA543 -> 0 | AB87: =Calc!AB543 -> 0 | AC87: =Calc!AC543 -> 0 | AD87: =Calc!AD543 -> 0 | AE87: =Calc!AE543 -> 0 | AF87: =Calc!AF543 -> 0 | AG87: =Calc!AG543 -> 0 | AH87: =Calc!AH543 -> 0 | AI87: =Calc!AI543 -> 0 | AJ87: =Calc!AJ543 -> 0 | AK87: =Calc!AK543 -> 0 | AL87: =Calc!AL543 -> 0 | AM87: =Calc!AM543 -> 0 | AN87: =Calc!AN543 -> 0
E88: Fiscale winst | G88: Euro | H88: =SUM(J88:AN88) -> 908.9656005 | J88: =J85 - SUM(J86:J87) -> 0 | K88: 0 | L88: 0 | M88: 0 | N88: 0 | O88: 0 | P88: 151.8538889 | Q88: 296.9576898 | R88: 309.8162602 | S88: 323.367689 | T88: 337.6435975 | U88: 352.676987 | V88: 368.5022989 | W88: -1231.852811 | X88: 0 | Y88: 4.547473509e-13 | Z88: 0 | AA88: 0 | AB88: 0 | AC88: 0 | AD88: 0 | AE88: 0 | AF88: 0 | AG88: 0 | AH88: 0 | AI88: 0 | AJ88: 0 | AK88: 0 | AL88: 0 | AM88: 0 | AN88: 0
E89: =Input_Output!E70 -> Vennootschapsbelasting | F89: =Input_Output!F70 -> 0.3399 | G89: =Input_Output!G70 -> [%]
E90: =Calc!E547 -> Belastingen (-) / Belastingverliezen (+) | F90: =Calc!F547 -> 0 | G90: =Calc!G547 -> Euro | H90: =Calc!H547 -> -727.664178 | I90: =Calc!I547 -> 0 | J90: =Calc!J547 -> 0 | K90: =Calc!K547 -> 0 | L90: =Calc!L547 -> 0 | M90: =Calc!M547 -> 0 | N90: =Calc!N547 -> 0 | O90: =Calc!O547 -> 0 | P90: =Calc!P547 -> -51.61513685 | Q90: =Calc!Q547 -> -100.9359188 | R90: =Calc!R547 -> -105.3065468 | S90: =Calc!S547 -> -109.9126775 | T90: =Calc!T547 -> -114.7650588 | U90: =Calc!U547 -> -119.8749079 | V90: =Calc!V547 -> -125.2539314 | W90: =Calc!W547 -> 0 | X90: =Calc!X547 -> 0 | Y90: =Calc!Y547 -> 0 | Z90: =Calc!Z547 -> 0 | AA90: =Calc!AA547 -> 0 | AB90: =Calc!AB547 -> 0 | AC90: =Calc!AC547 -> 0 | AD90: =Calc!AD547 -> 0 | AE90: =Calc!AE547 -> 0 | AF90: =Calc!AF547 -> 0 | AG90: =Calc!AG547 -> 0 | AH90: =Calc!AH547 -> 0 | AI90: =Calc!AI547 -> 0 | AJ90: =Calc!AJ547 -> 0 | AK90: =Calc!AK547 -> 0 | AL90: =Calc!AL547 -> 0 | AM90: =Calc!AM547 -> 0 | AN90: =Calc!AN547 -> 0
B92: Winst na belastingen
E93: =E82 -> Winst voor belastingen | F93: =F82 -> 0 | G93: Euro | H93: 3127.736752 | I93: 0 | J93: 0 | K93: 232.7453708 | L93: 242.0405133 | M93: 251.8647079 | N93: 262.2424228 | O93: 273.1991954 | P93: 284.7616787 | Q93: 296.9576898 | R93: 309.8162602 | S93: 323.367689 | T93: 337.6435975 | U93: 352.676987 | V93: 368.5022989 | W93: -1231.852811 | X93: 402.6740339 | Y93: 421.0971177 | Z93: 0 | AA93: 0 | AB93: 0 | AC93: 0 | AD93: 0 | AE93: 0 | AF93: 0 | AG93: 0 | AH93: 0 | AI93: 0 | AJ93: 0 | AK93: 0 | AL93: 0 | AM93: 0 | AN93: 0
E94: =Calc!E547 -> Belastingen (-) / Belastingverliezen (+) | F94: =Calc!F547 -> 0 | G94: =Calc!G547 -> Euro | H94: =Calc!H547 -> -727.664178 | I94: =Calc!I547 -> 0 | J94: =Calc!J547 -> 0 | K94: =Calc!K547 -> 0 | L94: =Calc!L547 -> 0 | M94: =Calc!M547 -> 0 | N94: =Calc!N547 -> 0 | O94: =Calc!O547 -> 0 | P94: =Calc!P547 -> -51.61513685 | Q94: =Calc!Q547 -> -100.9359188 | R94: =Calc!R547 -> -105.3065468 | S94: =Calc!S547 -> -109.9126775 | T94: =Calc!T547 -> -114.7650588 | U94: =Calc!U547 -> -119.8749079 | V94: =Calc!V547 -> -125.2539314 | W94: =Calc!W547 -> 0 | X94: =Calc!X547 -> 0 | Y94: =Calc!Y547 -> 0 | Z94: =Calc!Z547 -> 0 | AA94: =Calc!AA547 -> 0 | AB94: =Calc!AB547 -> 0 | AC94: =Calc!AC547 -> 0 | AD94: =Calc!AD547 -> 0 | AE94: =Calc!AE547 -> 0 | AF94: =Calc!AF547 -> 0 | AG94: =Calc!AG547 -> 0 | AH94: =Calc!AH547 -> 0 | AI94: =Calc!AI547 -> 0 | AJ94: =Calc!AJ547 -> 0 | AK94: =Calc!AK547 -> 0 | AL94: =Calc!AL547 -> 0 | AM94: =Calc!AM547 -> 0 | AN94: =Calc!AN547 -> 0
E95: =B92 -> Winst na belastingen | G95: Euro | H95: =SUM(J95:AN95) -> 2400.072574 | J95: =J93+J94 -> 0 | K95: =K93+K94 -> 232.7453708 | L95: 242.0405133 | M95: 251.8647079 | N95: 262.2424228 | O95: 273.1991954 | P95: 233.1465419 | Q95: 196.021771 | R95: 204.5097134 | S95: 213.4550115 | T95: 222.8785387 | U95: 232.8020791 | V95: 243.2483675 | W95: -1231.852811 | X95: 402.6740339 | Y95: 421.0971177 | Z95: 0 | AA95: 0 | AB95: 0 | AC95: 0 | AD95: 0 | AE95: 0 | AF95: 0 | AG95: 0 | AH95: 0 | AI95: 0 | AJ95: 0 | AK95: 0 | AL95: 0 | AM95: 0 | AN95: 0
